{"text_format":"1","workbook":"xlsx","n_sheets":6,"sheets":["Instructions","Definitions","Part-time| Contract| Part-year","Casual","EXAMPLE - Casual","EXAMPLE - PT Con Part-yr"],"not_rendered":{"charts":0,"images":1,"macros":1,"external_links":0,"defined_names":3,"comments":0,"pivot_tables":0},"unopened":[],"bounds":{"document_bytes":16777216,"sheet_cells":100000,"rows_first":2000,"rows_last":500,"rows_between":2000,"halvings":0,"cell_chars":16384,"cell_head_chars":4096},"cells_cut":0,"cells_raw":0,"read":"part_too_large","date_system":"1900"}

{"sheet":"Instructions","index":0,"n_rows":7,"n_cols":2,"rows_kept":7,"cut":false,"hidden":false,"merged":[]}
[]
[]
[]
[null,"\n"]
[]
[]
[null,": "]

{"sheet":"Definitions","index":1,"n_rows":19,"n_cols":4,"rows_kept":19,"cut":false,"hidden":false,"merged":[[1,0,5,0],[7,1,8,1],[0,2,0,3],[1,2,1,3],[2,2,2,3],[3,2,3,3],[4,2,4,3],[5,2,5,3],[6,2,6,3],[14,2,14,3],[15,2,15,3],[9,2,9,3],[10,2,10,3],[6,0,18,0],[16,2,16,3],[17,2,17,3],[18,2,18,3],[11,2,11,3],[12,2,12,3],[13,2,13,3]]}
[null,"Term","Definition"]
["Employment status","Full-time","Employees who are engaged to work a minimum number of hours as defined by your organisation as full-time (e.g. 37.5, 38 or 40 hours per week) and are either permanent employees or on a fixed-term contract. The actual hours of work for an employee in a particular job or industry are agreed between the employer and the employee and/or set by an award or registered agreement. "]
[null,"Part-time","Employees who are engaged to work on average, less than 38 hours per week or what constitutes full-time hours in your specific organisation. These employees usually work regular hours each week, are entitled to the same benefits as a full-time employee but on a pro-rata basis, and are either permanent employees or on a fixed-term contract."]
[null,"Fixed-term contract","An individual employed on a fixed-term or non-ongoing contract in either a full-time or part-time capacity for the purposes of paragraph (a) of the definition of ‘employer’ under the Workplace Gender Equality Act 2012 (Act). Important note: reporting on independent contractors is no longer required."]
[null,"Casual","An employee that usually works irregular hours, has no guaranteed hours of work, doesn't get paid sick or annual leave and can end employment without notice, unless notice is required by a registered agreement, award or employment contract."]
[null,"Part-year","Did not work the full 12 months prior to the date chosen for the workplace profile data."]
["Remuneration","Annualised","If an employee has not worked the full 12 months prior to the date chosen for the workplace profile, the employee’s salary needs to be calculated as if the employee had worked the full 12 months. This is referred to as the annualised salary."]
[null,"Full-Time Equivalent (FTE) fraction","Option 1","Please copy and paste the employee's FTE fraction provided in the employer's system.  "]
[null,null,"Option 2","If an employee has not worked full-time hours during the 12 months prior to the date chosen for the workplace profile, calculate the employee’s salary as if the employee had worked full-time hours. \n\nThe number of total hours worked for the year, divided by the maximum number of hours in a full-time schedule for the year as defined by law for your organisation. For example, if the normal schedule for a year is defined as 1824 hours (38 hrs per week * 48 weeks per year), someone who works 30 hours per week for the whole year could have an FTE of 0.78 (30 hrs per week * 48 weeks per year = 1440/1824). Someone who works 30 hours per week for part of the year (e.g. 40 weeks)  would have an FTE of  0.66 (30 hours per week * 40 weeks per year = 1200/1824)."]
[null,"Pro-rata","A proportional amount of earnings based on an employee's employment status (for example, part-time or casual), or based on the duration of their employment.The earnings amount needs to be converted to the FTE amount, as if the employee had worked full-time hours, and/or annualised as if the employee had worked for the full 12 months covered in your report. "]
[null,"Fixed","The actual amount paid, for example a one-off payment that is not paid at a proportional rate based on an employees conditions of employment. These amounts do not need to be converted to an FTE or annualised amount. "]
[null,"Ordinary hours in a working week","Your organisation's standard \"full-time\" number of hours per week, for example 37.5 hours, 38 hours or 40 hours."]
[null,"Base salary","The annual salary before tax including all salary sacrificed items but excluding allowances, superannuation and any other additional payments. It is the minimum earnings before tax, also known as gross base salary."]
[null,"Total remuneration","Includes base salary plus any additional benefits whether payable directly or indirectly, whether in cash or in a form other than cash. It includes bonus payments (including performance pay), superannuation, discretionary pay, overtime, allowances and any other additional payments (for example share allocations)."]
[null,"Bonus/performance pay","A payment in addition to base salary that is usually communicated with the employee at the beginning of a period, for example an annual target incentive. It is performance related and based on a performance management process. Payment is usually made on an annual basis."]
[null,"Superannuation","A payment to an employee’s regulated benefit fund available for her/him in retirement. Employers are required by law to pay a proportion of an employee's salary and wages into a superannuation fund. This is the amount contributed by the employer to the employee’s defined contribution (or defined benefit) fund."]
[null,"Discretionary pay","A payment over and above the requirements of the position that is not part of the performance pay system. Sometimes referred to as “ad-hoc”, it is not normally quantified in advance and is usually paid after the event."]
[null,"Overtime","A payment in addition to base salary made to employees when they are required to work more than the ordinary hours of work or outside the ordinary spread of hours."]
[null,"Allowances","Other payments made in addition to base salary, for example first-aid and meal allowances."]

{"sheet":"Part-time| Contract| Part-year","index":2,"n_rows":0,"n_cols":0,"rows_kept":0,"cut":false,"hidden":false,"merged":[],"read":"part_too_large"}

{"sheet":"Casual","index":3,"n_rows":498577,"n_cols":13,"rows_kept":4500,"cut":true,"hidden":false,"merged":[[0,0,0,11],[1,1,1,8],[1,9,1,11],[2,0,3,0],[2,1,3,1],[2,2,3,2],[2,3,3,3],[2,4,3,4],[2,5,3,5],[2,6,3,6],[2,7,3,7],[2,8,3,8],[2,9,3,9],[2,11,3,11],[2,10,3,10]],"bounds":{"rows_first":2000,"rows_last":500,"rows_between":2000,"halvings":0}}
["This calculator converts the base salary and total remuneration of a casual employee to annualised full-time equivalent amounts."]
[null,"1. Input your data below\n(based on actual earnings and actual hours worked)\n\n* for the 12 months prior to the date chosen for the workplace profile data.",null,null,null,null,null,null,null,"2. Copy and paste the values below\nin your workplace profile"]
["Employee unique identifier","Total base salary paid \nfor the 12 months* (includes casual loading)\n($)","Total bonus paid for the 12 months*\n($)","Total superannuation paid for the 12 months*\n($)","Total discretionary pay for the 12 months*\n($)","Total overtime paid for the 12 months* \n($)","Total other allowances paid for the 12 months*\n($)","Total hours worked \nfor the 12 months*\n\n(Insert the total number of hours that the employee actually worked  in the 12 months*)","Ordinary days or hours \nin a working week\n\n(Insert your organisation's standard \"full-time\" number of hours per week e.g. 38 hours, 37.5 hours, 35 hours)","Annualised full-time equivalent base salary  ($)","Fixed Remuneration ($)","Annualised full-time equivalent total remuneration  ($)","FTE hours in year "]
[null,null,null,null,null,null,null,null,null,null,null,null,"Excel formula:  =(I7*52)"]
[null,null,null,null,null,null,null,null,null,{"$f":"IFERROR(((($B5/$H5)*$M5)),0)","v":0},{"$f":"F5+G5+E5","v":0},{"$f":"IFERROR((($B5/$H5)*$M5)+(($C5/$H5)*$M5)+(($D5/$H5)*$M5)+($E5)+($G5)+($F5),0)","v":0},{"$f":"($I5*52)","v":0}]
[null,null,null,null,null,null,null,null,null,{"$f":"IFERROR(((($B6/$H6)*$M6)),0)","v":0},{"$f":"F6+G6+E6","v":0},{"$f":"IFERROR((($B6/$H6)*$M6)+(($C6/$H6)*$M6)+(($D6/$H6)*$M6)+($E6)+($G6)+($F6),0)","v":0},{"$f":"($I6*52)","v":0}]
[null,null,null,null,null,null,null,null,null,0,0,0,0]
[null,null,null,null,null,null,null,null,null,0,0,0,0]
[null,null,null,null,null,null,null,null,null,0,0,0,0]
[null,null,null,null,null,null,null,null,null,0,0,0,0]
[null,null,null,null,null,null,null,null,null,0,0,0,0]
[null,null,null,null,null,null,null,null,null,0,{"$f":"F12+G12+E12","v":0},0,0]
[null,null,null,null,null,null,null,null,null,0,0,0,0]
[null,null,null,null,null,null,null,null,null,0,0,0,0]
[null,null,null,null,null,null,null,null,null,0,0,0,0]
[null,null,null,null,null,null,null,null,null,0,0,0,0]
[null,null,null,null,null,null,null,null,null,0,0,0,0]
[null,null,null,null,null,null,null,null,null,0,0,0,0]
[null,null,null,null,null,null,null,null,null,0,0,0,0]
[null,null,null,null,null,null,null,null,null,0,0,0,0]
[null,null,null,null,null,null,null,null,null,0,0,0,0]
[null,null,null,null,null,null,null,null,null,0,0,0,0]
[null,null,null,null,null,null,null,null,null,0,0,0,0]
[null,null,null,null,null,null,null,null,null,0,0,0,0]
[null,null,null,null,null,null,null,null,null,0,0,0,0]
[null,null,null,null,null,null,null,null,null,0,0,0,0]
[null,null,null,null,null,null,null,null,null,0,0,0,0]
[null,null,null,null,null,null,null,null,null,0,0,0,0]
[null,null,null,null,null,null,null,null,null,0,0,0,0]
[null,null,null,null,null,null,null,null,null,0,0,0,0]
[null,null,null,null,null,null,null,null,null,0,0,0,0]
[null,null,null,null,null,null,null,null,null,0,0,0,0]
[null,null,null,null,null,null,null,null,null,0,0,0,0]
[null,null,null,null,null,null,null,null,null,0,0,0,0]
[null,null,null,null,null,null,null,null,null,0,0,0,0]
[null,null,null,null,null,null,null,null,null,0,0,0,0]
[null,null,null,null,null,null,null,null,null,0,0,0,0]
[null,null,null,null,null,null,null,null,null,0,0,0,0]
[null,null,null,null,null,null,null,null,null,0,0,0,0]
[null,null,null,null,null,null,null,null,null,0,0,0,0]
[null,null,null,null,null,null,null,null,null,0,0,0,0]
[null,null,null,null,null,null,null,null,null,0,0,0,0]
[null,null,null,null,null,null,null,null,null,0,0,0,0]
[null,null,null,null,null,null,null,null,null,0,0,0,0]
[null,null,null,null,null,null,null,null,null,0,0,0,0]
[null,null,null,null,null,null,null,null,null,0,0,0,0]
[null,null,null,null,null,null,null,null,null,0,0,0,0]
[null,null,null,null,null,null,null,null,null,0,0,0,0]
[null,null,null,null,null,null,null,null,null,0,0,0,0]
[null,null,null,null,null,null,null,null,null,0,0,0,0]
[null,null,null,null,null,null,null,null,null,0,0,0,0]
[null,null,null,null,null,null,null,null,null,0,0,0,0]
[null,null,null,null,null,null,null,null,null,0,0,0,0]
[null,null,null,null,null,null,null,null,null,0,0,0,0]
[null,null,null,null,null,null,null,null,null,0,0,0,0]
[null,null,null,null,null,null,null,null,null,0,0,0,0]
[null,null,null,null,null,null,null,null,null,0,0,0,0]
[null,null,null,null,null,null,null,null,null,0,0,0,0]
[null,null,null,null,null,null,null,null,null,0,0,0,0]
[null,null,null,null,null,null,null,null,null,0,0,0,0]
[null,null,null,null,null,null,null,null,null,0,0,0,0]
[null,null,null,null,null,null,null,null,null,0,0,0,0]
[null,null,null,null,null,null,null,null,null,0,0,0,0]
[null,null,null,null,null,null,null,null,null,0,0,0,0]
[null,null,null,null,null,null,null,null,null,0,0,0,0]
[null,null,null,null,null,null,null,null,null,0,0,0,0]
[null,null,null,null,null,null,null,null,null,0,0,0,0]
[null,null,null,null,null,null,null,null,null,0,0,0,0]
[null,null,null,null,null,null,null,null,null,0,0,0,0]
[null,null,null,null,null,null,null,null,null,{"$f":"IFERROR(((($B70/$H70)*$M70)),0)","v":0},{"$f":"F70+G70+E70","v":0},{"$f":"IFERROR((($B70/$H70)*$M70)+(($C70/$H70)*$M70)+(($D70/$H70)*$M70)+($E70)+($G70)+($F70),0)","v":0},{"$f":"($I70*52)","v":0}]
[null,null,null,null,null,null,null,null,null,0,0,0,0]
[null,null,null,null,null,null,null,null,null,0,0,0,0]
[null,null,null,null,null,null,null,null,null,0,0,0,0]
[null,null,null,null,null,null,null,null,null,0,0,0,0]
[null,null,null,null,null,null,null,null,null,0,0,0,0]
[null,null,null,null,null,null,null,null,null,0,0,0,0]
[null,null,null,null,null,null,null,null,null,0,0,0,0]
[null,null,null,null,null,null,null,null,null,0,0,0,0]
[null,null,null,null,null,null,null,null,null,0,0,0,0]
[null,null,null,null,null,null,null,null,null,0,0,0,0]
[null,null,null,null,null,null,null,null,null,0,0,0,0]
[null,null,null,null,null,null,null,null,null,0,0,0,0]
[null,null,null,null,null,null,null,null,null,0,0,0,0]
[null,null,null,null,null,null,null,null,null,0,0,0,0]
[null,null,null,null,null,null,null,null,null,0,0,0,0]
[null,null,null,null,null,null,null,null,null,0,0,0,0]
[null,null,null,null,null,null,null,null,null,0,0,0,0]
[null,null,null,null,null,null,null,null,null,0,0,0,0]
[null,null,null,null,null,null,null,null,null,0,0,0,0]
[null,null,null,null,null,null,null,null,null,0,0,0,0]
[null,null,null,null,null,null,null,null,null,0,0,0,0]
[null,null,null,null,null,null,null,null,null,0,0,0,0]
[null,null,null,null,null,null,null,null,null,0,0,0,0]
[null,null,null,null,null,null,null,null,null,0,0,0,0]
[null,null,null,null,null,null,null,null,null,0,0,0,0]
[null,null,null,null,null,null,null,null,null,0,0,0,0]
[null,null,null,null,null,null,null,null,null,0,0,0,0]
[null,null,null,null,null,null,null,null,null,0,0,0,0]
[null,null,null,null,null,null,null,null,null,0,0,0,0]
[null,null,null,null,null,null,null,null,null,0,0,0,0]
[null,null,null,null,null,null,null,null,null,0,0,0,0]
[null,null,null,null,null,null,null,null,null,0,0,0,0]
[null,null,null,null,null,null,null,null,null,0,0,0,0]
[null,null,null,null,null,null,null,null,null,0,0,0,0]
[null,null,null,null,null,null,null,null,null,0,0,0,0]
[null,null,null,null,null,null,null,null,null,0,0,0,0]
[null,null,null,null,null,null,null,null,null,0,0,0,0]
[null,null,null,null,null,null,null,null,null,0,0,0,0]
[null,null,null,null,null,null,null,null,null,0,0,0,0]
[null,null,null,null,null,null,null,null,null,0,0,0,0]
[null,null,null,null,null,null,null,null,null,0,0,0,0]
[null,null,null,null,null,null,null,null,null,0,0,0,0]
[null,null,null,null,null,null,null,null,null,0,0,0,0]
[null,null,null,null,null,null,null,null,null,0,0,0,0]
[null,null,null,null,null,null,null,null,null,0,0,0,0]
[null,null,null,null,null,null,null,null,null,0,0,0,0]
[null,null,null,null,null,null,null,null,null,0,0,0,0]
[null,null,null,null,null,null,null,null,null,0,0,0,0]
[null,null,null,null,null,null,null,null,null,0,0,0,0]
[null,null,null,null,null,null,null,null,null,0,0,0,0]
[null,null,null,null,null,null,null,null,null,0,0,0,0]
[null,null,null,null,null,null,null,null,null,0,0,0,0]
[null,null,null,null,null,null,null,null,null,0,0,0,0]
[null,null,null,null,null,null,null,null,null,0,0,0,0]
[null,null,null,null,null,null,null,null,null,0,0,0,0]
[null,null,null,null,null,null,null,null,null,0,0,0,0]
[null,null,null,null,null,null,null,null,null,0,0,0,0]
[null,null,null,null,null,null,null,null,null,0,0,0,0]
[null,null,null,null,null,null,null,null,null,0,0,0,0]
[null,null,null,null,null,null,null,null,null,0,0,0,0]
[null,null,null,null,null,null,null,null,null,0,0,0,0]
[null,null,null,null,null,null,null,null,null,0,0,0,0]
[null,null,null,null,null,null,null,null,null,0,0,0,0]
[null,null,null,null,null,null,null,null,null,{"$f":"IFERROR(((($B134/$H134)*$M134)),0)","v":0},{"$f":"F134+G134+E134","v":0},{"$f":"IFERROR((($B134/$H134)*$M134)+(($C134/$H134)*$M134)+(($D134/$H134)*$M134)+($E134)+($G134)+($F134),0)","v":0},{"$f":"($I134*52)","v":0}]
[null,null,null,null,null,null,null,null,null,0,0,0,0]
[null,null,null,null,null,null,null,null,null,0,0,0,0]
[null,null,null,null,null,null,null,null,null,0,0,0,0]
[null,null,null,null,null,null,null,null,null,0,0,0,0]
[null,null,null,null,null,null,null,null,null,0,0,0,0]
[null,null,null,null,null,null,null,null,null,0,0,0,0]
[null,null,null,null,null,null,null,null,null,0,0,0,0]
[null,null,null,null,null,null,null,null,null,0,0,0,0]
[null,null,null,null,null,null,null,null,null,0,0,0,0]
[null,null,null,null,null,null,null,null,null,0,0,0,0]
[null,null,null,null,null,null,null,null,null,0,0,0,0]
[null,null,null,null,null,null,null,null,null,0,0,0,0]
[null,null,null,null,null,null,null,null,null,0,0,0,0]
[null,null,null,null,null,null,null,null,null,0,0,0,0]
[null,null,null,null,null,null,null,null,null,0,0,0,0]
[null,null,null,null,null,null,null,null,null,0,0,0,0]
[null,null,null,null,null,null,null,null,null,0,0,0,0]
[null,null,null,null,null,null,null,null,null,0,0,0,0]
[null,null,null,null,null,null,null,null,null,0,0,0,0]
[null,null,null,null,null,null,null,null,null,0,0,0,0]
[null,null,null,null,null,null,null,null,null,0,0,0,0]
[null,null,null,null,null,null,null,null,null,0,0,0,0]
[null,null,null,null,null,null,null,null,null,0,0,0,0]
[null,null,null,null,null,null,null,null,null,0,0,0,0]
[null,null,null,null,null,null,null,null,null,0,0,0,0]
[null,null,null,null,null,null,null,null,null,0,0,0,0]
[null,null,null,null,null,null,null,null,null,0,0,0,0]
[null,null,null,null,null,null,null,null,null,0,0,0,0]
[null,null,null,null,null,null,null,null,null,0,0,0,0]
[null,null,null,null,null,null,null,null,null,0,0,0,0]
[null,null,null,null,null,null,null,null,null,0,0,0,0]
[null,null,null,null,null,null,null,null,null,0,0,0,0]
[null,null,null,null,null,null,null,null,null,0,0,0,0]
[null,null,null,null,null,null,null,null,null,0,0,0,0]
[null,null,null,null,null,null,null,null,null,0,0,0,0]
[null,null,null,null,null,null,null,null,null,0,0,0,0]
[null,null,null,null,null,null,null,null,null,0,0,0,0]
[null,null,null,null,null,null,null,null,null,0,0,0,0]
[null,null,null,null,null,null,null,null,null,0,0,0,0]
[null,null,null,null,null,null,null,null,null,0,0,0,0]
[null,null,null,null,null,null,null,null,null,0,0,0,0]
[null,null,null,null,null,null,null,null,null,0,0,0,0]
[null,null,null,null,null,null,null,null,null,0,0,0,0]
[null,null,null,null,null,null,null,null,null,0,0,0,0]
[null,null,null,null,null,null,null,null,null,0,0,0,0]
[null,null,null,null,null,null,null,null,null,0,0,0,0]
[null,null,null,null,null,null,null,null,null,0,0,0,0]
[null,null,null,null,null,null,null,null,null,0,0,0,0]
[null,null,null,null,null,null,null,null,null,0,0,0,0]
[null,null,null,null,null,null,null,null,null,0,0,0,0]
[null,null,null,null,null,null,null,null,null,0,0,0,0]
[null,null,null,null,null,null,null,null,null,0,0,0,0]
[null,null,null,null,null,null,null,null,null,0,0,0,0]
[null,null,null,null,null,null,null,null,null,0,0,0,0]
[null,null,null,null,null,null,null,null,null,0,0,0,0]
[null,null,null,null,null,null,null,null,null,0,0,0,0]
[null,null,null,null,null,null,null,null,null,0,0,0,0]
[null,null,null,null,null,null,null,null,null,0,0,0,0]
[null,null,null,null,null,null,null,null,null,0,0,0,0]
[null,null,null,null,null,null,null,null,null,0,0,0,0]
[null,null,null,null,null,null,null,null,null,0,0,0,0]
[null,null,null,null,null,null,null,null,null,0,0,0,0]
[null,null,null,null,null,null,null,null,null,0,0,0,0]
[null,null,null,null,null,null,null,null,null,{"$f":"IFERROR(((($B198/$H198)*$M198)),0)","v":0},{"$f":"F198+G198+E198","v":0},{"$f":"IFERROR((($B198/$H198)*$M198)+(($C198/$H198)*$M198)+(($D198/$H198)*$M198)+($E198)+($G198)+($F198),0)","v":0},{"$f":"($I198*52)","v":0}]
[null,null,null,null,null,null,null,null,null,0,0,0,0]
[null,null,null,null,null,null,null,null,null,0,0,0,0]
[null,null,null,null,null,null,null,null,null,0,0,0,0]
[null,null,null,null,null,null,null,null,null,0,0,0,0]
[null,null,null,null,null,null,null,null,null,0,0,0,0]
[null,null,null,null,null,null,null,null,null,0,0,0,0]
[null,null,null,null,null,null,null,null,null,0,0,0,0]
[null,null,null,null,null,null,null,null,null,0,0,0,0]
[null,null,null,null,null,null,null,null,null,0,0,0,0]
[null,null,null,null,null,null,null,null,null,0,0,0,0]
[null,null,null,null,null,null,null,null,null,0,0,0,0]
[null,null,null,null,null,null,null,null,null,0,0,0,0]
[null,null,null,null,null,null,null,null,null,0,0,0,0]
[null,null,null,null,null,null,null,null,null,0,0,0,0]
[null,null,null,null,null,null,null,null,null,0,0,0,0]
[null,null,null,null,null,null,null,null,null,0,0,0,0]
[null,null,null,null,null,null,null,null,null,0,0,0,0]
[null,null,null,null,null,null,null,null,null,0,0,0,0]
[null,null,null,null,null,null,null,null,null,0,0,0,0]
[null,null,null,null,null,null,null,null,null,0,0,0,0]
[null,null,null,null,null,null,null,null,null,0,0,0,0]
[null,null,null,null,null,null,null,null,null,0,0,0,0]
[null,null,null,null,null,null,null,null,null,0,0,0,0]
[null,null,null,null,null,null,null,null,null,0,0,0,0]
[null,null,null,null,null,null,null,null,null,0,0,0,0]
[null,null,null,null,null,null,null,null,null,0,0,0,0]
[null,null,null,null,null,null,null,null,null,0,0,0,0]
[null,null,null,null,null,null,null,null,null,0,0,0,0]
[null,null,null,null,null,null,null,null,null,0,0,0,0]
[null,null,null,null,null,null,null,null,null,0,0,0,0]
[null,null,null,null,null,null,null,null,null,0,0,0,0]
[null,null,null,null,null,null,null,null,null,0,0,0,0]
[null,null,null,null,null,null,null,null,null,0,0,0,0]
[null,null,null,null,null,null,null,null,null,0,0,0,0]
[null,null,null,null,null,null,null,null,null,0,0,0,0]
[null,null,null,null,null,null,null,null,null,0,0,0,0]
[null,null,null,null,null,null,null,null,null,0,0,0,0]
[null,null,null,null,null,null,null,null,null,0,0,0,0]
[null,null,null,null,null,null,null,null,null,0,0,0,0]
[null,null,null,null,null,null,null,null,null,0,0,0,0]
[null,null,null,null,null,null,null,null,null,0,0,0,0]
[null,null,null,null,null,null,null,null,null,0,0,0,0]
[null,null,null,null,null,null,null,null,null,0,0,0,0]
[null,null,null,null,null,null,null,null,null,0,0,0,0]
[null,null,null,null,null,null,null,null,null,0,0,0,0]
[null,null,null,null,null,null,null,null,null,0,0,0,0]
[null,null,null,null,null,null,null,null,null,0,0,0,0]
[null,null,null,null,null,null,null,null,null,0,0,0,0]
[null,null,null,null,null,null,null,null,null,0,0,0,0]
[null,null,null,null,null,null,null,null,null,0,0,0,0]
[null,null,null,null,null,null,null,null,null,0,0,0,0]
[null,null,null,null,null,null,null,null,null,0,0,0,0]
[null,null,null,null,null,null,null,null,null,0,0,0,0]
[null,null,null,null,null,null,null,null,null,0,0,0,0]
[null,null,null,null,null,null,null,null,null,0,0,0,0]
[null,null,null,null,null,null,null,null,null,0,0,0,0]
[null,null,null,null,null,null,null,null,null,0,0,0,0]
[null,null,null,null,null,null,null,null,null,0,0,0,0]
[null,null,null,null,null,null,null,null,null,0,0,0,0]
[null,null,null,null,null,null,null,null,null,0,0,0,0]
[null,null,null,null,null,null,null,null,null,0,0,0,0]
[null,null,null,null,null,null,null,null,null,0,0,0,0]
[null,null,null,null,null,null,null,null,null,0,0,0,0]
[null,null,null,null,null,null,null,null,null,{"$f":"IFERROR(((($B262/$H262)*$M262)),0)","v":0},{"$f":"F262+G262+E262","v":0},{"$f":"IFERROR((($B262/$H262)*$M262)+(($C262/$H262)*$M262)+(($D262/$H262)*$M262)+($E262)+($G262)+($F262),0)","v":0},{"$f":"($I262*52)","v":0}]
[null,null,null,null,null,null,null,null,null,0,0,0,0]
[null,null,null,null,null,null,null,null,null,0,0,0,0]
[null,null,null,null,null,null,null,null,null,0,0,0,0]
[null,null,null,null,null,null,null,null,null,0,0,0,0]
[null,null,null,null,null,null,null,null,null,0,0,0,0]
[null,null,null,null,null,null,null,null,null,0,0,0,0]
[null,null,null,null,null,null,null,null,null,0,0,0,0]
[null,null,null,null,null,null,null,null,null,0,0,0,0]
[null,null,null,null,null,null,null,null,null,0,0,0,0]
[null,null,null,null,null,null,null,null,null,0,0,0,0]
[null,null,null,null,null,null,null,null,null,0,0,0,0]
[null,null,null,null,null,null,null,null,null,0,0,0,0]
[null,null,null,null,null,null,null,null,null,0,0,0,0]
[null,null,null,null,null,null,null,null,null,0,0,0,0]
[null,null,null,null,null,null,null,null,null,0,0,0,0]
[null,null,null,null,null,null,null,null,null,0,0,0,0]
[null,null,null,null,null,null,null,null,null,0,0,0,0]
[null,null,null,null,null,null,null,null,null,0,0,0,0]
[null,null,null,null,null,null,null,null,null,0,0,0,0]
[null,null,null,null,null,null,null,null,null,0,0,0,0]
[null,null,null,null,null,null,null,null,null,0,0,0,0]
[null,null,null,null,null,null,null,null,null,0,0,0,0]
[null,null,null,null,null,null,null,null,null,0,0,0,0]
[null,null,null,null,null,null,null,null,null,0,0,0,0]
[null,null,null,null,null,null,null,null,null,0,0,0,0]
[null,null,null,null,null,null,null,null,null,0,0,0,0]
[null,null,null,null,null,null,null,null,null,0,0,0,0]
[null,null,null,null,null,null,null,null,null,0,0,0,0]
[null,null,null,null,null,null,null,null,null,0,0,0,0]
[null,null,null,null,null,null,null,null,null,0,0,0,0]
[null,null,null,null,null,null,null,null,null,0,0,0,0]
[null,null,null,null,null,null,null,null,null,0,0,0,0]
[null,null,null,null,null,null,null,null,null,0,0,0,0]
[null,null,null,null,null,null,null,null,null,0,0,0,0]
[null,null,null,null,null,null,null,null,null,0,0,0,0]
[null,null,null,null,null,null,null,null,null,0,0,0,0]
[null,null,null,null,null,null,null,null,null,0,0,0,0]
[null,null,null,null,null,null,null,null,null,0,0,0,0]
[null,null,null,null,null,null,null,null,null,0,0,0,0]
[null,null,null,null,null,null,null,null,null,0,0,0,0]
[null,null,null,null,null,null,null,null,null,0,0,0,0]
[null,null,null,null,null,null,null,null,null,0,0,0,0]
[null,null,null,null,null,null,null,null,null,0,0,0,0]
[null,null,null,null,null,null,null,null,null,0,0,0,0]
[null,null,null,null,null,null,null,null,null,0,0,0,0]
[null,null,null,null,null,null,null,null,null,0,0,0,0]
[null,null,null,null,null,null,null,null,null,0,0,0,0]
[null,null,null,null,null,null,null,null,null,0,0,0,0]
[null,null,null,null,null,null,null,null,null,0,0,0,0]
[null,null,null,null,null,null,null,null,null,0,0,0,0]
[null,null,null,null,null,null,null,null,null,0,0,0,0]
[null,null,null,null,null,null,null,null,null,0,0,0,0]
[null,null,null,null,null,null,null,null,null,0,0,0,0]
[null,null,null,null,null,null,null,null,null,0,0,0,0]
[null,null,null,null,null,null,null,null,null,0,0,0,0]
[null,null,null,null,null,null,null,null,null,0,0,0,0]
[null,null,null,null,null,null,null,null,null,0,0,0,0]
[null,null,null,null,null,null,null,null,null,0,0,0,0]
[null,null,null,null,null,null,null,null,null,0,0,0,0]
[null,null,null,null,null,null,null,null,null,0,0,0,0]
[null,null,null,null,null,null,null,null,null,0,0,0,0]
[null,null,null,null,null,null,null,null,null,0,0,0,0]
[null,null,null,null,null,null,null,null,null,0,0,0,0]
[null,null,null,null,null,null,null,null,null,{"$f":"IFERROR(((($B326/$H326)*$M326)),0)","v":0},{"$f":"F326+G326+E326","v":0},{"$f":"IFERROR((($B326/$H326)*$M326)+(($C326/$H326)*$M326)+(($D326/$H326)*$M326)+($E326)+($G326)+($F326),0)","v":0},{"$f":"($I326*52)","v":0}]
[null,null,null,null,null,null,null,null,null,0,0,0,0]
[null,null,null,null,null,null,null,null,null,0,0,0,0]
[null,null,null,null,null,null,null,null,null,0,0,0,0]
[null,null,null,null,null,null,null,null,null,0,0,0,0]
[null,null,null,null,null,null,null,null,null,0,0,0,0]
[null,null,null,null,null,null,null,null,null,0,0,0,0]
[null,null,null,null,null,null,null,null,null,0,0,0,0]
[null,null,null,null,null,null,null,null,null,0,0,0,0]
[null,null,null,null,null,null,null,null,null,0,0,0,0]
[null,null,null,null,null,null,null,null,null,0,0,0,0]
[null,null,null,null,null,null,null,null,null,0,0,0,0]
[null,null,null,null,null,null,null,null,null,0,0,0,0]
[null,null,null,null,null,null,null,null,null,0,0,0,0]
[null,null,null,null,null,null,null,null,null,0,0,0,0]
[null,null,null,null,null,null,null,null,null,0,0,0,0]
[null,null,null,null,null,null,null,null,null,0,0,0,0]
[null,null,null,null,null,null,null,null,null,0,0,0,0]
[null,null,null,null,null,null,null,null,null,0,0,0,0]
[null,null,null,null,null,null,null,null,null,0,0,0,0]
[null,null,null,null,null,null,null,null,null,0,0,0,0]
[null,null,null,null,null,null,null,null,null,0,0,0,0]
[null,null,null,null,null,null,null,null,null,0,0,0,0]
[null,null,null,null,null,null,null,null,null,0,0,0,0]
[null,null,null,null,null,null,null,null,null,0,0,0,0]
[null,null,null,null,null,null,null,null,null,0,0,0,0]
[null,null,null,null,null,null,null,null,null,0,0,0,0]
[null,null,null,null,null,null,null,null,null,0,0,0,0]
[null,null,null,null,null,null,null,null,null,0,0,0,0]
[null,null,null,null,null,null,null,null,null,0,0,0,0]
[null,null,null,null,null,null,null,null,null,0,0,0,0]
[null,null,null,null,null,null,null,null,null,0,0,0,0]
[null,null,null,null,null,null,null,null,null,0,0,0,0]
[null,null,null,null,null,null,null,null,null,0,0,0,0]
[null,null,null,null,null,null,null,null,null,0,0,0,0]
[null,null,null,null,null,null,null,null,null,0,0,0,0]
[null,null,null,null,null,null,null,null,null,0,0,0,0]
[null,null,null,null,null,null,null,null,null,0,0,0,0]
[null,null,null,null,null,null,null,null,null,0,0,0,0]
[null,null,null,null,null,null,null,null,null,0,0,0,0]
[null,null,null,null,null,null,null,null,null,0,0,0,0]
[null,null,null,null,null,null,null,null,null,0,0,0,0]
[null,null,null,null,null,null,null,null,null,0,0,0,0]
[null,null,null,null,null,null,null,null,null,0,0,0,0]
[null,null,null,null,null,null,null,null,null,0,0,0,0]
[null,null,null,null,null,null,null,null,null,0,0,0,0]
[null,null,null,null,null,null,null,null,null,0,0,0,0]
[null,null,null,null,null,null,null,null,null,0,0,0,0]
[null,null,null,null,null,null,null,null,null,0,0,0,0]
[null,null,null,null,null,null,null,null,null,0,0,0,0]
[null,null,null,null,null,null,null,null,null,0,0,0,0]
[null,null,null,null,null,null,null,null,null,0,0,0,0]
[null,null,null,null,null,null,null,null,null,0,0,0,0]
[null,null,null,null,null,null,null,null,null,0,0,0,0]
[null,null,null,null,null,null,null,null,null,0,0,0,0]
[null,null,null,null,null,null,null,null,null,0,0,0,0]
[null,null,null,null,null,null,null,null,null,0,0,0,0]
[null,null,null,null,null,null,null,null,null,0,0,0,0]
[null,null,null,null,null,null,null,null,null,0,0,0,0]
[null,null,null,null,null,null,null,null,null,0,0,0,0]
[null,null,null,null,null,null,null,null,null,0,0,0,0]
[null,null,null,null,null,null,null,null,null,0,0,0,0]
[null,null,null,null,null,null,null,null,null,0,0,0,0]
[null,null,null,null,null,null,null,null,null,0,0,0,0]
[null,null,null,null,null,null,null,null,null,{"$f":"IFERROR(((($B390/$H390)*$M390)),0)","v":0},{"$f":"F390+G390+E390","v":0},{"$f":"IFERROR((($B390/$H390)*$M390)+(($C390/$H390)*$M390)+(($D390/$H390)*$M390)+($E390)+($G390)+($F390),0)","v":0},{"$f":"($I390*52)","v":0}]
[null,null,null,null,null,null,null,null,null,0,0,0,0]
[null,null,null,null,null,null,null,null,null,0,0,0,0]
[null,null,null,null,null,null,null,null,null,0,0,0,0]
[null,null,null,null,null,null,null,null,null,0,0,0,0]
[null,null,null,null,null,null,null,null,null,0,0,0,0]
[null,null,null,null,null,null,null,null,null,0,0,0,0]
[null,null,null,null,null,null,null,null,null,0,0,0,0]
[null,null,null,null,null,null,null,null,null,0,0,0,0]
[null,null,null,null,null,null,null,null,null,0,0,0,0]
[null,null,null,null,null,null,null,null,null,0,0,0,0]
[null,null,null,null,null,null,null,null,null,0,0,0,0]
[null,null,null,null,null,null,null,null,null,0,0,0,0]
[null,null,null,null,null,null,null,null,null,0,0,0,0]
[null,null,null,null,null,null,null,null,null,0,0,0,0]
[null,null,null,null,null,null,null,null,null,0,0,0,0]
[null,null,null,null,null,null,null,null,null,0,0,0,0]
[null,null,null,null,null,null,null,null,null,0,0,0,0]
[null,null,null,null,null,null,null,null,null,0,0,0,0]
[null,null,null,null,null,null,null,null,null,0,0,0,0]
[null,null,null,null,null,null,null,null,null,0,0,0,0]
[null,null,null,null,null,null,null,null,null,0,0,0,0]
[null,null,null,null,null,null,null,null,null,0,0,0,0]
[null,null,null,null,null,null,null,null,null,0,0,0,0]
[null,null,null,null,null,null,null,null,null,0,0,0,0]
[null,null,null,null,null,null,null,null,null,0,0,0,0]
[null,null,null,null,null,null,null,null,null,0,0,0,0]
[null,null,null,null,null,null,null,null,null,0,0,0,0]
[null,null,null,null,null,null,null,null,null,0,0,0,0]
[null,null,null,null,null,null,null,null,null,0,0,0,0]
[null,null,null,null,null,null,null,null,null,0,0,0,0]
[null,null,null,null,null,null,null,null,null,0,0,0,0]
[null,null,null,null,null,null,null,null,null,0,0,0,0]
[null,null,null,null,null,null,null,null,null,0,0,0,0]
[null,null,null,null,null,null,null,null,null,0,0,0,0]
[null,null,null,null,null,null,null,null,null,0,0,0,0]
[null,null,null,null,null,null,null,null,null,0,0,0,0]
[null,null,null,null,null,null,null,null,null,0,0,0,0]
[null,null,null,null,null,null,null,null,null,0,0,0,0]
[null,null,null,null,null,null,null,null,null,0,0,0,0]
[null,null,null,null,null,null,null,null,null,0,0,0,0]
[null,null,null,null,null,null,null,null,null,0,0,0,0]
[null,null,null,null,null,null,null,null,null,0,0,0,0]
[null,null,null,null,null,null,null,null,null,0,0,0,0]
[null,null,null,null,null,null,null,null,null,0,0,0,0]
[null,null,null,null,null,null,null,null,null,0,0,0,0]
[null,null,null,null,null,null,null,null,null,0,0,0,0]
[null,null,null,null,null,null,null,null,null,0,0,0,0]
[null,null,null,null,null,null,null,null,null,0,0,0,0]
[null,null,null,null,null,null,null,null,null,0,0,0,0]
[null,null,null,null,null,null,null,null,null,0,0,0,0]
[null,null,null,null,null,null,null,null,null,0,0,0,0]
[null,null,null,null,null,null,null,null,null,0,0,0,0]
[null,null,null,null,null,null,null,null,null,0,0,0,0]
[null,null,null,null,null,null,null,null,null,0,0,0,0]
[null,null,null,null,null,null,null,null,null,0,0,0,0]
[null,null,null,null,null,null,null,null,null,0,0,0,0]
[null,null,null,null,null,null,null,null,null,0,0,0,0]
[null,null,null,null,null,null,null,null,null,0,0,0,0]
[null,null,null,null,null,null,null,null,null,0,0,0,0]
[null,null,null,null,null,null,null,null,null,0,0,0,0]
[null,null,null,null,null,null,null,null,null,0,0,0,0]
[null,null,null,null,null,null,null,null,null,0,0,0,0]
[null,null,null,null,null,null,null,null,null,0,0,0,0]
[null,null,null,null,null,null,null,null,null,{"$f":"IFERROR(((($B454/$H454)*$M454)),0)","v":0},{"$f":"F454+G454+E454","v":0},{"$f":"IFERROR((($B454/$H454)*$M454)+(($C454/$H454)*$M454)+(($D454/$H454)*$M454)+($E454)+($G454)+($F454),0)","v":0},{"$f":"($I454*52)","v":0}]
[null,null,null,null,null,null,null,null,null,0,0,0,0]
[null,null,null,null,null,null,null,null,null,0,0,0,0]
[null,null,null,null,null,null,null,null,null,0,0,0,0]
[null,null,null,null,null,null,null,null,null,0,0,0,0]
[null,null,null,null,null,null,null,null,null,0,0,0,0]
[null,null,null,null,null,null,null,null,null,0,0,0,0]
[null,null,null,null,null,null,null,null,null,0,0,0,0]
[null,null,null,null,null,null,null,null,null,0,0,0,0]
[null,null,null,null,null,null,null,null,null,0,0,0,0]
[null,null,null,null,null,null,null,null,null,0,0,0,0]
[null,null,null,null,null,null,null,null,null,0,0,0,0]
[null,null,null,null,null,null,null,null,null,0,0,0,0]
[null,null,null,null,null,null,null,null,null,0,0,0,0]
[null,null,null,null,null,null,null,null,null,0,0,0,0]
[null,null,null,null,null,null,null,null,null,0,0,0,0]
[null,null,null,null,null,null,null,null,null,0,0,0,0]
[null,null,null,null,null,null,null,null,null,0,0,0,0]
[null,null,null,null,null,null,null,null,null,0,0,0,0]
[null,null,null,null,null,null,null,null,null,0,0,0,0]
[null,null,null,null,null,null,null,null,null,0,0,0,0]
[null,null,null,null,null,null,null,null,null,0,0,0,0]
[null,null,null,null,null,null,null,null,null,0,0,0,0]
[null,null,null,null,null,null,null,null,null,0,0,0,0]
[null,null,null,null,null,null,null,null,null,0,0,0,0]
[null,null,null,null,null,null,null,null,null,0,0,0,0]
[null,null,null,null,null,null,null,null,null,0,0,0,0]
[null,null,null,null,null,null,null,null,null,0,0,0,0]
[null,null,null,null,null,null,null,null,null,0,0,0,0]
[null,null,null,null,null,null,null,null,null,0,0,0,0]
[null,null,null,null,null,null,null,null,null,0,0,0,0]
[null,null,null,null,null,null,null,null,null,0,0,0,0]
[null,null,null,null,null,null,null,null,null,0,0,0,0]
[null,null,null,null,null,null,null,null,null,0,0,0,0]
[null,null,null,null,null,null,null,null,null,0,0,0,0]
[null,null,null,null,null,null,null,null,null,0,0,0,0]
[null,null,null,null,null,null,null,null,null,0,0,0,0]
[null,null,null,null,null,null,null,null,null,0,0,0,0]
[null,null,null,null,null,null,null,null,null,0,0,0,0]
[null,null,null,null,null,null,null,null,null,0,0,0,0]
[null,null,null,null,null,null,null,null,null,0,0,0,0]
[null,null,null,null,null,null,null,null,null,0,0,0,0]
[null,null,null,null,null,null,null,null,null,0,0,0,0]
[null,null,null,null,null,null,null,null,null,0,0,0,0]
[null,null,null,null,null,null,null,null,null,0,0,0,0]
[null,null,null,null,null,null,null,null,null,0,0,0,0]
[null,null,null,null,null,null,null,null,null,0,0,0,0]
[null,null,null,null,null,null,null,null,null,0,0,0,0]
[null,null,null,null,null,null,null,null,null,0,0,0]
[null,null,null,null,null,null,null,null,null,0,0,0]
[null,null,null,null,null,null,null,null,null,0,0,0]
[null,null,null,null,null,null,null,null,null,0,0,0]
[null,null,null,null,null,null,null,null,null,0,0,0]
[null,null,null,null,null,null,null,null,null,0,0,0]
[null,null,null,null,null,null,null,null,null,0,0,0]
[null,null,null,null,null,null,null,null,null,0,0,0]
[null,null,null,null,null,null,null,null,null,0,0,0]
[null,null,null,null,null,null,null,null,null,0,0,0]
[null,null,null,null,null,null,null,null,null,0,0,0]
[null,null,null,null,null,null,null,null,null,0,0,0]
[null,null,null,null,null,null,null,null,null,0,0,0]
[null,null,null,null,null,null,null,null,null,0,0,0]
[null,null,null,null,null,null,null,null,null,0,0,0]
[null,null,null,null,null,null,null,null,null,0,0,0]
[null,null,null,null,null,null,null,null,null,{"$f":"IFERROR(((($B518/$H518)*$M518)),0)","v":0},{"$f":"F518+G518+E518","v":0},{"$f":"IFERROR((($B518/$H518)*$M518)+(($C518/$H518)*$M518)+(($D518/$H518)*$M518)+($E518)+($G518)+($F518),0)","v":0}]
[null,null,null,null,null,null,null,null,null,0,0,0]
[null,null,null,null,null,null,null,null,null,0,0,0]
[null,null,null,null,null,null,null,null,null,0,0,0]
[null,null,null,null,null,null,null,null,null,0,0,0]
[null,null,null,null,null,null,null,null,null,0,0,0]
[null,null,null,null,null,null,null,null,null,0,0,0]
[null,null,null,null,null,null,null,null,null,0,0,0]
[null,null,null,null,null,null,null,null,null,0,0,0]
[null,null,null,null,null,null,null,null,null,0,0,0]
[null,null,null,null,null,null,null,null,null,0,0,0]
[null,null,null,null,null,null,null,null,null,0,0,0]
[null,null,null,null,null,null,null,null,null,0,0,0]
[null,null,null,null,null,null,null,null,null,0,0,0]
[null,null,null,null,null,null,null,null,null,0,0,0]
[null,null,null,null,null,null,null,null,null,0,0,0]
[null,null,null,null,null,null,null,null,null,0,0,0]
[null,null,null,null,null,null,null,null,null,0,0,0]
[null,null,null,null,null,null,null,null,null,0,0,0]
[null,null,null,null,null,null,null,null,null,0,0,0]
[null,null,null,null,null,null,null,null,null,0,0,0]
[null,null,null,null,null,null,null,null,null,0,0,0]
[null,null,null,null,null,null,null,null,null,0,0,0]
[null,null,null,null,null,null,null,null,null,0,0,0]
[null,null,null,null,null,null,null,null,null,0,0,0]
[null,null,null,null,null,null,null,null,null,0,0,0]
[null,null,null,null,null,null,null,null,null,0,0,0]
[null,null,null,null,null,null,null,null,null,0,0,0]
[null,null,null,null,null,null,null,null,null,0,0,0]
[null,null,null,null,null,null,null,null,null,0,0,0]
[null,null,null,null,null,null,null,null,null,0,0,0]
[null,null,null,null,null,null,null,null,null,0,0,0]
[null,null,null,null,null,null,null,null,null,0,0,0]
[null,null,null,null,null,null,null,null,null,0,0,0]
[null,null,null,null,null,null,null,null,null,0,0,0]
[null,null,null,null,null,null,null,null,null,0,0,0]
[null,null,null,null,null,null,null,null,null,0,0,0]
[null,null,null,null,null,null,null,null,null,0,0,0]
[null,null,null,null,null,null,null,null,null,0,0,0]
[null,null,null,null,null,null,null,null,null,0,0,0]
[null,null,null,null,null,null,null,null,null,0,0,0]
[null,null,null,null,null,null,null,null,null,0,0,0]
[null,null,null,null,null,null,null,null,null,0,0,0]
[null,null,null,null,null,null,null,null,null,0,0,0]
[null,null,null,null,null,null,null,null,null,0,0,0]
[null,null,null,null,null,null,null,null,null,0,0,0]
[null,null,null,null,null,null,null,null,null,0,0,0]
[null,null,null,null,null,null,null,null,null,0,0,0]
[null,null,null,null,null,null,null,null,null,0,0,0]
[null,null,null,null,null,null,null,null,null,0,0,0]
[null,null,null,null,null,null,null,null,null,0,0,0]
[null,null,null,null,null,null,null,null,null,0,0,0]
[null,null,null,null,null,null,null,null,null,0,0,0]
[null,null,null,null,null,null,null,null,null,0,0,0]
[null,null,null,null,null,null,null,null,null,0,0,0]
[null,null,null,null,null,null,null,null,null,0,0,0]
[null,null,null,null,null,null,null,null,null,0,0,0]
[null,null,null,null,null,null,null,null,null,0,0,0]
[null,null,null,null,null,null,null,null,null,0,0,0]
[null,null,null,null,null,null,null,null,null,0,0,0]
[null,null,null,null,null,null,null,null,null,0,0,0]
[null,null,null,null,null,null,null,null,null,0,0,0]
[null,null,null,null,null,null,null,null,null,0,0,0]
[null,null,null,null,null,null,null,null,null,0,0,0]
[null,null,null,null,null,null,null,null,null,{"$f":"IFERROR(((($B582/$H582)*$M582)),0)","v":0},{"$f":"F582+G582+E582","v":0},{"$f":"IFERROR((($B582/$H582)*$M582)+(($C582/$H582)*$M582)+(($D582/$H582)*$M582)+($E582)+($G582)+($F582),0)","v":0}]
[null,null,null,null,null,null,null,null,null,0,0,0]
[null,null,null,null,null,null,null,null,null,0,0,0]
[null,null,null,null,null,null,null,null,null,0,0,0]
[null,null,null,null,null,null,null,null,null,0,0,0]
[null,null,null,null,null,null,null,null,null,0,0,0]
[null,null,null,null,null,null,null,null,null,0,0,0]
[null,null,null,null,null,null,null,null,null,0,0,0]
[null,null,null,null,null,null,null,null,null,0,0,0]
[null,null,null,null,null,null,null,null,null,0,0,0]
[null,null,null,null,null,null,null,null,null,0,0,0]
[null,null,null,null,null,null,null,null,null,0,0,0]
[null,null,null,null,null,null,null,null,null,0,0,0]
[null,null,null,null,null,null,null,null,null,0,0,0]
[null,null,null,null,null,null,null,null,null,0,0,0]
[null,null,null,null,null,null,null,null,null,0,0,0]
[null,null,null,null,null,null,null,null,null,0,0,0]
[null,null,null,null,null,null,null,null,null,0,0,0]
[null,null,null,null,null,null,null,null,null,0,0,0]
[null,null,null,null,null,null,null,null,null,0,0,0]
[null,null,null,null,null,null,null,null,null,0,0,0]
[null,null,null,null,null,null,null,null,null,0,0,0]
[null,null,null,null,null,null,null,null,null,0,0,0]
[null,null,null,null,null,null,null,null,null,0,0,0]
[null,null,null,null,null,null,null,null,null,0,0,0]
[null,null,null,null,null,null,null,null,null,0,0,0]
[null,null,null,null,null,null,null,null,null,0,0,0]
[null,null,null,null,null,null,null,null,null,0,0,0]
[null,null,null,null,null,null,null,null,null,0,0,0]
[null,null,null,null,null,null,null,null,null,0,0,0]
[null,null,null,null,null,null,null,null,null,0,0,0]
[null,null,null,null,null,null,null,null,null,0,0,0]
[null,null,null,null,null,null,null,null,null,0,0,0]
[null,null,null,null,null,null,null,null,null,0,0,0]
[null,null,null,null,null,null,null,null,null,0,0,0]
[null,null,null,null,null,null,null,null,null,0,0,0]
[null,null,null,null,null,null,null,null,null,0,0,0]
[null,null,null,null,null,null,null,null,null,0,0,0]
[null,null,null,null,null,null,null,null,null,0,0,0]
[null,null,null,null,null,null,null,null,null,0,0,0]
[null,null,null,null,null,null,null,null,null,0,0,0]
[null,null,null,null,null,null,null,null,null,0,0,0]
[null,null,null,null,null,null,null,null,null,0,0,0]
[null,null,null,null,null,null,null,null,null,0,0,0]
[null,null,null,null,null,null,null,null,null,0,0,0]
[null,null,null,null,null,null,null,null,null,0,0,0]
[null,null,null,null,null,null,null,null,null,0,0,0]
[null,null,null,null,null,null,null,null,null,0,0,0]
[null,null,null,null,null,null,null,null,null,0,0,0]
[null,null,null,null,null,null,null,null,null,0,0,0]
[null,null,null,null,null,null,null,null,null,0,0,0]
[null,null,null,null,null,null,null,null,null,0,0,0]
[null,null,null,null,null,null,null,null,null,0,0,0]
[null,null,null,null,null,null,null,null,null,0,0,0]
[null,null,null,null,null,null,null,null,null,0,0,0]
[null,null,null,null,null,null,null,null,null,0,0,0]
[null,null,null,null,null,null,null,null,null,0,0,0]
[null,null,null,null,null,null,null,null,null,0,0,0]
[null,null,null,null,null,null,null,null,null,0,0,0]
[null,null,null,null,null,null,null,null,null,0,0,0]
[null,null,null,null,null,null,null,null,null,0,0,0]
[null,null,null,null,null,null,null,null,null,0,0,0]
[null,null,null,null,null,null,null,null,null,0,0,0]
[null,null,null,null,null,null,null,null,null,0,0,0]
[null,null,null,null,null,null,null,null,null,{"$f":"IFERROR(((($B646/$H646)*$M646)),0)","v":0},{"$f":"F646+G646+E646","v":0},{"$f":"IFERROR((($B646/$H646)*$M646)+(($C646/$H646)*$M646)+(($D646/$H646)*$M646)+($E646)+($G646)+($F646),0)","v":0}]
[null,null,null,null,null,null,null,null,null,0,0,0]
[null,null,null,null,null,null,null,null,null,0,0,0]
[null,null,null,null,null,null,null,null,null,0,0,0]
[null,null,null,null,null,null,null,null,null,0,0,0]
[null,null,null,null,null,null,null,null,null,0,0,0]
[null,null,null,null,null,null,null,null,null,0,0,0]
[null,null,null,null,null,null,null,null,null,0,0,0]
[null,null,null,null,null,null,null,null,null,0,0,0]
[null,null,null,null,null,null,null,null,null,0,0,0]
[null,null,null,null,null,null,null,null,null,0,0,0]
[null,null,null,null,null,null,null,null,null,0,0,0]
[null,null,null,null,null,null,null,null,null,0,0,0]
[null,null,null,null,null,null,null,null,null,0,0,0]
[null,null,null,null,null,null,null,null,null,0,0,0]
[null,null,null,null,null,null,null,null,null,0,0,0]
[null,null,null,null,null,null,null,null,null,0,0,0]
[null,null,null,null,null,null,null,null,null,0,0,0]
[null,null,null,null,null,null,null,null,null,0,0,0]
[null,null,null,null,null,null,null,null,null,0,0,0]
[null,null,null,null,null,null,null,null,null,0,0,0]
[null,null,null,null,null,null,null,null,null,0,0,0]
[null,null,null,null,null,null,null,null,null,0,0,0]
[null,null,null,null,null,null,null,null,null,0,0,0]
[null,null,null,null,null,null,null,null,null,0,0,0]
[null,null,null,null,null,null,null,null,null,0,0,0]
[null,null,null,null,null,null,null,null,null,0,0,0]
[null,null,null,null,null,null,null,null,null,0,0,0]
[null,null,null,null,null,null,null,null,null,0,0,0]
[null,null,null,null,null,null,null,null,null,0,0,0]
[null,null,null,null,null,null,null,null,null,0,0,0]
[null,null,null,null,null,null,null,null,null,0,0,0]
[null,null,null,null,null,null,null,null,null,0,0,0]
[null,null,null,null,null,null,null,null,null,0,0,0]
[null,null,null,null,null,null,null,null,null,0,0,0]
[null,null,null,null,null,null,null,null,null,0,0,0]
[null,null,null,null,null,null,null,null,null,0,0,0]
[null,null,null,null,null,null,null,null,null,0,0,0]
[null,null,null,null,null,null,null,null,null,0,0,0]
[null,null,null,null,null,null,null,null,null,0,0,0]
[null,null,null,null,null,null,null,null,null,0,0,0]
[null,null,null,null,null,null,null,null,null,0,0,0]
[null,null,null,null,null,null,null,null,null,0,0,0]
[null,null,null,null,null,null,null,null,null,0,0,0]
[null,null,null,null,null,null,null,null,null,0,0,0]
[null,null,null,null,null,null,null,null,null,0,0,0]
[null,null,null,null,null,null,null,null,null,0,0,0]
[null,null,null,null,null,null,null,null,null,0,0,0]
[null,null,null,null,null,null,null,null,null,0,0,0]
[null,null,null,null,null,null,null,null,null,0,0,0]
[null,null,null,null,null,null,null,null,null,0,0,0]
[null,null,null,null,null,null,null,null,null,0,0,0]
[null,null,null,null,null,null,null,null,null,0,0,0]
[null,null,null,null,null,null,null,null,null,0,0,0]
[null,null,null,null,null,null,null,null,null,0,0,0]
[null,null,null,null,null,null,null,null,null,0,0,0]
[null,null,null,null,null,null,null,null,null,0,0,0]
[null,null,null,null,null,null,null,null,null,0,0,0]
[null,null,null,null,null,null,null,null,null,0,0,0]
[null,null,null,null,null,null,null,null,null,0,0,0]
[null,null,null,null,null,null,null,null,null,0,0,0]
[null,null,null,null,null,null,null,null,null,0,0,0]
[null,null,null,null,null,null,null,null,null,0,0,0]
[null,null,null,null,null,null,null,null,null,0,0,0]
[null,null,null,null,null,null,null,null,null,{"$f":"IFERROR(((($B710/$H710)*$M710)),0)","v":0},{"$f":"F710+G710+E710","v":0},{"$f":"IFERROR((($B710/$H710)*$M710)+(($C710/$H710)*$M710)+(($D710/$H710)*$M710)+($E710)+($G710)+($F710),0)","v":0}]
[null,null,null,null,null,null,null,null,null,0,0,0]
[null,null,null,null,null,null,null,null,null,0,0,0]
[null,null,null,null,null,null,null,null,null,0,0,0]
[null,null,null,null,null,null,null,null,null,0,0,0]
[null,null,null,null,null,null,null,null,null,0,0,0]
[null,null,null,null,null,null,null,null,null,0,0,0]
[null,null,null,null,null,null,null,null,null,0,0,0]
[null,null,null,null,null,null,null,null,null,0,0,0]
[null,null,null,null,null,null,null,null,null,0,0,0]
[null,null,null,null,null,null,null,null,null,0,0,0]
[null,null,null,null,null,null,null,null,null,0,0,0]
[null,null,null,null,null,null,null,null,null,0,0,0]
[null,null,null,null,null,null,null,null,null,0,0,0]
[null,null,null,null,null,null,null,null,null,0,0,0]
[null,null,null,null,null,null,null,null,null,0,0,0]
[null,null,null,null,null,null,null,null,null,0,0,0]
[null,null,null,null,null,null,null,null,null,0,0,0]
[null,null,null,null,null,null,null,null,null,0,0,0]
[null,null,null,null,null,null,null,null,null,0,0,0]
[null,null,null,null,null,null,null,null,null,0,0,0]
[null,null,null,null,null,null,null,null,null,0,0,0]
[null,null,null,null,null,null,null,null,null,0,0,0]
[null,null,null,null,null,null,null,null,null,0,0,0]
[null,null,null,null,null,null,null,null,null,0,0,0]
[null,null,null,null,null,null,null,null,null,0,0,0]
[null,null,null,null,null,null,null,null,null,0,0,0]
[null,null,null,null,null,null,null,null,null,0,0,0]
[null,null,null,null,null,null,null,null,null,0,0,0]
[null,null,null,null,null,null,null,null,null,0,0,0]
[null,null,null,null,null,null,null,null,null,0,0,0]
[null,null,null,null,null,null,null,null,null,0,0,0]
[null,null,null,null,null,null,null,null,null,0,0,0]
[null,null,null,null,null,null,null,null,null,0,0,0]
[null,null,null,null,null,null,null,null,null,0,0,0]
[null,null,null,null,null,null,null,null,null,0,0,0]
[null,null,null,null,null,null,null,null,null,0,0,0]
[null,null,null,null,null,null,null,null,null,0,0,0]
[null,null,null,null,null,null,null,null,null,0,0,0]
[null,null,null,null,null,null,null,null,null,0,0,0]
[null,null,null,null,null,null,null,null,null,0,0,0]
[null,null,null,null,null,null,null,null,null,0,0,0]
[null,null,null,null,null,null,null,null,null,0,0,0]
[null,null,null,null,null,null,null,null,null,0,0,0]
[null,null,null,null,null,null,null,null,null,0,0,0]
[null,null,null,null,null,null,null,null,null,0,0,0]
[null,null,null,null,null,null,null,null,null,0,0,0]
[null,null,null,null,null,null,null,null,null,0,0,0]
[null,null,null,null,null,null,null,null,null,0,0,0]
[null,null,null,null,null,null,null,null,null,0,0,0]
[null,null,null,null,null,null,null,null,null,0,0,0]
[null,null,null,null,null,null,null,null,null,0,0,0]
[null,null,null,null,null,null,null,null,null,0,0,0]
[null,null,null,null,null,null,null,null,null,0,0,0]
[null,null,null,null,null,null,null,null,null,0,0,0]
[null,null,null,null,null,null,null,null,null,0,0,0]
[null,null,null,null,null,null,null,null,null,0,0,0]
[null,null,null,null,null,null,null,null,null,0,0,0]
[null,null,null,null,null,null,null,null,null,0,0,0]
[null,null,null,null,null,null,null,null,null,0,0,0]
[null,null,null,null,null,null,null,null,null,0,0,0]
[null,null,null,null,null,null,null,null,null,0,0,0]
[null,null,null,null,null,null,null,null,null,0,0,0]
[null,null,null,null,null,null,null,null,null,0,0,0]
[null,null,null,null,null,null,null,null,null,{"$f":"IFERROR(((($B774/$H774)*$M774)),0)","v":0},{"$f":"F774+G774+E774","v":0},{"$f":"IFERROR((($B774/$H774)*$M774)+(($C774/$H774)*$M774)+(($D774/$H774)*$M774)+($E774)+($G774)+($F774),0)","v":0}]
[null,null,null,null,null,null,null,null,null,0,0,0]
[null,null,null,null,null,null,null,null,null,0,0,0]
[null,null,null,null,null,null,null,null,null,0,0,0]
[null,null,null,null,null,null,null,null,null,0,0,0]
[null,null,null,null,null,null,null,null,null,0,0,0]
[null,null,null,null,null,null,null,null,null,0,0,0]
[null,null,null,null,null,null,null,null,null,0,0,0]
[null,null,null,null,null,null,null,null,null,0,0,0]
[null,null,null,null,null,null,null,null,null,0,0,0]
[null,null,null,null,null,null,null,null,null,0,0,0]
[null,null,null,null,null,null,null,null,null,0,0,0]
[null,null,null,null,null,null,null,null,null,0,0,0]
[null,null,null,null,null,null,null,null,null,0,0,0]
[null,null,null,null,null,null,null,null,null,0,0,0]
[null,null,null,null,null,null,null,null,null,0,0,0]
[null,null,null,null,null,null,null,null,null,0,0,0]
[null,null,null,null,null,null,null,null,null,0,0,0]
[null,null,null,null,null,null,null,null,null,0,0,0]
[null,null,null,null,null,null,null,null,null,0,0,0]
[null,null,null,null,null,null,null,null,null,0,0,0]
[null,null,null,null,null,null,null,null,null,0,0,0]
[null,null,null,null,null,null,null,null,null,0,0,0]
[null,null,null,null,null,null,null,null,null,0,0,0]
[null,null,null,null,null,null,null,null,null,0,0,0]
[null,null,null,null,null,null,null,null,null,0,0,0]
[null,null,null,null,null,null,null,null,null,0,0,0]
[null,null,null,null,null,null,null,null,null,0,0,0]
[null,null,null,null,null,null,null,null,null,0,0,0]
[null,null,null,null,null,null,null,null,null,0,0,0]
[null,null,null,null,null,null,null,null,null,0,0,0]
[null,null,null,null,null,null,null,null,null,0,0,0]
[null,null,null,null,null,null,null,null,null,0,0,0]
[null,null,null,null,null,null,null,null,null,0,0,0]
[null,null,null,null,null,null,null,null,null,0,0,0]
[null,null,null,null,null,null,null,null,null,0,0,0]
[null,null,null,null,null,null,null,null,null,0,0,0]
[null,null,null,null,null,null,null,null,null,0,0,0]
[null,null,null,null,null,null,null,null,null,0,0,0]
[null,null,null,null,null,null,null,null,null,0,0,0]
[null,null,null,null,null,null,null,null,null,0,0,0]
[null,null,null,null,null,null,null,null,null,0,0,0]
[null,null,null,null,null,null,null,null,null,0,0,0]
[null,null,null,null,null,null,null,null,null,0,0,0]
[null,null,null,null,null,null,null,null,null,0,0,0]
[null,null,null,null,null,null,null,null,null,0,0,0]
[null,null,null,null,null,null,null,null,null,0,0,0]
[null,null,null,null,null,null,null,null,null,0,0,0]
[null,null,null,null,null,null,null,null,null,0,0,0]
[null,null,null,null,null,null,null,null,null,0,0,0]
[null,null,null,null,null,null,null,null,null,0,0,0]
[null,null,null,null,null,null,null,null,null,0,0,0]
[null,null,null,null,null,null,null,null,null,0,0,0]
[null,null,null,null,null,null,null,null,null,0,0,0]
[null,null,null,null,null,null,null,null,null,0,0,0]
[null,null,null,null,null,null,null,null,null,0,0,0]
[null,null,null,null,null,null,null,null,null,0,0,0]
[null,null,null,null,null,null,null,null,null,0,0,0]
[null,null,null,null,null,null,null,null,null,0,0,0]
[null,null,null,null,null,null,null,null,null,0,0,0]
[null,null,null,null,null,null,null,null,null,0,0,0]
[null,null,null,null,null,null,null,null,null,0,0,0]
[null,null,null,null,null,null,null,null,null,0,0,0]
[null,null,null,null,null,null,null,null,null,0,0,0]
[null,null,null,null,null,null,null,null,null,{"$f":"IFERROR(((($B838/$H838)*$M838)),0)","v":0},{"$f":"F838+G838+E838","v":0},{"$f":"IFERROR((($B838/$H838)*$M838)+(($C838/$H838)*$M838)+(($D838/$H838)*$M838)+($E838)+($G838)+($F838),0)","v":0}]
[null,null,null,null,null,null,null,null,null,0,0,0]
[null,null,null,null,null,null,null,null,null,0,0,0]
[null,null,null,null,null,null,null,null,null,0,0,0]
[null,null,null,null,null,null,null,null,null,0,0,0]
[null,null,null,null,null,null,null,null,null,0,0,0]
[null,null,null,null,null,null,null,null,null,0,0,0]
[null,null,null,null,null,null,null,null,null,0,0,0]
[null,null,null,null,null,null,null,null,null,0,0,0]
[null,null,null,null,null,null,null,null,null,0,0,0]
[null,null,null,null,null,null,null,null,null,0,0,0]
[null,null,null,null,null,null,null,null,null,0,0,0]
[null,null,null,null,null,null,null,null,null,0,0,0]
[null,null,null,null,null,null,null,null,null,0,0,0]
[null,null,null,null,null,null,null,null,null,0,0,0]
[null,null,null,null,null,null,null,null,null,0,0,0]
[null,null,null,null,null,null,null,null,null,0,0,0]
[null,null,null,null,null,null,null,null,null,0,0,0]
[null,null,null,null,null,null,null,null,null,0,0,0]
[null,null,null,null,null,null,null,null,null,0,0,0]
[null,null,null,null,null,null,null,null,null,0,0,0]
[null,null,null,null,null,null,null,null,null,0,0,0]
[null,null,null,null,null,null,null,null,null,0,0,0]
[null,null,null,null,null,null,null,null,null,0,0,0]
[null,null,null,null,null,null,null,null,null,0,0,0]
[null,null,null,null,null,null,null,null,null,0,0,0]
[null,null,null,null,null,null,null,null,null,0,0,0]
[null,null,null,null,null,null,null,null,null,0,0,0]
[null,null,null,null,null,null,null,null,null,0,0,0]
[null,null,null,null,null,null,null,null,null,0,0,0]
[null,null,null,null,null,null,null,null,null,0,0,0]
[null,null,null,null,null,null,null,null,null,0,0,0]
[null,null,null,null,null,null,null,null,null,0,0,0]
[null,null,null,null,null,null,null,null,null,0,0,0]
[null,null,null,null,null,null,null,null,null,0,0,0]
[null,null,null,null,null,null,null,null,null,0,0,0]
[null,null,null,null,null,null,null,null,null,0,0,0]
[null,null,null,null,null,null,null,null,null,0,0,0]
[null,null,null,null,null,null,null,null,null,0,0,0]
[null,null,null,null,null,null,null,null,null,0,0,0]
[null,null,null,null,null,null,null,null,null,0,0,0]
[null,null,null,null,null,null,null,null,null,0,0,0]
[null,null,null,null,null,null,null,null,null,0,0,0]
[null,null,null,null,null,null,null,null,null,0,0,0]
[null,null,null,null,null,null,null,null,null,0,0,0]
[null,null,null,null,null,null,null,null,null,0,0,0]
[null,null,null,null,null,null,null,null,null,0,0,0]
[null,null,null,null,null,null,null,null,null,0,0,0]
[null,null,null,null,null,null,null,null,null,0,0,0]
[null,null,null,null,null,null,null,null,null,0,0,0]
[null,null,null,null,null,null,null,null,null,0,0,0]
[null,null,null,null,null,null,null,null,null,0,0,0]
[null,null,null,null,null,null,null,null,null,0,0,0]
[null,null,null,null,null,null,null,null,null,0,0,0]
[null,null,null,null,null,null,null,null,null,0,0,0]
[null,null,null,null,null,null,null,null,null,0,0,0]
[null,null,null,null,null,null,null,null,null,0,0,0]
[null,null,null,null,null,null,null,null,null,0,0,0]
[null,null,null,null,null,null,null,null,null,0,0,0]
[null,null,null,null,null,null,null,null,null,0,0,0]
[null,null,null,null,null,null,null,null,null,0,0,0]
[null,null,null,null,null,null,null,null,null,0,0,0]
[null,null,null,null,null,null,null,null,null,0,0,0]
[null,null,null,null,null,null,null,null,null,0,0,0]
[null,null,null,null,null,null,null,null,null,{"$f":"IFERROR(((($B902/$H902)*$M902)),0)","v":0},{"$f":"F902+G902+E902","v":0},{"$f":"IFERROR((($B902/$H902)*$M902)+(($C902/$H902)*$M902)+(($D902/$H902)*$M902)+($E902)+($G902)+($F902),0)","v":0}]
[null,null,null,null,null,null,null,null,null,0,0,0]
[null,null,null,null,null,null,null,null,null,0,0,0]
[null,null,null,null,null,null,null,null,null,0,0,0]
[null,null,null,null,null,null,null,null,null,0,0,0]
[null,null,null,null,null,null,null,null,null,0,0,0]
[null,null,null,null,null,null,null,null,null,0,0,0]
[null,null,null,null,null,null,null,null,null,0,0,0]
[null,null,null,null,null,null,null,null,null,0,0,0]
[null,null,null,null,null,null,null,null,null,0,0,0]
[null,null,null,null,null,null,null,null,null,0,0,0]
[null,null,null,null,null,null,null,null,null,0,0,0]
[null,null,null,null,null,null,null,null,null,0,0,0]
[null,null,null,null,null,null,null,null,null,0,0,0]
[null,null,null,null,null,null,null,null,null,0,0,0]
[null,null,null,null,null,null,null,null,null,0,0,0]
[null,null,null,null,null,null,null,null,null,0,0,0]
[null,null,null,null,null,null,null,null,null,0,0,0]
[null,null,null,null,null,null,null,null,null,0,0,0]
[null,null,null,null,null,null,null,null,null,0,0,0]
[null,null,null,null,null,null,null,null,null,0,0,0]
[null,null,null,null,null,null,null,null,null,0,0,0]
[null,null,null,null,null,null,null,null,null,0,0,0]
[null,null,null,null,null,null,null,null,null,0,0,0]
[null,null,null,null,null,null,null,null,null,0,0,0]
[null,null,null,null,null,null,null,null,null,0,0,0]
[null,null,null,null,null,null,null,null,null,0,0,0]
[null,null,null,null,null,null,null,null,null,0,0,0]
[null,null,null,null,null,null,null,null,null,0,0,0]
[null,null,null,null,null,null,null,null,null,0,0,0]
[null,null,null,null,null,null,null,null,null,0,0,0]
[null,null,null,null,null,null,null,null,null,0,0,0]
[null,null,null,null,null,null,null,null,null,0,0,0]
[null,null,null,null,null,null,null,null,null,0,0,0]
[null,null,null,null,null,null,null,null,null,0,0,0]
[null,null,null,null,null,null,null,null,null,0,0,0]
[null,null,null,null,null,null,null,null,null,0,0,0]
[null,null,null,null,null,null,null,null,null,0,0,0]
[null,null,null,null,null,null,null,null,null,0,0,0]
[null,null,null,null,null,null,null,null,null,0,0,0]
[null,null,null,null,null,null,null,null,null,0,0,0]
[null,null,null,null,null,null,null,null,null,0,0,0]
[null,null,null,null,null,null,null,null,null,0,0,0]
[null,null,null,null,null,null,null,null,null,0,0,0]
[null,null,null,null,null,null,null,null,null,0,0,0]
[null,null,null,null,null,null,null,null,null,0,0,0]
[null,null,null,null,null,null,null,null,null,0,0,0]
[null,null,null,null,null,null,null,null,null,0,0,0]
[null,null,null,null,null,null,null,null,null,0,0,0]
[null,null,null,null,null,null,null,null,null,0,0,0]
[null,null,null,null,null,null,null,null,null,0,0,0]
[null,null,null,null,null,null,null,null,null,0,0,0]
[null,null,null,null,null,null,null,null,null,0,0,0]
[null,null,null,null,null,null,null,null,null,0,0,0]
[null,null,null,null,null,null,null,null,null,0,0,0]
[null,null,null,null,null,null,null,null,null,0,0,0]
[null,null,null,null,null,null,null,null,null,0,0,0]
[null,null,null,null,null,null,null,null,null,0,0,0]
[null,null,null,null,null,null,null,null,null,0,0,0]
[null,null,null,null,null,null,null,null,null,0,0,0]
[null,null,null,null,null,null,null,null,null,0,0,0]
[null,null,null,null,null,null,null,null,null,0,0,0]
[null,null,null,null,null,null,null,null,null,0,0,0]
[null,null,null,null,null,null,null,null,null,0,0,0]
[null,null,null,null,null,null,null,null,null,{"$f":"IFERROR(((($B966/$H966)*$M966)),0)","v":0},{"$f":"F966+G966+E966","v":0},{"$f":"IFERROR((($B966/$H966)*$M966)+(($C966/$H966)*$M966)+(($D966/$H966)*$M966)+($E966)+($G966)+($F966),0)","v":0}]
[null,null,null,null,null,null,null,null,null,0,0,0]
[null,null,null,null,null,null,null,null,null,0,0,0]
[null,null,null,null,null,null,null,null,null,0,0,0]
[null,null,null,null,null,null,null,null,null,0,0,0]
[null,null,null,null,null,null,null,null,null,0,0,0]
[null,null,null,null,null,null,null,null,null,0,0,0]
[null,null,null,null,null,null,null,null,null,0,0,0]
[null,null,null,null,null,null,null,null,null,0,0,0]
[null,null,null,null,null,null,null,null,null,0,0,0]
[null,null,null,null,null,null,null,null,null,0,0,0]
[null,null,null,null,null,null,null,null,null,0,0,0]
[null,null,null,null,null,null,null,null,null,0,0,0]
[null,null,null,null,null,null,null,null,null,0,0,0]
[null,null,null,null,null,null,null,null,null,0,0,0]
[null,null,null,null,null,null,null,null,null,0,0,0]
[null,null,null,null,null,null,null,null,null,0,0,0]
[null,null,null,null,null,null,null,null,null,0,0,0]
[null,null,null,null,null,null,null,null,null,0,0,0]
[null,null,null,null,null,null,null,null,null,0,0,0]
[null,null,null,null,null,null,null,null,null,0,0,0]
[null,null,null,null,null,null,null,null,null,0,0,0]
[null,null,null,null,null,null,null,null,null,0,0,0]
[null,null,null,null,null,null,null,null,null,0,0,0]
[null,null,null,null,null,null,null,null,null,0,0,0]
[null,null,null,null,null,null,null,null,null,0,0,0]
[null,null,null,null,null,null,null,null,null,0,0,0]
[null,null,null,null,null,null,null,null,null,0,0,0]
[null,null,null,null,null,null,null,null,null,0,0,0]
[null,null,null,null,null,null,null,null,null,0,0,0]
[null,null,null,null,null,null,null,null,null,0,0,0]
[null,null,null,null,null,null,null,null,null,0,0,0]
[null,null,null,null,null,null,null,null,null,0,0,0]
[null,null,null,null,null,null,null,null,null,0,0,0]
[null,null,null,null,null,null,null,null,null,0,0,0]
[null,null,null,null,null,null,null,null,null,0,0,0]
[null,null,null,null,null,null,null,null,null,0,0,0]
[null,null,null,null,null,null,null,null,null,0,0,0]
[null,null,null,null,null,null,null,null,null,0,0,0]
[null,null,null,null,null,null,null,null,null,0,0,0]
[null,null,null,null,null,null,null,null,null,0,0,0]
[null,null,null,null,null,null,null,null,null,0,0,0]
[null,null,null,null,null,null,null,null,null,0,0,0]
[null,null,null,null,null,null,null,null,null,0,0,0]
[null,null,null,null,null,null,null,null,null,0,0,0]
[null,null,null,null,null,null,null,null,null,0,0,0]
[null,null,null,null,null,null,null,null,null,0,0,0]
[null,null,null,null,null,null,null,null,null,0,0,0]
[null,null,null,null,null,null,null,null,null,0,0,0]
[null,null,null,null,null,null,null,null,null,0,0,0]
[null,null,null,null,null,null,null,null,null,0,0,0]
[null,null,null,null,null,null,null,null,null,0,0,0]
[null,null,null,null,null,null,null,null,null,0,0,0]
[null,null,null,null,null,null,null,null,null,0,0,0]
[null,null,null,null,null,null,null,null,null,0,0,0]
[null,null,null,null,null,null,null,null,null,0,0,0]
[null,null,null,null,null,null,null,null,null,0,0,0]
[null,null,null,null,null,null,null,null,null,0,0,0]
[null,null,null,null,null,null,null,null,null,0,0,0]
[null,null,null,null,null,null,null,null,null,0,0,0]
[null,null,null,null,null,null,null,null,null,0,0,0]
[null,null,null,null,null,null,null,null,null,0,0,0]
[null,null,null,null,null,null,null,null,null,0,0,0]
[null,null,null,null,null,null,null,null,null,0,0,0]
[null,null,null,null,null,null,null,null,null,{"$f":"IFERROR(((($B1030/$H1030)*$M1030)),0)","v":0},{"$f":"F1030+G1030+E1030","v":0},{"$f":"IFERROR((($B1030/$H1030)*$M1030)+(($C1030/$H1030)*$M1030)+(($D1030/$H1030)*$M1030)+($E1030)+($G1030)+($F1030),0)","v":0}]
[null,null,null,null,null,null,null,null,null,0,0,0]
[null,null,null,null,null,null,null,null,null,0,0,0]
[null,null,null,null,null,null,null,null,null,0,0,0]
[null,null,null,null,null,null,null,null,null,0,0,0]
[null,null,null,null,null,null,null,null,null,0,0,0]
[null,null,null,null,null,null,null,null,null,0,0,0]
[null,null,null,null,null,null,null,null,null,0,0,0]
[null,null,null,null,null,null,null,null,null,0,0,0]
[null,null,null,null,null,null,null,null,null,0,0,0]
[null,null,null,null,null,null,null,null,null,0,0,0]
[null,null,null,null,null,null,null,null,null,0,0,0]
[null,null,null,null,null,null,null,null,null,0,0,0]
[null,null,null,null,null,null,null,null,null,0,0,0]
[null,null,null,null,null,null,null,null,null,0,0,0]
[null,null,null,null,null,null,null,null,null,0,0,0]
[null,null,null,null,null,null,null,null,null,0,0,0]
[null,null,null,null,null,null,null,null,null,0,0,0]
[null,null,null,null,null,null,null,null,null,0,0,0]
[null,null,null,null,null,null,null,null,null,0,0,0]
[null,null,null,null,null,null,null,null,null,0,0,0]
[null,null,null,null,null,null,null,null,null,0,0,0]
[null,null,null,null,null,null,null,null,null,0,0,0]
[null,null,null,null,null,null,null,null,null,0,0,0]
[null,null,null,null,null,null,null,null,null,0,0,0]
[null,null,null,null,null,null,null,null,null,0,0,0]
[null,null,null,null,null,null,null,null,null,0,0,0]
[null,null,null,null,null,null,null,null,null,0,0,0]
[null,null,null,null,null,null,null,null,null,0,0,0]
[null,null,null,null,null,null,null,null,null,0,0,0]
[null,null,null,null,null,null,null,null,null,0,0,0]
[null,null,null,null,null,null,null,null,null,0,0,0]
[null,null,null,null,null,null,null,null,null,0,0,0]
[null,null,null,null,null,null,null,null,null,0,0,0]
[null,null,null,null,null,null,null,null,null,0,0,0]
[null,null,null,null,null,null,null,null,null,0,0,0]
[null,null,null,null,null,null,null,null,null,0,0,0]
[null,null,null,null,null,null,null,null,null,0,0,0]
[null,null,null,null,null,null,null,null,null,0,0,0]
[null,null,null,null,null,null,null,null,null,0,0,0]
[null,null,null,null,null,null,null,null,null,0,0,0]
[null,null,null,null,null,null,null,null,null,0,0,0]
[null,null,null,null,null,null,null,null,null,0,0,0]
[null,null,null,null,null,null,null,null,null,0,0,0]
[null,null,null,null,null,null,null,null,null,0,0,0]
[null,null,null,null,null,null,null,null,null,0,0,0]
[null,null,null,null,null,null,null,null,null,0,0,0]
[null,null,null,null,null,null,null,null,null,0,0,0]
[null,null,null,null,null,null,null,null,null,0,0,0]
[null,null,null,null,null,null,null,null,null,0,0,0]
[null,null,null,null,null,null,null,null,null,0,0,0]
[null,null,null,null,null,null,null,null,null,0,0,0]
[null,null,null,null,null,null,null,null,null,0,0,0]
[null,null,null,null,null,null,null,null,null,0,0,0]
[null,null,null,null,null,null,null,null,null,0,0,0]
[null,null,null,null,null,null,null,null,null,0,0,0]
[null,null,null,null,null,null,null,null,null,0,0,0]
[null,null,null,null,null,null,null,null,null,0,0,0]
[null,null,null,null,null,null,null,null,null,0,0,0]
[null,null,null,null,null,null,null,null,null,0,0,0]
[null,null,null,null,null,null,null,null,null,0,0,0]
[null,null,null,null,null,null,null,null,null,0,0,0]
[null,null,null,null,null,null,null,null,null,0,0,0]
[null,null,null,null,null,null,null,null,null,0,0,0]
[null,null,null,null,null,null,null,null,null,{"$f":"IFERROR(((($B1094/$H1094)*$M1094)),0)","v":0},{"$f":"F1094+G1094+E1094","v":0},{"$f":"IFERROR((($B1094/$H1094)*$M1094)+(($C1094/$H1094)*$M1094)+(($D1094/$H1094)*$M1094)+($E1094)+($G1094)+($F1094),0)","v":0}]
[null,null,null,null,null,null,null,null,null,0,0,0]
[null,null,null,null,null,null,null,null,null,0,0,0]
[null,null,null,null,null,null,null,null,null,0,0,0]
[null,null,null,null,null,null,null,null,null,0,0,0]
[null,null,null,null,null,null,null,null,null,0,0,0]
[null,null,null,null,null,null,null,null,null,0,0,0]
[null,null,null,null,null,null,null,null,null,0,0,0]
[null,null,null,null,null,null,null,null,null,0,0,0]
[null,null,null,null,null,null,null,null,null,0,0,0]
[null,null,null,null,null,null,null,null,null,0,0,0]
[null,null,null,null,null,null,null,null,null,0,0,0]
[null,null,null,null,null,null,null,null,null,0,0,0]
[null,null,null,null,null,null,null,null,null,0,0,0]
[null,null,null,null,null,null,null,null,null,0,0,0]
[null,null,null,null,null,null,null,null,null,0,0,0]
[null,null,null,null,null,null,null,null,null,0,0,0]
[null,null,null,null,null,null,null,null,null,0,0,0]
[null,null,null,null,null,null,null,null,null,0,0,0]
[null,null,null,null,null,null,null,null,null,0,0,0]
[null,null,null,null,null,null,null,null,null,0,0,0]
[null,null,null,null,null,null,null,null,null,0,0,0]
[null,null,null,null,null,null,null,null,null,0,0,0]
[null,null,null,null,null,null,null,null,null,0,0,0]
[null,null,null,null,null,null,null,null,null,0,0,0]
[null,null,null,null,null,null,null,null,null,0,0,0]
[null,null,null,null,null,null,null,null,null,0,0,0]
[null,null,null,null,null,null,null,null,null,0,0,0]
[null,null,null,null,null,null,null,null,null,0,0,0]
[null,null,null,null,null,null,null,null,null,0,0,0]
[null,null,null,null,null,null,null,null,null,0,0,0]
[null,null,null,null,null,null,null,null,null,0,0,0]
[null,null,null,null,null,null,null,null,null,0,0,0]
[null,null,null,null,null,null,null,null,null,0,0,0]
[null,null,null,null,null,null,null,null,null,0,0,0]
[null,null,null,null,null,null,null,null,null,0,0,0]
[null,null,null,null,null,null,null,null,null,0,0,0]
[null,null,null,null,null,null,null,null,null,0,0,0]
[null,null,null,null,null,null,null,null,null,0,0,0]
[null,null,null,null,null,null,null,null,null,0,0,0]
[null,null,null,null,null,null,null,null,null,0,0,0]
[null,null,null,null,null,null,null,null,null,0,0,0]
[null,null,null,null,null,null,null,null,null,0,0,0]
[null,null,null,null,null,null,null,null,null,0,0,0]
[null,null,null,null,null,null,null,null,null,0,0,0]
[null,null,null,null,null,null,null,null,null,0,0,0]
[null,null,null,null,null,null,null,null,null,0,0,0]
[null,null,null,null,null,null,null,null,null,0,0,0]
[null,null,null,null,null,null,null,null,null,0,0,0]
[null,null,null,null,null,null,null,null,null,0,0,0]
[null,null,null,null,null,null,null,null,null,0,0,0]
[null,null,null,null,null,null,null,null,null,0,0,0]
[null,null,null,null,null,null,null,null,null,0,0,0]
[null,null,null,null,null,null,null,null,null,0,0,0]
[null,null,null,null,null,null,null,null,null,0,0,0]
[null,null,null,null,null,null,null,null,null,0,0,0]
[null,null,null,null,null,null,null,null,null,0,0,0]
[null,null,null,null,null,null,null,null,null,0,0,0]
[null,null,null,null,null,null,null,null,null,0,0,0]
[null,null,null,null,null,null,null,null,null,0,0,0]
[null,null,null,null,null,null,null,null,null,0,0,0]
[null,null,null,null,null,null,null,null,null,0,0,0]
[null,null,null,null,null,null,null,null,null,0,0,0]
[null,null,null,null,null,null,null,null,null,0,0,0]
[null,null,null,null,null,null,null,null,null,{"$f":"IFERROR(((($B1158/$H1158)*$M1158)),0)","v":0},{"$f":"F1158+G1158+E1158","v":0},{"$f":"IFERROR((($B1158/$H1158)*$M1158)+(($C1158/$H1158)*$M1158)+(($D1158/$H1158)*$M1158)+($E1158)+($G1158)+($F1158),0)","v":0}]
[null,null,null,null,null,null,null,null,null,0,0,0]
[null,null,null,null,null,null,null,null,null,0,0,0]
[null,null,null,null,null,null,null,null,null,0,0,0]
[null,null,null,null,null,null,null,null,null,0,0,0]
[null,null,null,null,null,null,null,null,null,0,0,0]
[null,null,null,null,null,null,null,null,null,0,0,0]
[null,null,null,null,null,null,null,null,null,0,0,0]
[null,null,null,null,null,null,null,null,null,0,0,0]
[null,null,null,null,null,null,null,null,null,0,0,0]
[null,null,null,null,null,null,null,null,null,0,0,0]
[null,null,null,null,null,null,null,null,null,0,0,0]
[null,null,null,null,null,null,null,null,null,0,0,0]
[null,null,null,null,null,null,null,null,null,0,0,0]
[null,null,null,null,null,null,null,null,null,0,0,0]
[null,null,null,null,null,null,null,null,null,0,0,0]
[null,null,null,null,null,null,null,null,null,0,0,0]
[null,null,null,null,null,null,null,null,null,0,0,0]
[null,null,null,null,null,null,null,null,null,0,0,0]
[null,null,null,null,null,null,null,null,null,0,0,0]
[null,null,null,null,null,null,null,null,null,0,0,0]
[null,null,null,null,null,null,null,null,null,0,0,0]
[null,null,null,null,null,null,null,null,null,0,0,0]
[null,null,null,null,null,null,null,null,null,0,0,0]
[null,null,null,null,null,null,null,null,null,0,0,0]
[null,null,null,null,null,null,null,null,null,0,0,0]
[null,null,null,null,null,null,null,null,null,0,0,0]
[null,null,null,null,null,null,null,null,null,0,0,0]
[null,null,null,null,null,null,null,null,null,0,0,0]
[null,null,null,null,null,null,null,null,null,0,0,0]
[null,null,null,null,null,null,null,null,null,0,0,0]
[null,null,null,null,null,null,null,null,null,0,0,0]
[null,null,null,null,null,null,null,null,null,0,0,0]
[null,null,null,null,null,null,null,null,null,0,0,0]
[null,null,null,null,null,null,null,null,null,0,0,0]
[null,null,null,null,null,null,null,null,null,0,0,0]
[null,null,null,null,null,null,null,null,null,0,0,0]
[null,null,null,null,null,null,null,null,null,0,0,0]
[null,null,null,null,null,null,null,null,null,0,0,0]
[null,null,null,null,null,null,null,null,null,0,0,0]
[null,null,null,null,null,null,null,null,null,0,0,0]
[null,null,null,null,null,null,null,null,null,0,0,0]
[null,null,null,null,null,null,null,null,null,0,0,0]
[null,null,null,null,null,null,null,null,null,0,0,0]
[null,null,null,null,null,null,null,null,null,0,0,0]
[null,null,null,null,null,null,null,null,null,0,0,0]
[null,null,null,null,null,null,null,null,null,0,0,0]
[null,null,null,null,null,null,null,null,null,0,0,0]
[null,null,null,null,null,null,null,null,null,0,0,0]
[null,null,null,null,null,null,null,null,null,0,0,0]
[null,null,null,null,null,null,null,null,null,0,0,0]
[null,null,null,null,null,null,null,null,null,0,0,0]
[null,null,null,null,null,null,null,null,null,0,0,0]
[null,null,null,null,null,null,null,null,null,0,0,0]
[null,null,null,null,null,null,null,null,null,0,0,0]
[null,null,null,null,null,null,null,null,null,0,0,0]
[null,null,null,null,null,null,null,null,null,0,0,0]
[null,null,null,null,null,null,null,null,null,0,0,0]
[null,null,null,null,null,null,null,null,null,0,0,0]
[null,null,null,null,null,null,null,null,null,0,0,0]
[null,null,null,null,null,null,null,null,null,0,0,0]
[null,null,null,null,null,null,null,null,null,0,0,0]
[null,null,null,null,null,null,null,null,null,0,0,0]
[null,null,null,null,null,null,null,null,null,0,0,0]
[null,null,null,null,null,null,null,null,null,{"$f":"IFERROR(((($B1222/$H1222)*$M1222)),0)","v":0},{"$f":"F1222+G1222+E1222","v":0},{"$f":"IFERROR((($B1222/$H1222)*$M1222)+(($C1222/$H1222)*$M1222)+(($D1222/$H1222)*$M1222)+($E1222)+($G1222)+($F1222),0)","v":0}]
[null,null,null,null,null,null,null,null,null,0,0,0]
[null,null,null,null,null,null,null,null,null,0,0,0]
[null,null,null,null,null,null,null,null,null,0,0,0]
[null,null,null,null,null,null,null,null,null,0,0,0]
[null,null,null,null,null,null,null,null,null,0,0,0]
[null,null,null,null,null,null,null,null,null,0,0,0]
[null,null,null,null,null,null,null,null,null,0,0,0]
[null,null,null,null,null,null,null,null,null,0,0,0]
[null,null,null,null,null,null,null,null,null,0,0,0]
[null,null,null,null,null,null,null,null,null,0,0,0]
[null,null,null,null,null,null,null,null,null,0,0,0]
[null,null,null,null,null,null,null,null,null,0,0,0]
[null,null,null,null,null,null,null,null,null,0,0,0]
[null,null,null,null,null,null,null,null,null,0,0,0]
[null,null,null,null,null,null,null,null,null,0,0,0]
[null,null,null,null,null,null,null,null,null,0,0,0]
[null,null,null,null,null,null,null,null,null,0,0,0]
[null,null,null,null,null,null,null,null,null,0,0,0]
[null,null,null,null,null,null,null,null,null,0,0,0]
[null,null,null,null,null,null,null,null,null,0,0,0]
[null,null,null,null,null,null,null,null,null,0,0,0]
[null,null,null,null,null,null,null,null,null,0,0,0]
[null,null,null,null,null,null,null,null,null,0,0,0]
[null,null,null,null,null,null,null,null,null,0,0,0]
[null,null,null,null,null,null,null,null,null,0,0,0]
[null,null,null,null,null,null,null,null,null,0,0,0]
[null,null,null,null,null,null,null,null,null,0,0,0]
[null,null,null,null,null,null,null,null,null,0,0,0]
[null,null,null,null,null,null,null,null,null,0,0,0]
[null,null,null,null,null,null,null,null,null,0,0,0]
[null,null,null,null,null,null,null,null,null,0,0,0]
[null,null,null,null,null,null,null,null,null,0,0,0]
[null,null,null,null,null,null,null,null,null,0,0,0]
[null,null,null,null,null,null,null,null,null,0,0,0]
[null,null,null,null,null,null,null,null,null,0,0,0]
[null,null,null,null,null,null,null,null,null,0,0,0]
[null,null,null,null,null,null,null,null,null,0,0,0]
[null,null,null,null,null,null,null,null,null,0,0,0]
[null,null,null,null,null,null,null,null,null,0,0,0]
[null,null,null,null,null,null,null,null,null,0,0,0]
[null,null,null,null,null,null,null,null,null,0,0,0]
[null,null,null,null,null,null,null,null,null,0,0,0]
[null,null,null,null,null,null,null,null,null,0,0,0]
[null,null,null,null,null,null,null,null,null,0,0,0]
[null,null,null,null,null,null,null,null,null,0,0,0]
[null,null,null,null,null,null,null,null,null,0,0,0]
[null,null,null,null,null,null,null,null,null,0,0,0]
[null,null,null,null,null,null,null,null,null,0,0,0]
[null,null,null,null,null,null,null,null,null,0,0,0]
[null,null,null,null,null,null,null,null,null,0,0,0]
[null,null,null,null,null,null,null,null,null,0,0,0]
[null,null,null,null,null,null,null,null,null,0,0,0]
[null,null,null,null,null,null,null,null,null,0,0,0]
[null,null,null,null,null,null,null,null,null,0,0,0]
[null,null,null,null,null,null,null,null,null,0,0,0]
[null,null,null,null,null,null,null,null,null,0,0,0]
[null,null,null,null,null,null,null,null,null,0,0,0]
[null,null,null,null,null,null,null,null,null,0,0,0]
[null,null,null,null,null,null,null,null,null,0,0,0]
[null,null,null,null,null,null,null,null,null,0,0,0]
[null,null,null,null,null,null,null,null,null,0,0,0]
[null,null,null,null,null,null,null,null,null,0,0,0]
[null,null,null,null,null,null,null,null,null,0,0,0]
[null,null,null,null,null,null,null,null,null,{"$f":"IFERROR(((($B1286/$H1286)*$M1286)),0)","v":0},{"$f":"F1286+G1286+E1286","v":0},{"$f":"IFERROR((($B1286/$H1286)*$M1286)+(($C1286/$H1286)*$M1286)+(($D1286/$H1286)*$M1286)+($E1286)+($G1286)+($F1286),0)","v":0}]
[null,null,null,null,null,null,null,null,null,0,0,0]
[null,null,null,null,null,null,null,null,null,0,0,0]
[null,null,null,null,null,null,null,null,null,0,0,0]
[null,null,null,null,null,null,null,null,null,0,0,0]
[null,null,null,null,null,null,null,null,null,0,0,0]
[null,null,null,null,null,null,null,null,null,0,0,0]
[null,null,null,null,null,null,null,null,null,0,0,0]
[null,null,null,null,null,null,null,null,null,0,0,0]
[null,null,null,null,null,null,null,null,null,0,0,0]
[null,null,null,null,null,null,null,null,null,0,0,0]
[null,null,null,null,null,null,null,null,null,0,0,0]
[null,null,null,null,null,null,null,null,null,0,0,0]
[null,null,null,null,null,null,null,null,null,0,0,0]
[null,null,null,null,null,null,null,null,null,0,0,0]
[null,null,null,null,null,null,null,null,null,0,0,0]
[null,null,null,null,null,null,null,null,null,0,0,0]
[null,null,null,null,null,null,null,null,null,0,0,0]
[null,null,null,null,null,null,null,null,null,0,0,0]
[null,null,null,null,null,null,null,null,null,0,0,0]
[null,null,null,null,null,null,null,null,null,0,0,0]
[null,null,null,null,null,null,null,null,null,0,0,0]
[null,null,null,null,null,null,null,null,null,0,0,0]
[null,null,null,null,null,null,null,null,null,0,0,0]
[null,null,null,null,null,null,null,null,null,0,0,0]
[null,null,null,null,null,null,null,null,null,0,0,0]
[null,null,null,null,null,null,null,null,null,0,0,0]
[null,null,null,null,null,null,null,null,null,0,0,0]
[null,null,null,null,null,null,null,null,null,0,0,0]
[null,null,null,null,null,null,null,null,null,0,0,0]
[null,null,null,null,null,null,null,null,null,0,0,0]
[null,null,null,null,null,null,null,null,null,0,0,0]
[null,null,null,null,null,null,null,null,null,0,0,0]
[null,null,null,null,null,null,null,null,null,0,0,0]
[null,null,null,null,null,null,null,null,null,0,0,0]
[null,null,null,null,null,null,null,null,null,0,0,0]
[null,null,null,null,null,null,null,null,null,0,0,0]
[null,null,null,null,null,null,null,null,null,0,0,0]
[null,null,null,null,null,null,null,null,null,0,0,0]
[null,null,null,null,null,null,null,null,null,0,0,0]
[null,null,null,null,null,null,null,null,null,0,0,0]
[null,null,null,null,null,null,null,null,null,0,0,0]
[null,null,null,null,null,null,null,null,null,0,0,0]
[null,null,null,null,null,null,null,null,null,0,0,0]
[null,null,null,null,null,null,null,null,null,0,0,0]
[null,null,null,null,null,null,null,null,null,0,0,0]
[null,null,null,null,null,null,null,null,null,0,0,0]
[null,null,null,null,null,null,null,null,null,0,0,0]
[null,null,null,null,null,null,null,null,null,0,0,0]
[null,null,null,null,null,null,null,null,null,0,0,0]
[null,null,null,null,null,null,null,null,null,0,0,0]
[null,null,null,null,null,null,null,null,null,0,0,0]
[null,null,null,null,null,null,null,null,null,0,0,0]
[null,null,null,null,null,null,null,null,null,0,0,0]
[null,null,null,null,null,null,null,null,null,0,0,0]
[null,null,null,null,null,null,null,null,null,0,0,0]
[null,null,null,null,null,null,null,null,null,0,0,0]
[null,null,null,null,null,null,null,null,null,0,0,0]
[null,null,null,null,null,null,null,null,null,0,0,0]
[null,null,null,null,null,null,null,null,null,0,0,0]
[null,null,null,null,null,null,null,null,null,0,0,0]
[null,null,null,null,null,null,null,null,null,0,0,0]
[null,null,null,null,null,null,null,null,null,0,0,0]
[null,null,null,null,null,null,null,null,null,0,0,0]
[null,null,null,null,null,null,null,null,null,{"$f":"IFERROR(((($B1350/$H1350)*$M1350)),0)","v":0},{"$f":"F1350+G1350+E1350","v":0},{"$f":"IFERROR((($B1350/$H1350)*$M1350)+(($C1350/$H1350)*$M1350)+(($D1350/$H1350)*$M1350)+($E1350)+($G1350)+($F1350),0)","v":0}]
[null,null,null,null,null,null,null,null,null,0,0,0]
[null,null,null,null,null,null,null,null,null,0,0,0]
[null,null,null,null,null,null,null,null,null,0,0,0]
[null,null,null,null,null,null,null,null,null,0,0,0]
[null,null,null,null,null,null,null,null,null,0,0,0]
[null,null,null,null,null,null,null,null,null,0,0,0]
[null,null,null,null,null,null,null,null,null,0,0,0]
[null,null,null,null,null,null,null,null,null,0,0,0]
[null,null,null,null,null,null,null,null,null,0,0,0]
[null,null,null,null,null,null,null,null,null,0,0,0]
[null,null,null,null,null,null,null,null,null,0,0,0]
[null,null,null,null,null,null,null,null,null,0,0,0]
[null,null,null,null,null,null,null,null,null,0,0,0]
[null,null,null,null,null,null,null,null,null,0,0,0]
[null,null,null,null,null,null,null,null,null,0,0,0]
[null,null,null,null,null,null,null,null,null,0,0,0]
[null,null,null,null,null,null,null,null,null,0,0,0]
[null,null,null,null,null,null,null,null,null,0,0,0]
[null,null,null,null,null,null,null,null,null,0,0,0]
[null,null,null,null,null,null,null,null,null,0,0,0]
[null,null,null,null,null,null,null,null,null,0,0,0]
[null,null,null,null,null,null,null,null,null,0,0,0]
[null,null,null,null,null,null,null,null,null,0,0,0]
[null,null,null,null,null,null,null,null,null,0,0,0]
[null,null,null,null,null,null,null,null,null,0,0,0]
[null,null,null,null,null,null,null,null,null,0,0,0]
[null,null,null,null,null,null,null,null,null,0,0,0]
[null,null,null,null,null,null,null,null,null,0,0,0]
[null,null,null,null,null,null,null,null,null,0,0,0]
[null,null,null,null,null,null,null,null,null,0,0,0]
[null,null,null,null,null,null,null,null,null,0,0,0]
[null,null,null,null,null,null,null,null,null,0,0,0]
[null,null,null,null,null,null,null,null,null,0,0,0]
[null,null,null,null,null,null,null,null,null,0,0,0]
[null,null,null,null,null,null,null,null,null,0,0,0]
[null,null,null,null,null,null,null,null,null,0,0,0]
[null,null,null,null,null,null,null,null,null,0,0,0]
[null,null,null,null,null,null,null,null,null,0,0,0]
[null,null,null,null,null,null,null,null,null,0,0,0]
[null,null,null,null,null,null,null,null,null,0,0,0]
[null,null,null,null,null,null,null,null,null,0,0,0]
[null,null,null,null,null,null,null,null,null,0,0,0]
[null,null,null,null,null,null,null,null,null,0,0,0]
[null,null,null,null,null,null,null,null,null,0,0,0]
[null,null,null,null,null,null,null,null,null,0,0,0]
[null,null,null,null,null,null,null,null,null,0,0,0]
[null,null,null,null,null,null,null,null,null,0,0,0]
[null,null,null,null,null,null,null,null,null,0,0,0]
[null,null,null,null,null,null,null,null,null,0,0,0]
[null,null,null,null,null,null,null,null,null,0,0,0]
[null,null,null,null,null,null,null,null,null,0,0,0]
[null,null,null,null,null,null,null,null,null,0,0,0]
[null,null,null,null,null,null,null,null,null,0,0,0]
[null,null,null,null,null,null,null,null,null,0,0,0]
[null,null,null,null,null,null,null,null,null,0,0,0]
[null,null,null,null,null,null,null,null,null,0,0,0]
[null,null,null,null,null,null,null,null,null,0,0,0]
[null,null,null,null,null,null,null,null,null,0,0,0]
[null,null,null,null,null,null,null,null,null,0,0,0]
[null,null,null,null,null,null,null,null,null,0,0,0]
[null,null,null,null,null,null,null,null,null,0,0,0]
[null,null,null,null,null,null,null,null,null,0,0,0]
[null,null,null,null,null,null,null,null,null,0,0,0]
[null,null,null,null,null,null,null,null,null,{"$f":"IFERROR(((($B1414/$H1414)*$M1414)),0)","v":0},{"$f":"F1414+G1414+E1414","v":0},{"$f":"IFERROR((($B1414/$H1414)*$M1414)+(($C1414/$H1414)*$M1414)+(($D1414/$H1414)*$M1414)+($E1414)+($G1414)+($F1414),0)","v":0}]
[null,null,null,null,null,null,null,null,null,0,0,0]
[null,null,null,null,null,null,null,null,null,0,0,0]
[null,null,null,null,null,null,null,null,null,0,0,0]
[null,null,null,null,null,null,null,null,null,0,0,0]
[null,null,null,null,null,null,null,null,null,0,0,0]
[null,null,null,null,null,null,null,null,null,0,0,0]
[null,null,null,null,null,null,null,null,null,0,0,0]
[null,null,null,null,null,null,null,null,null,0,0,0]
[null,null,null,null,null,null,null,null,null,0,0,0]
[null,null,null,null,null,null,null,null,null,0,0,0]
[null,null,null,null,null,null,null,null,null,0,0,0]
[null,null,null,null,null,null,null,null,null,0,0,0]
[null,null,null,null,null,null,null,null,null,0,0,0]
[null,null,null,null,null,null,null,null,null,0,0,0]
[null,null,null,null,null,null,null,null,null,0,0,0]
[null,null,null,null,null,null,null,null,null,0,0,0]
[null,null,null,null,null,null,null,null,null,0,0,0]
[null,null,null,null,null,null,null,null,null,0,0,0]
[null,null,null,null,null,null,null,null,null,0,0,0]
[null,null,null,null,null,null,null,null,null,0,0,0]
[null,null,null,null,null,null,null,null,null,0,0,0]
[null,null,null,null,null,null,null,null,null,0,0,0]
[null,null,null,null,null,null,null,null,null,0,0,0]
[null,null,null,null,null,null,null,null,null,0,0,0]
[null,null,null,null,null,null,null,null,null,0,0,0]
[null,null,null,null,null,null,null,null,null,0,0,0]
[null,null,null,null,null,null,null,null,null,0,0,0]
[null,null,null,null,null,null,null,null,null,0,0,0]
[null,null,null,null,null,null,null,null,null,0,0,0]
[null,null,null,null,null,null,null,null,null,0,0,0]
[null,null,null,null,null,null,null,null,null,0,0,0]
[null,null,null,null,null,null,null,null,null,0,0,0]
[null,null,null,null,null,null,null,null,null,0,0,0]
[null,null,null,null,null,null,null,null,null,0,0,0]
[null,null,null,null,null,null,null,null,null,0,0,0]
[null,null,null,null,null,null,null,null,null,0,0,0]
[null,null,null,null,null,null,null,null,null,0,0,0]
[null,null,null,null,null,null,null,null,null,0,0,0]
[null,null,null,null,null,null,null,null,null,0,0,0]
[null,null,null,null,null,null,null,null,null,0,0,0]
[null,null,null,null,null,null,null,null,null,0,0,0]
[null,null,null,null,null,null,null,null,null,0,0,0]
[null,null,null,null,null,null,null,null,null,0,0,0]
[null,null,null,null,null,null,null,null,null,0,0,0]
[null,null,null,null,null,null,null,null,null,0,0,0]
[null,null,null,null,null,null,null,null,null,0,0,0]
[null,null,null,null,null,null,null,null,null,0,0,0]
[null,null,null,null,null,null,null,null,null,0,0,0]
[null,null,null,null,null,null,null,null,null,0,0,0]
[null,null,null,null,null,null,null,null,null,0,0,0]
[null,null,null,null,null,null,null,null,null,0,0,0]
[null,null,null,null,null,null,null,null,null,0,0,0]
[null,null,null,null,null,null,null,null,null,0,0,0]
[null,null,null,null,null,null,null,null,null,0,0,0]
[null,null,null,null,null,null,null,null,null,0,0,0]
[null,null,null,null,null,null,null,null,null,0,0,0]
[null,null,null,null,null,null,null,null,null,0,0,0]
[null,null,null,null,null,null,null,null,null,0,0,0]
[null,null,null,null,null,null,null,null,null,0,0,0]
[null,null,null,null,null,null,null,null,null,0,0,0]
[null,null,null,null,null,null,null,null,null,0,0,0]
[null,null,null,null,null,null,null,null,null,0,0,0]
[null,null,null,null,null,null,null,null,null,0,0,0]
[null,null,null,null,null,null,null,null,null,{"$f":"IFERROR(((($B1478/$H1478)*$M1478)),0)","v":0},{"$f":"F1478+G1478+E1478","v":0},{"$f":"IFERROR((($B1478/$H1478)*$M1478)+(($C1478/$H1478)*$M1478)+(($D1478/$H1478)*$M1478)+($E1478)+($G1478)+($F1478),0)","v":0}]
[null,null,null,null,null,null,null,null,null,0,0,0]
[null,null,null,null,null,null,null,null,null,0,0,0]
[null,null,null,null,null,null,null,null,null,0,0,0]
[null,null,null,null,null,null,null,null,null,0,0,0]
[null,null,null,null,null,null,null,null,null,0,0,0]
[null,null,null,null,null,null,null,null,null,0,0,0]
[null,null,null,null,null,null,null,null,null,0,0,0]
[null,null,null,null,null,null,null,null,null,0,0,0]
[null,null,null,null,null,null,null,null,null,0,0,0]
[null,null,null,null,null,null,null,null,null,0,0,0]
[null,null,null,null,null,null,null,null,null,0,0,0]
[null,null,null,null,null,null,null,null,null,0,0,0]
[null,null,null,null,null,null,null,null,null,0,0,0]
[null,null,null,null,null,null,null,null,null,0,0,0]
[null,null,null,null,null,null,null,null,null,0,0,0]
[null,null,null,null,null,null,null,null,null,0,0,0]
[null,null,null,null,null,null,null,null,null,0,0,0]
[null,null,null,null,null,null,null,null,null,0,0,0]
[null,null,null,null,null,null,null,null,null,0,0,0]
[null,null,null,null,null,null,null,null,null,0,0,0]
[null,null,null,null,null,null,null,null,null,0,0,0]
[null,null,null,null,null,null,null,null,null,0,0,0]
[null,null,null,null,null,null,null,null,null,0,0,0]
[null,null,null,null,null,null,null,null,null,0,0,0]
[null,null,null,null,null,null,null,null,null,0,0,0]
[null,null,null,null,null,null,null,null,null,0,0,0]
[null,null,null,null,null,null,null,null,null,0,0,0]
[null,null,null,null,null,null,null,null,null,0,0,0]
[null,null,null,null,null,null,null,null,null,0,0,0]
[null,null,null,null,null,null,null,null,null,0,0,0]
[null,null,null,null,null,null,null,null,null,0,0,0]
[null,null,null,null,null,null,null,null,null,0,0,0]
[null,null,null,null,null,null,null,null,null,0,0,0]
[null,null,null,null,null,null,null,null,null,0,0,0]
[null,null,null,null,null,null,null,null,null,0,0,0]
[null,null,null,null,null,null,null,null,null,0,0,0]
[null,null,null,null,null,null,null,null,null,0,0,0]
[null,null,null,null,null,null,null,null,null,0,0,0]
[null,null,null,null,null,null,null,null,null,0,0,0]
[null,null,null,null,null,null,null,null,null,0,0,0]
[null,null,null,null,null,null,null,null,null,0,0,0]
[null,null,null,null,null,null,null,null,null,0,0,0]
[null,null,null,null,null,null,null,null,null,0,0,0]
[null,null,null,null,null,null,null,null,null,0,0,0]
[null,null,null,null,null,null,null,null,null,0,0,0]
[null,null,null,null,null,null,null,null,null,0,0,0]
[null,null,null,null,null,null,null,null,null,0,0,0]
[null,null,null,null,null,null,null,null,null,0,0,0]
[null,null,null,null,null,null,null,null,null,0,0,0]
[null,null,null,null,null,null,null,null,null,0,0,0]
[null,null,null,null,null,null,null,null,null,0,0,0]
[null,null,null,null,null,null,null,null,null,0,0,0]
[null,null,null,null,null,null,null,null,null,0,0,0]
[null,null,null,null,null,null,null,null,null,0,0,0]
[null,null,null,null,null,null,null,null,null,0,0,0]
[null,null,null,null,null,null,null,null,null,0,0,0]
[null,null,null,null,null,null,null,null,null,0,0,0]
[null,null,null,null,null,null,null,null,null,0,0,0]
[null,null,null,null,null,null,null,null,null,0,0,0]
[null,null,null,null,null,null,null,null,null,0,0,0]
[null,null,null,null,null,null,null,null,null,0,0,0]
[null,null,null,null,null,null,null,null,null,0,0,0]
[null,null,null,null,null,null,null,null,null,0,0,0]
[null,null,null,null,null,null,null,null,null,{"$f":"IFERROR(((($B1542/$H1542)*$M1542)),0)","v":0},{"$f":"F1542+G1542+E1542","v":0},{"$f":"IFERROR((($B1542/$H1542)*$M1542)+(($C1542/$H1542)*$M1542)+(($D1542/$H1542)*$M1542)+($E1542)+($G1542)+($F1542),0)","v":0}]
[null,null,null,null,null,null,null,null,null,0,0,0]
[null,null,null,null,null,null,null,null,null,0,0,0]
[null,null,null,null,null,null,null,null,null,0,0,0]
[null,null,null,null,null,null,null,null,null,0,0,0]
[null,null,null,null,null,null,null,null,null,0,0,0]
[null,null,null,null,null,null,null,null,null,0,0,0]
[null,null,null,null,null,null,null,null,null,0,0,0]
[null,null,null,null,null,null,null,null,null,0,0,0]
[null,null,null,null,null,null,null,null,null,0,0,0]
[null,null,null,null,null,null,null,null,null,0,0,0]
[null,null,null,null,null,null,null,null,null,0,0,0]
[null,null,null,null,null,null,null,null,null,0,0,0]
[null,null,null,null,null,null,null,null,null,0,0,0]
[null,null,null,null,null,null,null,null,null,0,0,0]
[null,null,null,null,null,null,null,null,null,0,0,0]
[null,null,null,null,null,null,null,null,null,0,0,0]
[null,null,null,null,null,null,null,null,null,0,0,0]
[null,null,null,null,null,null,null,null,null,0,0,0]
[null,null,null,null,null,null,null,null,null,0,0,0]
[null,null,null,null,null,null,null,null,null,0,0,0]
[null,null,null,null,null,null,null,null,null,0,0,0]
[null,null,null,null,null,null,null,null,null,0,0,0]
[null,null,null,null,null,null,null,null,null,0,0,0]
[null,null,null,null,null,null,null,null,null,0,0,0]
[null,null,null,null,null,null,null,null,null,0,0,0]
[null,null,null,null,null,null,null,null,null,0,0,0]
[null,null,null,null,null,null,null,null,null,0,0,0]
[null,null,null,null,null,null,null,null,null,0,0,0]
[null,null,null,null,null,null,null,null,null,0,0,0]
[null,null,null,null,null,null,null,null,null,0,0,0]
[null,null,null,null,null,null,null,null,null,0,0,0]
[null,null,null,null,null,null,null,null,null,0,0,0]
[null,null,null,null,null,null,null,null,null,0,0,0]
[null,null,null,null,null,null,null,null,null,0,0,0]
[null,null,null,null,null,null,null,null,null,0,0,0]
[null,null,null,null,null,null,null,null,null,0,0,0]
[null,null,null,null,null,null,null,null,null,0,0,0]
[null,null,null,null,null,null,null,null,null,0,0,0]
[null,null,null,null,null,null,null,null,null,0,0,0]
[null,null,null,null,null,null,null,null,null,0,0,0]
[null,null,null,null,null,null,null,null,null,0,0,0]
[null,null,null,null,null,null,null,null,null,0,0,0]
[null,null,null,null,null,null,null,null,null,0,0,0]
[null,null,null,null,null,null,null,null,null,0,0,0]
[null,null,null,null,null,null,null,null,null,0,0,0]
[null,null,null,null,null,null,null,null,null,0,0,0]
[null,null,null,null,null,null,null,null,null,0,0,0]
[null,null,null,null,null,null,null,null,null,0,0,0]
[null,null,null,null,null,null,null,null,null,0,0,0]
[null,null,null,null,null,null,null,null,null,0,0,0]
[null,null,null,null,null,null,null,null,null,0,0,0]
[null,null,null,null,null,null,null,null,null,0,0,0]
[null,null,null,null,null,null,null,null,null,0,0,0]
[null,null,null,null,null,null,null,null,null,0,0,0]
[null,null,null,null,null,null,null,null,null,0,0,0]
[null,null,null,null,null,null,null,null,null,0,0,0]
[null,null,null,null,null,null,null,null,null,0,0,0]
[null,null,null,null,null,null,null,null,null,0,0,0]
[null,null,null,null,null,null,null,null,null,0,0,0]
[null,null,null,null,null,null,null,null,null,0,0,0]
[null,null,null,null,null,null,null,null,null,0,0,0]
[null,null,null,null,null,null,null,null,null,0,0,0]
[null,null,null,null,null,null,null,null,null,0,0,0]
[null,null,null,null,null,null,null,null,null,{"$f":"IFERROR(((($B1606/$H1606)*$M1606)),0)","v":0},{"$f":"F1606+G1606+E1606","v":0},{"$f":"IFERROR((($B1606/$H1606)*$M1606)+(($C1606/$H1606)*$M1606)+(($D1606/$H1606)*$M1606)+($E1606)+($G1606)+($F1606),0)","v":0}]
[null,null,null,null,null,null,null,null,null,0,0,0]
[null,null,null,null,null,null,null,null,null,0,0,0]
[null,null,null,null,null,null,null,null,null,0,0,0]
[null,null,null,null,null,null,null,null,null,0,0,0]
[null,null,null,null,null,null,null,null,null,0,0,0]
[null,null,null,null,null,null,null,null,null,0,0,0]
[null,null,null,null,null,null,null,null,null,0,0,0]
[null,null,null,null,null,null,null,null,null,0,0,0]
[null,null,null,null,null,null,null,null,null,0,0,0]
[null,null,null,null,null,null,null,null,null,0,0,0]
[null,null,null,null,null,null,null,null,null,0,0,0]
[null,null,null,null,null,null,null,null,null,0,0,0]
[null,null,null,null,null,null,null,null,null,0,0,0]
[null,null,null,null,null,null,null,null,null,0,0,0]
[null,null,null,null,null,null,null,null,null,0,0,0]
[null,null,null,null,null,null,null,null,null,0,0,0]
[null,null,null,null,null,null,null,null,null,0,0,0]
[null,null,null,null,null,null,null,null,null,0,0,0]
[null,null,null,null,null,null,null,null,null,0,0,0]
[null,null,null,null,null,null,null,null,null,0,0,0]
[null,null,null,null,null,null,null,null,null,0,0,0]
[null,null,null,null,null,null,null,null,null,0,0,0]
[null,null,null,null,null,null,null,null,null,0,0,0]
[null,null,null,null,null,null,null,null,null,0,0,0]
[null,null,null,null,null,null,null,null,null,0,0,0]
[null,null,null,null,null,null,null,null,null,0,0,0]
[null,null,null,null,null,null,null,null,null,0,0,0]
[null,null,null,null,null,null,null,null,null,0,0,0]
[null,null,null,null,null,null,null,null,null,0,0,0]
[null,null,null,null,null,null,null,null,null,0,0,0]
[null,null,null,null,null,null,null,null,null,0,0,0]
[null,null,null,null,null,null,null,null,null,0,0,0]
[null,null,null,null,null,null,null,null,null,0,0,0]
[null,null,null,null,null,null,null,null,null,0,0,0]
[null,null,null,null,null,null,null,null,null,0,0,0]
[null,null,null,null,null,null,null,null,null,0,0,0]
[null,null,null,null,null,null,null,null,null,0,0,0]
[null,null,null,null,null,null,null,null,null,0,0,0]
[null,null,null,null,null,null,null,null,null,0,0,0]
[null,null,null,null,null,null,null,null,null,0,0,0]
[null,null,null,null,null,null,null,null,null,0,0,0]
[null,null,null,null,null,null,null,null,null,0,0,0]
[null,null,null,null,null,null,null,null,null,0,0,0]
[null,null,null,null,null,null,null,null,null,0,0,0]
[null,null,null,null,null,null,null,null,null,0,0,0]
[null,null,null,null,null,null,null,null,null,0,0,0]
[null,null,null,null,null,null,null,null,null,0,0,0]
[null,null,null,null,null,null,null,null,null,0,0,0]
[null,null,null,null,null,null,null,null,null,0,0,0]
[null,null,null,null,null,null,null,null,null,0,0,0]
[null,null,null,null,null,null,null,null,null,0,0,0]
[null,null,null,null,null,null,null,null,null,0,0,0]
[null,null,null,null,null,null,null,null,null,0,0,0]
[null,null,null,null,null,null,null,null,null,0,0,0]
[null,null,null,null,null,null,null,null,null,0,0,0]
[null,null,null,null,null,null,null,null,null,0,0,0]
[null,null,null,null,null,null,null,null,null,0,0,0]
[null,null,null,null,null,null,null,null,null,0,0,0]
[null,null,null,null,null,null,null,null,null,0,0,0]
[null,null,null,null,null,null,null,null,null,0,0,0]
[null,null,null,null,null,null,null,null,null,0,0,0]
[null,null,null,null,null,null,null,null,null,0,0,0]
[null,null,null,null,null,null,null,null,null,0,0,0]
[null,null,null,null,null,null,null,null,null,{"$f":"IFERROR(((($B1670/$H1670)*$M1670)),0)","v":0},{"$f":"F1670+G1670+E1670","v":0},{"$f":"IFERROR((($B1670/$H1670)*$M1670)+(($C1670/$H1670)*$M1670)+(($D1670/$H1670)*$M1670)+($E1670)+($G1670)+($F1670),0)","v":0}]
[null,null,null,null,null,null,null,null,null,0,0,0]
[null,null,null,null,null,null,null,null,null,0,0,0]
[null,null,null,null,null,null,null,null,null,0,0,0]
[null,null,null,null,null,null,null,null,null,0,0,0]
[null,null,null,null,null,null,null,null,null,0,0,0]
[null,null,null,null,null,null,null,null,null,0,0,0]
[null,null,null,null,null,null,null,null,null,0,0,0]
[null,null,null,null,null,null,null,null,null,0,0,0]
[null,null,null,null,null,null,null,null,null,0,0,0]
[null,null,null,null,null,null,null,null,null,0,0,0]
[null,null,null,null,null,null,null,null,null,0,0,0]
[null,null,null,null,null,null,null,null,null,0,0,0]
[null,null,null,null,null,null,null,null,null,0,0,0]
[null,null,null,null,null,null,null,null,null,0,0,0]
[null,null,null,null,null,null,null,null,null,0,0,0]
[null,null,null,null,null,null,null,null,null,0,0,0]
[null,null,null,null,null,null,null,null,null,0,0,0]
[null,null,null,null,null,null,null,null,null,0,0,0]
[null,null,null,null,null,null,null,null,null,0,0,0]
[null,null,null,null,null,null,null,null,null,0,0,0]
[null,null,null,null,null,null,null,null,null,0,0,0]
[null,null,null,null,null,null,null,null,null,0,0,0]
[null,null,null,null,null,null,null,null,null,0,0,0]
[null,null,null,null,null,null,null,null,null,0,0,0]
[null,null,null,null,null,null,null,null,null,0,0,0]
[null,null,null,null,null,null,null,null,null,0,0,0]
[null,null,null,null,null,null,null,null,null,0,0,0]
[null,null,null,null,null,null,null,null,null,0,0,0]
[null,null,null,null,null,null,null,null,null,0,0,0]
[null,null,null,null,null,null,null,null,null,0,0,0]
[null,null,null,null,null,null,null,null,null,0,0,0]
[null,null,null,null,null,null,null,null,null,0,0,0]
[null,null,null,null,null,null,null,null,null,0,0,0]
[null,null,null,null,null,null,null,null,null,0,0,0]
[null,null,null,null,null,null,null,null,null,0,0,0]
[null,null,null,null,null,null,null,null,null,0,0,0]
[null,null,null,null,null,null,null,null,null,0,0,0]
[null,null,null,null,null,null,null,null,null,0,0,0]
[null,null,null,null,null,null,null,null,null,0,0,0]
[null,null,null,null,null,null,null,null,null,0,0,0]
[null,null,null,null,null,null,null,null,null,0,0,0]
[null,null,null,null,null,null,null,null,null,0,0,0]
[null,null,null,null,null,null,null,null,null,0,0,0]
[null,null,null,null,null,null,null,null,null,0,0,0]
[null,null,null,null,null,null,null,null,null,0,0,0]
[null,null,null,null,null,null,null,null,null,0,0,0]
[null,null,null,null,null,null,null,null,null,0,0,0]
[null,null,null,null,null,null,null,null,null,0,0,0]
[null,null,null,null,null,null,null,null,null,0,0,0]
[null,null,null,null,null,null,null,null,null,0,0,0]
[null,null,null,null,null,null,null,null,null,0,0,0]
[null,null,null,null,null,null,null,null,null,0,0,0]
[null,null,null,null,null,null,null,null,null,0,0,0]
[null,null,null,null,null,null,null,null,null,0,0,0]
[null,null,null,null,null,null,null,null,null,0,0,0]
[null,null,null,null,null,null,null,null,null,0,0,0]
[null,null,null,null,null,null,null,null,null,0,0,0]
[null,null,null,null,null,null,null,null,null,0,0,0]
[null,null,null,null,null,null,null,null,null,0,0,0]
[null,null,null,null,null,null,null,null,null,0,0,0]
[null,null,null,null,null,null,null,null,null,0,0,0]
[null,null,null,null,null,null,null,null,null,0,0,0]
[null,null,null,null,null,null,null,null,null,0,0,0]
[null,null,null,null,null,null,null,null,null,{"$f":"IFERROR(((($B1734/$H1734)*$M1734)),0)","v":0},{"$f":"F1734+G1734+E1734","v":0},{"$f":"IFERROR((($B1734/$H1734)*$M1734)+(($C1734/$H1734)*$M1734)+(($D1734/$H1734)*$M1734)+($E1734)+($G1734)+($F1734),0)","v":0}]
[null,null,null,null,null,null,null,null,null,0,0,0]
[null,null,null,null,null,null,null,null,null,0,0,0]
[null,null,null,null,null,null,null,null,null,0,0,0]
[null,null,null,null,null,null,null,null,null,0,0,0]
[null,null,null,null,null,null,null,null,null,0,0,0]
[null,null,null,null,null,null,null,null,null,0,0,0]
[null,null,null,null,null,null,null,null,null,0,0,0]
[null,null,null,null,null,null,null,null,null,0,0,0]
[null,null,null,null,null,null,null,null,null,0,0,0]
[null,null,null,null,null,null,null,null,null,0,0,0]
[null,null,null,null,null,null,null,null,null,0,0,0]
[null,null,null,null,null,null,null,null,null,0,0,0]
[null,null,null,null,null,null,null,null,null,0,0,0]
[null,null,null,null,null,null,null,null,null,0,0,0]
[null,null,null,null,null,null,null,null,null,0,0,0]
[null,null,null,null,null,null,null,null,null,0,0,0]
[null,null,null,null,null,null,null,null,null,0,0,0]
[null,null,null,null,null,null,null,null,null,0,0,0]
[null,null,null,null,null,null,null,null,null,0,0,0]
[null,null,null,null,null,null,null,null,null,0,0,0]
[null,null,null,null,null,null,null,null,null,0,0,0]
[null,null,null,null,null,null,null,null,null,0,0,0]
[null,null,null,null,null,null,null,null,null,0,0,0]
[null,null,null,null,null,null,null,null,null,0,0,0]
[null,null,null,null,null,null,null,null,null,0,0,0]
[null,null,null,null,null,null,null,null,null,0,0,0]
[null,null,null,null,null,null,null,null,null,0,0,0]
[null,null,null,null,null,null,null,null,null,0,0,0]
[null,null,null,null,null,null,null,null,null,0,0,0]
[null,null,null,null,null,null,null,null,null,0,0,0]
[null,null,null,null,null,null,null,null,null,0,0,0]
[null,null,null,null,null,null,null,null,null,0,0,0]
[null,null,null,null,null,null,null,null,null,0,0,0]
[null,null,null,null,null,null,null,null,null,0,0,0]
[null,null,null,null,null,null,null,null,null,0,0,0]
[null,null,null,null,null,null,null,null,null,0,0,0]
[null,null,null,null,null,null,null,null,null,0,0,0]
[null,null,null,null,null,null,null,null,null,0,0,0]
[null,null,null,null,null,null,null,null,null,0,0,0]
[null,null,null,null,null,null,null,null,null,0,0,0]
[null,null,null,null,null,null,null,null,null,0,0,0]
[null,null,null,null,null,null,null,null,null,0,0,0]
[null,null,null,null,null,null,null,null,null,0,0,0]
[null,null,null,null,null,null,null,null,null,0,0,0]
[null,null,null,null,null,null,null,null,null,0,0,0]
[null,null,null,null,null,null,null,null,null,0,0,0]
[null,null,null,null,null,null,null,null,null,0,0,0]
[null,null,null,null,null,null,null,null,null,0,0,0]
[null,null,null,null,null,null,null,null,null,0,0,0]
[null,null,null,null,null,null,null,null,null,0,0,0]
[null,null,null,null,null,null,null,null,null,0,0,0]
[null,null,null,null,null,null,null,null,null,0,0,0]
[null,null,null,null,null,null,null,null,null,0,0,0]
[null,null,null,null,null,null,null,null,null,0,0,0]
[null,null,null,null,null,null,null,null,null,0,0,0]
[null,null,null,null,null,null,null,null,null,0,0,0]
[null,null,null,null,null,null,null,null,null,0,0,0]
[null,null,null,null,null,null,null,null,null,0,0,0]
[null,null,null,null,null,null,null,null,null,0,0,0]
[null,null,null,null,null,null,null,null,null,0,0,0]
[null,null,null,null,null,null,null,null,null,0,0,0]
[null,null,null,null,null,null,null,null,null,0,0,0]
[null,null,null,null,null,null,null,null,null,0,0,0]
[null,null,null,null,null,null,null,null,null,{"$f":"IFERROR(((($B1798/$H1798)*$M1798)),0)","v":0},{"$f":"F1798+G1798+E1798","v":0},{"$f":"IFERROR((($B1798/$H1798)*$M1798)+(($C1798/$H1798)*$M1798)+(($D1798/$H1798)*$M1798)+($E1798)+($G1798)+($F1798),0)","v":0}]
[null,null,null,null,null,null,null,null,null,0,0,0]
[null,null,null,null,null,null,null,null,null,0,0,0]
[null,null,null,null,null,null,null,null,null,0,0,0]
[null,null,null,null,null,null,null,null,null,0,0,0]
[null,null,null,null,null,null,null,null,null,0,0,0]
[null,null,null,null,null,null,null,null,null,0,0,0]
[null,null,null,null,null,null,null,null,null,0,0,0]
[null,null,null,null,null,null,null,null,null,0,0,0]
[null,null,null,null,null,null,null,null,null,0,0,0]
[null,null,null,null,null,null,null,null,null,0,0,0]
[null,null,null,null,null,null,null,null,null,0,0,0]
[null,null,null,null,null,null,null,null,null,0,0,0]
[null,null,null,null,null,null,null,null,null,0,0,0]
[null,null,null,null,null,null,null,null,null,0,0,0]
[null,null,null,null,null,null,null,null,null,0,0,0]
[null,null,null,null,null,null,null,null,null,0,0,0]
[null,null,null,null,null,null,null,null,null,0,0,0]
[null,null,null,null,null,null,null,null,null,0,0,0]
[null,null,null,null,null,null,null,null,null,0,0,0]
[null,null,null,null,null,null,null,null,null,0,0,0]
[null,null,null,null,null,null,null,null,null,0,0,0]
[null,null,null,null,null,null,null,null,null,0,0,0]
[null,null,null,null,null,null,null,null,null,0,0,0]
[null,null,null,null,null,null,null,null,null,0,0,0]
[null,null,null,null,null,null,null,null,null,0,0,0]
[null,null,null,null,null,null,null,null,null,0,0,0]
[null,null,null,null,null,null,null,null,null,0,0,0]
[null,null,null,null,null,null,null,null,null,0,0,0]
[null,null,null,null,null,null,null,null,null,0,0,0]
[null,null,null,null,null,null,null,null,null,0,0,0]
[null,null,null,null,null,null,null,null,null,0,0,0]
[null,null,null,null,null,null,null,null,null,0,0,0]
[null,null,null,null,null,null,null,null,null,0,0,0]
[null,null,null,null,null,null,null,null,null,0,0,0]
[null,null,null,null,null,null,null,null,null,0,0,0]
[null,null,null,null,null,null,null,null,null,0,0,0]
[null,null,null,null,null,null,null,null,null,0,0,0]
[null,null,null,null,null,null,null,null,null,0,0,0]
[null,null,null,null,null,null,null,null,null,0,0,0]
[null,null,null,null,null,null,null,null,null,0,0,0]
[null,null,null,null,null,null,null,null,null,0,0,0]
[null,null,null,null,null,null,null,null,null,0,0,0]
[null,null,null,null,null,null,null,null,null,0,0,0]
[null,null,null,null,null,null,null,null,null,0,0,0]
[null,null,null,null,null,null,null,null,null,0,0,0]
[null,null,null,null,null,null,null,null,null,0,0,0]
[null,null,null,null,null,null,null,null,null,0,0,0]
[null,null,null,null,null,null,null,null,null,0,0,0]
[null,null,null,null,null,null,null,null,null,0,0,0]
[null,null,null,null,null,null,null,null,null,0,0,0]
[null,null,null,null,null,null,null,null,null,0,0,0]
[null,null,null,null,null,null,null,null,null,0,0,0]
[null,null,null,null,null,null,null,null,null,0,0,0]
[null,null,null,null,null,null,null,null,null,0,0,0]
[null,null,null,null,null,null,null,null,null,0,0,0]
[null,null,null,null,null,null,null,null,null,0,0,0]
[null,null,null,null,null,null,null,null,null,0,0,0]
[null,null,null,null,null,null,null,null,null,0,0,0]
[null,null,null,null,null,null,null,null,null,0,0,0]
[null,null,null,null,null,null,null,null,null,0,0,0]
[null,null,null,null,null,null,null,null,null,0,0,0]
[null,null,null,null,null,null,null,null,null,0,0,0]
[null,null,null,null,null,null,null,null,null,0,0,0]
[null,null,null,null,null,null,null,null,null,{"$f":"IFERROR(((($B1862/$H1862)*$M1862)),0)","v":0},{"$f":"F1862+G1862+E1862","v":0},{"$f":"IFERROR((($B1862/$H1862)*$M1862)+(($C1862/$H1862)*$M1862)+(($D1862/$H1862)*$M1862)+($E1862)+($G1862)+($F1862),0)","v":0}]
[null,null,null,null,null,null,null,null,null,0,0,0]
[null,null,null,null,null,null,null,null,null,0,0,0]
[null,null,null,null,null,null,null,null,null,0,0,0]
[null,null,null,null,null,null,null,null,null,0,0,0]
[null,null,null,null,null,null,null,null,null,0,0,0]
[null,null,null,null,null,null,null,null,null,0,0,0]
[null,null,null,null,null,null,null,null,null,0,0,0]
[null,null,null,null,null,null,null,null,null,0,0,0]
[null,null,null,null,null,null,null,null,null,0,0,0]
[null,null,null,null,null,null,null,null,null,0,0,0]
[null,null,null,null,null,null,null,null,null,0,0,0]
[null,null,null,null,null,null,null,null,null,0,0,0]
[null,null,null,null,null,null,null,null,null,0,0,0]
[null,null,null,null,null,null,null,null,null,0,0,0]
[null,null,null,null,null,null,null,null,null,0,0,0]
[null,null,null,null,null,null,null,null,null,0,0,0]
[null,null,null,null,null,null,null,null,null,0,0,0]
[null,null,null,null,null,null,null,null,null,0,0,0]
[null,null,null,null,null,null,null,null,null,0,0,0]
[null,null,null,null,null,null,null,null,null,0,0,0]
[null,null,null,null,null,null,null,null,null,0,0,0]
[null,null,null,null,null,null,null,null,null,0,0,0]
[null,null,null,null,null,null,null,null,null,0,0,0]
[null,null,null,null,null,null,null,null,null,0,0,0]
[null,null,null,null,null,null,null,null,null,0,0,0]
[null,null,null,null,null,null,null,null,null,0,0,0]
[null,null,null,null,null,null,null,null,null,0,0,0]
[null,null,null,null,null,null,null,null,null,0,0,0]
[null,null,null,null,null,null,null,null,null,0,0,0]
[null,null,null,null,null,null,null,null,null,0,0,0]
[null,null,null,null,null,null,null,null,null,0,0,0]
[null,null,null,null,null,null,null,null,null,0,0,0]
[null,null,null,null,null,null,null,null,null,0,0,0]
[null,null,null,null,null,null,null,null,null,0,0,0]
[null,null,null,null,null,null,null,null,null,0,0,0]
[null,null,null,null,null,null,null,null,null,0,0,0]
[null,null,null,null,null,null,null,null,null,0,0,0]
[null,null,null,null,null,null,null,null,null,0,0,0]
[null,null,null,null,null,null,null,null,null,0,0,0]
[null,null,null,null,null,null,null,null,null,0,0,0]
[null,null,null,null,null,null,null,null,null,0,0,0]
[null,null,null,null,null,null,null,null,null,0,0,0]
[null,null,null,null,null,null,null,null,null,0,0,0]
[null,null,null,null,null,null,null,null,null,0,0,0]
[null,null,null,null,null,null,null,null,null,0,0,0]
[null,null,null,null,null,null,null,null,null,0,0,0]
[null,null,null,null,null,null,null,null,null,0,0,0]
[null,null,null,null,null,null,null,null,null,0,0,0]
[null,null,null,null,null,null,null,null,null,0,0,0]
[null,null,null,null,null,null,null,null,null,0,0,0]
[null,null,null,null,null,null,null,null,null,0,0,0]
[null,null,null,null,null,null,null,null,null,0,0,0]
[null,null,null,null,null,null,null,null,null,0,0,0]
[null,null,null,null,null,null,null,null,null,0,0,0]
[null,null,null,null,null,null,null,null,null,0,0,0]
[null,null,null,null,null,null,null,null,null,0,0,0]
[null,null,null,null,null,null,null,null,null,0,0,0]
[null,null,null,null,null,null,null,null,null,0,0,0]
[null,null,null,null,null,null,null,null,null,0,0,0]
[null,null,null,null,null,null,null,null,null,0,0,0]
[null,null,null,null,null,null,null,null,null,0,0,0]
[null,null,null,null,null,null,null,null,null,0,0,0]
[null,null,null,null,null,null,null,null,null,0,0,0]
[null,null,null,null,null,null,null,null,null,{"$f":"IFERROR(((($B1926/$H1926)*$M1926)),0)","v":0},{"$f":"F1926+G1926+E1926","v":0},{"$f":"IFERROR((($B1926/$H1926)*$M1926)+(($C1926/$H1926)*$M1926)+(($D1926/$H1926)*$M1926)+($E1926)+($G1926)+($F1926),0)","v":0}]
[null,null,null,null,null,null,null,null,null,0,0,0]
[null,null,null,null,null,null,null,null,null,0,0,0]
[null,null,null,null,null,null,null,null,null,0,0,0]
[null,null,null,null,null,null,null,null,null,0,0,0]
[null,null,null,null,null,null,null,null,null,0,0,0]
[null,null,null,null,null,null,null,null,null,0,0,0]
[null,null,null,null,null,null,null,null,null,0,0,0]
[null,null,null,null,null,null,null,null,null,0,0,0]
[null,null,null,null,null,null,null,null,null,0,0,0]
[null,null,null,null,null,null,null,null,null,0,0,0]
[null,null,null,null,null,null,null,null,null,0,0,0]
[null,null,null,null,null,null,null,null,null,0,0,0]
[null,null,null,null,null,null,null,null,null,0,0,0]
[null,null,null,null,null,null,null,null,null,0,0,0]
[null,null,null,null,null,null,null,null,null,0,0,0]
[null,null,null,null,null,null,null,null,null,0,0,0]
[null,null,null,null,null,null,null,null,null,0,0,0]
[null,null,null,null,null,null,null,null,null,0,0,0]
[null,null,null,null,null,null,null,null,null,0,0,0]
[null,null,null,null,null,null,null,null,null,0,0,0]
[null,null,null,null,null,null,null,null,null,0,0,0]
[null,null,null,null,null,null,null,null,null,0,0,0]
[null,null,null,null,null,null,null,null,null,0,0,0]
[null,null,null,null,null,null,null,null,null,0,0,0]
[null,null,null,null,null,null,null,null,null,0,0,0]
[null,null,null,null,null,null,null,null,null,0,0,0]
[null,null,null,null,null,null,null,null,null,0,0,0]
[null,null,null,null,null,null,null,null,null,0,0,0]
[null,null,null,null,null,null,null,null,null,0,0,0]
[null,null,null,null,null,null,null,null,null,0,0,0]
[null,null,null,null,null,null,null,null,null,0,0,0]
[null,null,null,null,null,null,null,null,null,0,0,0]
[null,null,null,null,null,null,null,null,null,0,0,0]
[null,null,null,null,null,null,null,null,null,0,0,0]
[null,null,null,null,null,null,null,null,null,0,0,0]
[null,null,null,null,null,null,null,null,null,0,0,0]
[null,null,null,null,null,null,null,null,null,0,0,0]
[null,null,null,null,null,null,null,null,null,0,0,0]
[null,null,null,null,null,null,null,null,null,0,0,0]
[null,null,null,null,null,null,null,null,null,0,0,0]
[null,null,null,null,null,null,null,null,null,0,0,0]
[null,null,null,null,null,null,null,null,null,0,0,0]
[null,null,null,null,null,null,null,null,null,0,0,0]
[null,null,null,null,null,null,null,null,null,0,0,0]
[null,null,null,null,null,null,null,null,null,0,0,0]
[null,null,null,null,null,null,null,null,null,0,0,0]
[null,null,null,null,null,null,null,null,null,0,0,0]
[null,null,null,null,null,null,null,null,null,0,0,0]
[null,null,null,null,null,null,null,null,null,0,0,0]
[null,null,null,null,null,null,null,null,null,0,0,0]
[null,null,null,null,null,null,null,null,null,0,0,0]
[null,null,null,null,null,null,null,null,null,0,0,0]
[null,null,null,null,null,null,null,null,null,0,0,0]
[null,null,null,null,null,null,null,null,null,0,0,0]
[null,null,null,null,null,null,null,null,null,0,0,0]
[null,null,null,null,null,null,null,null,null,0,0,0]
[null,null,null,null,null,null,null,null,null,0,0,0]
[null,null,null,null,null,null,null,null,null,0,0,0]
[null,null,null,null,null,null,null,null,null,0,0,0]
[null,null,null,null,null,null,null,null,null,0,0,0]
[null,null,null,null,null,null,null,null,null,0,0,0]
[null,null,null,null,null,null,null,null,null,0,0,0]
[null,null,null,null,null,null,null,null,null,0,0,0]
[null,null,null,null,null,null,null,null,null,{"$f":"IFERROR(((($B1990/$H1990)*$M1990)),0)","v":0},{"$f":"F1990+G1990+E1990","v":0},{"$f":"IFERROR((($B1990/$H1990)*$M1990)+(($C1990/$H1990)*$M1990)+(($D1990/$H1990)*$M1990)+($E1990)+($G1990)+($F1990),0)","v":0}]
[null,null,null,null,null,null,null,null,null,0,0,0]
[null,null,null,null,null,null,null,null,null,0,0,0]
[null,null,null,null,null,null,null,null,null,0,0,0]
[null,null,null,null,null,null,null,null,null,0,0,0]
[null,null,null,null,null,null,null,null,null,0,0,0]
[null,null,null,null,null,null,null,null,null,0,0,0]
[null,null,null,null,null,null,null,null,null,0,0,0]
[null,null,null,null,null,null,null,null,null,0,0,0]
[null,null,null,null,null,null,null,null,null,0,0,0]
[null,null,null,null,null,null,null,null,null,0,0,0]
[null,null,null,null,null,null,null,null,null,0,0,0]
[null,null,null,null,null,null,null,null,null,0,0,0]
[null,null,null,null,null,null,null,null,null,0,0,0]
[null,null,null,null,null,null,null,null,null,0,0,0]
[null,null,null,null,null,null,null,null,null,0,0,0]
[null,null,null,null,null,null,null,null,null,0,0,0]
[null,null,null,null,null,null,null,null,null,0,0,0]
[null,null,null,null,null,null,null,null,null,0,0,0]
[null,null,null,null,null,null,null,null,null,0,0,0]
[null,null,null,null,null,null,null,null,null,0,0,0]
[null,null,null,null,null,null,null,null,null,0,0,0]
[null,null,null,null,null,null,null,null,null,0,0,0]
[null,null,null,null,null,null,null,null,null,0,0,0]
[null,null,null,null,null,null,null,null,null,0,0,0]
[null,null,null,null,null,null,null,null,null,0,0,0]
[null,null,null,null,null,null,null,null,null,0,0,0]
[null,null,null,null,null,null,null,null,null,0,0,0]
[null,null,null,null,null,null,null,null,null,0,0,0]
[null,null,null,null,null,null,null,null,null,0,0,0]
[null,null,null,null,null,null,null,null,null,0,0,0]
[null,null,null,null,null,null,null,null,null,0,0,0]
[null,null,null,null,null,null,null,null,null,0,0,0]
[null,null,null,null,null,null,null,null,null,0,0,0]
[null,null,null,null,null,null,null,null,null,0,0,0]
[null,null,null,null,null,null,null,null,null,0,0,0]
[null,null,null,null,null,null,null,null,null,0,0,0]
[null,null,null,null,null,null,null,null,null,0,0,0]
[null,null,null,null,null,null,null,null,null,0,0,0]
[null,null,null,null,null,null,null,null,null,0,0,0]
[null,null,null,null,null,null,null,null,null,0,0,0]
[null,null,null,null,null,null,null,null,null,0,0,0]
[null,null,null,null,null,null,null,null,null,0,0,0]
[null,null,null,null,null,null,null,null,null,0,0,0]
[null,null,null,null,null,null,null,null,null,0,0,0]
[null,null,null,null,null,null,null,null,null,0,0,0]
[null,null,null,null,null,null,null,null,null,0,0,0]
[null,null,null,null,null,null,null,null,null,0,0,0]
[null,null,null,null,null,null,null,null,null,0,0,0]
[null,null,null,null,null,null,null,null,null,0,0,0]
[null,null,null,null,null,null,null,null,null,0,0,0]
[null,null,null,null,null,null,null,null,null,0,0,0]
[null,null,null,null,null,null,null,null,null,0,0,0]
[null,null,null,null,null,null,null,null,null,0,0,0]
[null,null,null,null,null,null,null,null,null,0,0,0]
[null,null,null,null,null,null,null,null,null,0,0,0]
[null,null,null,null,null,null,null,null,null,0,0,0]
[null,null,null,null,null,null,null,null,null,0,0,0]
[null,null,null,null,null,null,null,null,null,0,0,0]
[null,null,null,null,null,null,null,null,null,0,0,0]
[null,null,null,null,null,null,null,null,null,0,0,0]
[null,null,null,null,null,null,null,null,null,0,0,0]
[null,null,null,null,null,null,null,null,null,0,0,0]
[null,null,null,null,null,null,null,null,null,0,0,0]
[null,null,null,null,null,null,null,null,null,0,0,0]
[null,null,null,null,null,null,null,null,null,0,0,0]
[null,null,null,null,null,null,null,null,null,0,0,0]
[null,null,null,null,null,null,null,null,null,0,0,0]
[null,null,null,null,null,null,null,null,null,0,0,0]
[null,null,null,null,null,null,null,null,null,0,0,0]
[null,null,null,null,null,null,null,null,null,0,0,0]
[null,null,null,null,null,null,null,null,null,0,0,0]
[null,null,null,null,null,null,null,null,null,0,0,0]
[null,null,null,null,null,null,null,null,null,0,0,0]
[null,null,null,null,null,null,null,null,null,0,0,0]
[null,null,null,null,null,null,null,null,null,0,0,0]
[null,null,null,null,null,null,null,null,null,0,0,0]
[null,null,null,null,null,null,null,null,null,0,0,0]
[null,null,null,null,null,null,null,null,null,0,0,0]
[null,null,null,null,null,null,null,null,null,0,0,0]
[null,null,null,null,null,null,null,null,null,0,0,0]
[null,null,null,null,null,null,null,null,null,0,0,0]
[null,null,null,null,null,null,null,null,null,0,0,0]
[null,null,null,null,null,null,null,null,null,0,0,0]
[null,null,null,null,null,null,null,null,null,0,0,0]
[null,null,null,null,null,null,null,null,null,0,0,0]
[null,null,null,null,null,null,null,null,null,0,0,0]
[null,null,null,null,null,null,null,null,null,0,0,0]
[null,null,null,null,null,null,null,null,null,0,0,0]
[null,null,null,null,null,null,null,null,null,0,0,0]
[null,null,null,null,null,null,null,null,null,0,0,0]
[null,null,null,null,null,null,null,null,null,0,0,0]
[null,null,null,null,null,null,null,null,null,0,0,0]
[null,null,null,null,null,null,null,null,null,0,0,0]
[null,null,null,null,null,null,null,null,null,0,0,0]
[null,null,null,null,null,null,null,null,null,0,0,0]
[null,null,null,null,null,null,null,null,null,0,0,0]
[null,null,null,null,null,null,null,null,null,0,0,0]
[null,null,null,null,null,null,null,null,null,0,0,0]
[null,null,null,null,null,null,null,null,null,0,0,0]
[null,null,null,null,null,null,null,null,null,{"$f":"IFERROR(((($B24262/$H24262)*$M24262)),0)","v":0},{"$f":"F24262+G24262+E24262","v":0},{"$f":"IFERROR((($B24262/$H24262)*$M24262)+(($C24262/$H24262)*$M24262)+(($D24262/$H24262)*$M24262)+($E24262)+($G24262)+($F24262),0)","v":0}]
[null,null,null,null,null,null,null,null,null,0,0,0]
[null,null,null,null,null,null,null,null,null,0,0,0]
[null,null,null,null,null,null,null,null,null,0,0,0]
[null,null,null,null,null,null,null,null,null,0,0,0]
[null,null,null,null,null,null,null,null,null,0,0,0]
[null,null,null,null,null,null,null,null,null,0,0,0]
[null,null,null,null,null,null,null,null,null,0,0,0]
[null,null,null,null,null,null,null,null,null,0,0,0]
[null,null,null,null,null,null,null,null,null,0,0,0]
[null,null,null,null,null,null,null,null,null,0,0,0]
[null,null,null,null,null,null,null,null,null,0,0,0]
[null,null,null,null,null,null,null,null,null,0,0,0]
[null,null,null,null,null,null,null,null,null,0,0,0]
[null,null,null,null,null,null,null,null,null,0,0,0]
[null,null,null,null,null,null,null,null,null,0,0,0]
[null,null,null,null,null,null,null,null,null,0,0,0]
[null,null,null,null,null,null,null,null,null,0,0,0]
[null,null,null,null,null,null,null,null,null,0,0,0]
[null,null,null,null,null,null,null,null,null,0,0,0]
[null,null,null,null,null,null,null,null,null,0,0,0]
[null,null,null,null,null,null,null,null,null,0,0,0]
[null,null,null,null,null,null,null,null,null,0,0,0]
[null,null,null,null,null,null,null,null,null,0,0,0]
[null,null,null,null,null,null,null,null,null,0,0,0]
[null,null,null,null,null,null,null,null,null,0,0,0]
[null,null,null,null,null,null,null,null,null,0,0,0]
[null,null,null,null,null,null,null,null,null,0,0,0]
[null,null,null,null,null,null,null,null,null,0,0,0]
[null,null,null,null,null,null,null,null,null,0,0,0]
[null,null,null,null,null,null,null,null,null,0,0,0]
[null,null,null,null,null,null,null,null,null,0,0,0]
[null,null,null,null,null,null,null,null,null,0,0,0]
[null,null,null,null,null,null,null,null,null,0,0,0]
[null,null,null,null,null,null,null,null,null,0,0,0]
[null,null,null,null,null,null,null,null,null,0,0,0]
[null,null,null,null,null,null,null,null,null,0,0,0]
[null,null,null,null,null,null,null,null,null,0,0,0]
[null,null,null,null,null,null,null,null,null,0,0,0]
[null,null,null,null,null,null,null,null,null,0,0,0]
[null,null,null,null,null,null,null,null,null,0,0,0]
[null,null,null,null,null,null,null,null,null,0,0,0]
[null,null,null,null,null,null,null,null,null,0,0,0]
[null,null,null,null,null,null,null,null,null,0,0,0]
[null,null,null,null,null,null,null,null,null,0,0,0]
[null,null,null,null,null,null,null,null,null,0,0,0]
[null,null,null,null,null,null,null,null,null,0,0,0]
[null,null,null,null,null,null,null,null,null,0,0,0]
[null,null,null,null,null,null,null,null,null,0,0,0]
[null,null,null,null,null,null,null,null,null,0,0,0]
[null,null,null,null,null,null,null,null,null,0,0,0]
[null,null,null,null,null,null,null,null,null,0,0,0]
[null,null,null,null,null,null,null,null,null,0,0,0]
[null,null,null,null,null,null,null,null,null,0,0,0]
[null,null,null,null,null,null,null,null,null,{"$f":"IFERROR(((($B37702/$H37702)*$M37702)),0)","v":0},{"$f":"F37702+G37702+E37702","v":0},{"$f":"IFERROR((($B37702/$H37702)*$M37702)+(($C37702/$H37702)*$M37702)+(($D37702/$H37702)*$M37702)+($E37702)+($G37702)+($F37702),0)","v":0}]
[null,null,null,null,null,null,null,null,null,0,0,0]
[null,null,null,null,null,null,null,null,null,0,0,0]
[null,null,null,null,null,null,null,null,null,0,0,0]
[null,null,null,null,null,null,null,null,null,0,0,0]
[null,null,null,null,null,null,null,null,null,0,0,0]
[null,null,null,null,null,null,null,null,null,0,0,0]
[null,null,null,null,null,null,null,null,null,0,0,0]
[null,null,null,null,null,null,null,null,null,0,0,0]
[null,null,null,null,null,null,null,null,null,0,0,0]
[null,null,null,null,null,null,null,null,null,0,0,0]
[null,null,null,null,null,null,null,null,null,0,0,0]
[null,null,null,null,null,null,null,null,null,0,0,0]
[null,null,null,null,null,null,null,null,null,0,0,0]
[null,null,null,null,null,null,null,null,null,0,0,0]
[null,null,null,null,null,null,null,null,null,0,0,0]
[null,null,null,null,null,null,null,null,null,0,0,0]
[null,null,null,null,null,null,null,null,null,0,0,0]
[null,null,null,null,null,null,null,null,null,0,0,0]
[null,null,null,null,null,null,null,null,null,0,0,0]
[null,null,null,null,null,null,null,null,null,0,0,0]
[null,null,null,null,null,null,null,null,null,0,0,0]
[null,null,null,null,null,null,null,null,null,0,0,0]
[null,null,null,null,null,null,null,null,null,0,0,0]
[null,null,null,null,null,null,null,null,null,0,0,0]
[null,null,null,null,null,null,null,null,null,0,0,0]
[null,null,null,null,null,null,null,null,null,0,0,0]
[null,null,null,null,null,null,null,null,null,0,0,0]
[null,null,null,null,null,null,null,null,null,0,0,0]
[null,null,null,null,null,null,null,null,null,0,0,0]
[null,null,null,null,null,null,null,null,null,0,0,0]
[null,null,null,null,null,null,null,null,null,0,0,0]
[null,null,null,null,null,null,null,null,null,0,0,0]
[null,null,null,null,null,null,null,null,null,0,0,0]
[null,null,null,null,null,null,null,null,null,0,0,0]
[null,null,null,null,null,null,null,null,null,0,0,0]
[null,null,null,null,null,null,null,null,null,0,0,0]
[null,null,null,null,null,null,null,null,null,0,0,0]
[null,null,null,null,null,null,null,null,null,0,0,0]
[null,null,null,null,null,null,null,null,null,0,0,0]
[null,null,null,null,null,null,null,null,null,0,0,0]
[null,null,null,null,null,null,null,null,null,0,0,0]
[null,null,null,null,null,null,null,null,null,0,0,0]
[null,null,null,null,null,null,null,null,null,0,0,0]
[null,null,null,null,null,null,null,null,null,0,0,0]
[null,null,null,null,null,null,null,null,null,0,0,0]
[null,null,null,null,null,null,null,null,null,0,0,0]
[null,null,null,null,null,null,null,null,null,0,0,0]
[null,null,null,null,null,null,null,null,null,0,0,0]
[null,null,null,null,null,null,null,null,null,0,0,0]
[null,null,null,null,null,null,null,null,null,0,0,0]
[null,null,null,null,null,null,null,null,null,0,0,0]
[null,null,null,null,null,null,null,null,null,0,0,0]
[null,null,null,null,null,null,null,null,null,0,0,0]
[null,null,null,null,null,null,null,null,null,0,0,0]
[null,null,null,null,null,null,null,null,null,0,0,0]
[null,null,null,null,null,null,null,null,null,0,0,0]
[null,null,null,null,null,null,null,null,null,0,0,0]
[null,null,null,null,null,null,null,null,null,0,0,0]
[null,null,null,null,null,null,null,null,null,0,0,0]
[null,null,null,null,null,null,null,null,null,0,0,0]
[null,null,null,null,null,null,null,null,null,0,0,0]
[null,null,null,null,null,null,null,null,null,0,0,0]
[null,null,null,null,null,null,null,null,null,0,0,0]
[null,null,null,null,null,null,null,null,null,0,0,0]
[null,null,null,null,null,null,null,null,null,0,0,0]
[null,null,null,null,null,null,null,null,null,0,0,0]
[null,null,null,null,null,null,null,null,null,0,0,0]
[null,null,null,null,null,null,null,null,null,0,0,0]
[null,null,null,null,null,null,null,null,null,0,0,0]
[null,null,null,null,null,null,null,null,null,0,0,0]
[null,null,null,null,null,null,null,null,null,0,0,0]
[null,null,null,null,null,null,null,null,null,0,0,0]
[null,null,null,null,null,null,null,null,null,0,0,0]
[null,null,null,null,null,null,null,null,null,0,0,0]
[null,null,null,null,null,null,null,null,null,0,0,0]
[null,null,null,null,null,null,null,null,null,0,0,0]
[null,null,null,null,null,null,null,null,null,0,0,0]
[null,null,null,null,null,null,null,null,null,0,0,0]
[null,null,null,null,null,null,null,null,null,0,0,0]
[null,null,null,null,null,null,null,null,null,0,0,0]
[null,null,null,null,null,null,null,null,null,0,0,0]
[null,null,null,null,null,null,null,null,null,0,0,0]
[null,null,null,null,null,null,null,null,null,0,0,0]
[null,null,null,null,null,null,null,null,null,0,0,0]
[null,null,null,null,null,null,null,null,null,0,0,0]
[null,null,null,null,null,null,null,null,null,0,0,0]
[null,null,null,null,null,null,null,null,null,0,0,0]
[null,null,null,null,null,null,null,null,null,0,0,0]
[null,null,null,null,null,null,null,null,null,0,0,0]
[null,null,null,null,null,null,null,null,null,0,0,0]
[null,null,null,null,null,null,null,null,null,0,0,0]
[null,null,null,null,null,null,null,null,null,0,0,0]
[null,null,null,null,null,null,null,null,null,0,0,0]
[null,null,null,null,null,null,null,null,null,0,0,0]
[null,null,null,null,null,null,null,null,null,0,0,0]
[null,null,null,null,null,null,null,null,null,0,0,0]
[null,null,null,null,null,null,null,null,null,0,0,0]
[null,null,null,null,null,null,null,null,null,0,0,0]
[null,null,null,null,null,null,null,null,null,0,0,0]
[null,null,null,null,null,null,null,null,null,0,0,0]
[null,null,null,null,null,null,null,null,null,0,0,0]
[null,null,null,null,null,null,null,null,null,0,0,0]
[null,null,null,null,null,null,null,null,null,0,0,0]
[null,null,null,null,null,null,null,null,null,0,0,0]
[null,null,null,null,null,null,null,null,null,0,0,0]
[null,null,null,null,null,null,null,null,null,0,0,0]
[null,null,null,null,null,null,null,null,null,0,0,0]
[null,null,null,null,null,null,null,null,null,{"$f":"IFERROR(((($B64454/$H64454)*$M64454)),0)","v":0},{"$f":"F64454+G64454+E64454","v":0},{"$f":"IFERROR((($B64454/$H64454)*$M64454)+(($C64454/$H64454)*$M64454)+(($D64454/$H64454)*$M64454)+($E64454)+($G64454)+($F64454),0)","v":0}]
[null,null,null,null,null,null,null,null,null,0,0,0]
[null,null,null,null,null,null,null,null,null,0,0,0]
[null,null,null,null,null,null,null,null,null,0,0,0]
[null,null,null,null,null,null,null,null,null,0,0,0]
[null,null,null,null,null,null,null,null,null,0,0,0]
[null,null,null,null,null,null,null,null,null,0,0,0]
[null,null,null,null,null,null,null,null,null,0,0,0]
[null,null,null,null,null,null,null,null,null,0,0,0]
[null,null,null,null,null,null,null,null,null,0,0,0]
[null,null,null,null,null,null,null,null,null,0,0,0]
[null,null,null,null,null,null,null,null,null,0,0,0]
[null,null,null,null,null,null,null,null,null,0,0,0]
[null,null,null,null,null,null,null,null,null,0,0,0]
[null,null,null,null,null,null,null,null,null,0,0,0]
[null,null,null,null,null,null,null,null,null,0,0,0]
[null,null,null,null,null,null,null,null,null,0,0,0]
[null,null,null,null,null,null,null,null,null,0,0,0]
[null,null,null,null,null,null,null,null,null,0,0,0]
[null,null,null,null,null,null,null,null,null,0,0,0]
[null,null,null,null,null,null,null,null,null,0,0,0]
[null,null,null,null,null,null,null,null,null,0,0,0]
[null,null,null,null,null,null,null,null,null,0,0,0]
[null,null,null,null,null,null,null,null,null,0,0,0]
[null,null,null,null,null,null,null,null,null,0,0,0]
[null,null,null,null,null,null,null,null,null,0,0,0]
[null,null,null,null,null,null,null,null,null,0,0,0]
[null,null,null,null,null,null,null,null,null,0,0,0]
[null,null,null,null,null,null,null,null,null,0,0,0]
[null,null,null,null,null,null,null,null,null,0,0,0]
[null,null,null,null,null,null,null,null,null,0,0,0]
[null,null,null,null,null,null,null,null,null,0,0,0]
[null,null,null,null,null,null,null,null,null,0,0,0]
[null,null,null,null,null,null,null,null,null,0,0,0]
[null,null,null,null,null,null,null,null,null,0,0,0]
[null,null,null,null,null,null,null,null,null,0,0,0]
[null,null,null,null,null,null,null,null,null,0,0,0]
[null,null,null,null,null,null,null,null,null,0,0,0]
[null,null,null,null,null,null,null,null,null,0,0,0]
[null,null,null,null,null,null,null,null,null,0,0,0]
[null,null,null,null,null,null,null,null,null,0,0,0]
[null,null,null,null,null,null,null,null,null,0,0,0]
[null,null,null,null,null,null,null,null,null,0,0,0]
[null,null,null,null,null,null,null,null,null,0,0,0]
[null,null,null,null,null,null,null,null,null,0,0,0]
[null,null,null,null,null,null,null,null,null,0,0,0]
[null,null,null,null,null,null,null,null,null,0,0,0]
[null,null,null,null,null,null,null,null,null,0,0,0]
[null,null,null,null,null,null,null,null,null,0,0,0]
[null,null,null,null,null,null,null,null,null,0,0,0]
[null,null,null,null,null,null,null,null,null,0,0,0]
[null,null,null,null,null,null,null,null,null,0,0,0]
[null,null,null,null,null,null,null,null,null,0,0,0]
[null,null,null,null,null,null,null,null,null,0,0,0]
[null,null,null,null,null,null,null,null,null,{"$f":"IFERROR(((($B77894/$H77894)*$M77894)),0)","v":0},{"$f":"F77894+G77894+E77894","v":0},{"$f":"IFERROR((($B77894/$H77894)*$M77894)+(($C77894/$H77894)*$M77894)+(($D77894/$H77894)*$M77894)+($E77894)+($G77894)+($F77894),0)","v":0}]
[null,null,null,null,null,null,null,null,null,0,0,0]
[null,null,null,null,null,null,null,null,null,0,0,0]
[null,null,null,null,null,null,null,null,null,0,0,0]
[null,null,null,null,null,null,null,null,null,0,0,0]
[null,null,null,null,null,null,null,null,null,0,0,0]
[null,null,null,null,null,null,null,null,null,0,0,0]
[null,null,null,null,null,null,null,null,null,{"$f":"IFERROR(((($B79622/$H79622)*$M79622)),0)","v":0},{"$f":"F79622+G79622+E79622","v":0},{"$f":"IFERROR((($B79622/$H79622)*$M79622)+(($C79622/$H79622)*$M79622)+(($D79622/$H79622)*$M79622)+($E79622)+($G79622)+($F79622),0)","v":0}]
[null,null,null,null,null,null,null,null,null,0,0,0]
[null,null,null,null,null,null,null,null,null,0,0,0]
[null,null,null,null,null,null,null,null,null,0,0,0]
[null,null,null,null,null,null,null,null,null,0,0,0]
[null,null,null,null,null,null,null,null,null,0,0,0]
[null,null,null,null,null,null,null,null,null,0,0,0]
[null,null,null,null,null,null,null,null,null,0,0,0]
[null,null,null,null,null,null,null,null,null,0,0,0]
[null,null,null,null,null,null,null,null,null,0,0,0]
[null,null,null,null,null,null,null,null,null,0,0,0]
[null,null,null,null,null,null,null,null,null,0,0,0]
[null,null,null,null,null,null,null,null,null,0,0,0]
[null,null,null,null,null,null,null,null,null,0,0,0]
[null,null,null,null,null,null,null,null,null,0,0,0]
[null,null,null,null,null,null,null,null,null,0,0,0]
[null,null,null,null,null,null,null,null,null,0,0,0]
[null,null,null,null,null,null,null,null,null,0,0,0]
[null,null,null,null,null,null,null,null,null,0,0,0]
[null,null,null,null,null,null,null,null,null,0,0,0]
[null,null,null,null,null,null,null,null,null,0,0,0]
[null,null,null,null,null,null,null,null,null,0,0,0]
[null,null,null,null,null,null,null,null,null,0,0,0]
[null,null,null,null,null,null,null,null,null,0,0,0]
[null,null,null,null,null,null,null,null,null,0,0,0]
[null,null,null,null,null,null,null,null,null,0,0,0]
[null,null,null,null,null,null,null,null,null,0,0,0]
[null,null,null,null,null,null,null,null,null,0,0,0]
[null,null,null,null,null,null,null,null,null,0,0,0]
[null,null,null,null,null,null,null,null,null,0,0,0]
[null,null,null,null,null,null,null,null,null,0,0,0]
[null,null,null,null,null,null,null,null,null,0,0,0]
[null,null,null,null,null,null,null,null,null,0,0,0]
[null,null,null,null,null,null,null,null,null,0,0,0]
[null,null,null,null,null,null,null,null,null,0,0,0]
[null,null,null,null,null,null,null,null,null,0,0,0]
[null,null,null,null,null,null,null,null,null,0,0,0]
[null,null,null,null,null,null,null,null,null,0,0,0]
[null,null,null,null,null,null,null,null,null,0,0,0]
[null,null,null,null,null,null,null,null,null,0,0,0]
[null,null,null,null,null,null,null,null,null,0,0,0]
[null,null,null,null,null,null,null,null,null,0,0,0]
[null,null,null,null,null,null,null,null,null,0,0,0]
[null,null,null,null,null,null,null,null,null,0,0,0]
[null,null,null,null,null,null,null,null,null,0,0,0]
[null,null,null,null,null,null,null,null,null,0,0,0]
[null,null,null,null,null,null,null,null,null,0,0,0]
[null,null,null,null,null,null,null,null,null,0,0,0]
[null,null,null,null,null,null,null,null,null,0,0,0]
[null,null,null,null,null,null,null,null,null,0,0,0]
[null,null,null,null,null,null,null,null,null,0,0,0]
[null,null,null,null,null,null,null,null,null,0,0,0]
[null,null,null,null,null,null,null,null,null,0,0,0]
[null,null,null,null,null,null,null,null,null,0,0,0]
[null,null,null,null,null,null,null,null,null,{"$f":"IFERROR(((($B92934/$H92934)*$M92934)),0)","v":0},{"$f":"F92934+G92934+E92934","v":0},{"$f":"IFERROR((($B92934/$H92934)*$M92934)+(($C92934/$H92934)*$M92934)+(($D92934/$H92934)*$M92934)+($E92934)+($G92934)+($F92934),0)","v":0}]
[null,null,null,null,null,null,null,null,null,0,0,0]
[null,null,null,null,null,null,null,null,null,0,0,0]
[null,null,null,null,null,null,null,null,null,0,0,0]
[null,null,null,null,null,null,null,null,null,0,0,0]
[null,null,null,null,null,null,null,null,null,0,0,0]
[null,null,null,null,null,null,null,null,null,0,0,0]
[null,null,null,null,null,null,null,null,null,0,0,0]
[null,null,null,null,null,null,null,null,null,0,0,0]
[null,null,null,null,null,null,null,null,null,0,0,0]
[null,null,null,null,null,null,null,null,null,0,0,0]
[null,null,null,null,null,null,null,null,null,0,0,0]
[null,null,null,null,null,null,null,null,null,0,0,0]
[null,null,null,null,null,null,null,null,null,0,0,0]
[null,null,null,null,null,null,null,null,null,0,0,0]
[null,null,null,null,null,null,null,null,null,0,0,0]
[null,null,null,null,null,null,null,null,null,0,0,0]
[null,null,null,null,null,null,null,null,null,0,0,0]
[null,null,null,null,null,null,null,null,null,0,0,0]
[null,null,null,null,null,null,null,null,null,0,0,0]
[null,null,null,null,null,null,null,null,null,0,0,0]
[null,null,null,null,null,null,null,null,null,0,0,0]
[null,null,null,null,null,null,null,null,null,0,0,0]
[null,null,null,null,null,null,null,null,null,0,0,0]
[null,null,null,null,null,null,null,null,null,0,0,0]
[null,null,null,null,null,null,null,null,null,0,0,0]
[null,null,null,null,null,null,null,null,null,0,0,0]
[null,null,null,null,null,null,null,null,null,0,0,0]
[null,null,null,null,null,null,null,null,null,0,0,0]
[null,null,null,null,null,null,null,null,null,0,0,0]
[null,null,null,null,null,null,null,null,null,0,0,0]
[null,null,null,null,null,null,null,null,null,0,0,0]
[null,null,null,null,null,null,null,null,null,0,0,0]
[null,null,null,null,null,null,null,null,null,0,0,0]
[null,null,null,null,null,null,null,null,null,0,0,0]
[null,null,null,null,null,null,null,null,null,0,0,0]
[null,null,null,null,null,null,null,null,null,0,0,0]
[null,null,null,null,null,null,null,null,null,0,0,0]
[null,null,null,null,null,null,null,null,null,0,0,0]
[null,null,null,null,null,null,null,null,null,0,0,0]
[null,null,null,null,null,null,null,null,null,0,0,0]
[null,null,null,null,null,null,null,null,null,0,0,0]
[null,null,null,null,null,null,null,null,null,0,0,0]
[null,null,null,null,null,null,null,null,null,0,0,0]
[null,null,null,null,null,null,null,null,null,0,0,0]
[null,null,null,null,null,null,null,null,null,0,0,0]
[null,null,null,null,null,null,null,null,null,0,0,0]
[null,null,null,null,null,null,null,null,null,{"$f":"IFERROR(((($B104646/$H104646)*$M104646)),0)","v":0},{"$f":"F104646+G104646+E104646","v":0},{"$f":"IFERROR((($B104646/$H104646)*$M104646)+(($C104646/$H104646)*$M104646)+(($D104646/$H104646)*$M104646)+($E104646)+($G104646)+($F104646),0)","v":0}]
[null,null,null,null,null,null,null,null,null,0,0,0]
[null,null,null,null,null,null,null,null,null,0,0,0]
[null,null,null,null,null,null,null,null,null,0,0,0]
[null,null,null,null,null,null,null,null,null,0,0,0]
[null,null,null,null,null,null,null,null,null,0,0,0]
[null,null,null,null,null,null,null,null,null,0,0,0]
[null,null,null,null,null,null,null,null,null,{"$f":"IFERROR(((($B106374/$H106374)*$M106374)),0)","v":0},{"$f":"F106374+G106374+E106374","v":0},{"$f":"IFERROR((($B106374/$H106374)*$M106374)+(($C106374/$H106374)*$M106374)+(($D106374/$H106374)*$M106374)+($E106374)+($G106374)+($F106374),0)","v":0}]
[null,null,null,null,null,null,null,null,null,0,0,0]
[null,null,null,null,null,null,null,null,null,0,0,0]
[null,null,null,null,null,null,null,null,null,0,0,0]
[null,null,null,null,null,null,null,null,null,0,0,0]
[null,null,null,null,null,null,null,null,null,0,0,0]
[null,null,null,null,null,null,null,null,null,0,0,0]
[null,null,null,null,null,null,null,null,null,0,0,0]
[null,null,null,null,null,null,null,null,null,0,0,0]
[null,null,null,null,null,null,null,null,null,0,0,0]
[null,null,null,null,null,null,null,null,null,0,0,0]
[null,null,null,null,null,null,null,null,null,0,0,0]
[null,null,null,null,null,null,null,null,null,0,0,0]
[null,null,null,null,null,null,null,null,null,0,0,0]
[null,null,null,null,null,null,null,null,null,0,0,0]
[null,null,null,null,null,null,null,null,null,0,0,0]
[null,null,null,null,null,null,null,null,null,0,0,0]
[null,null,null,null,null,null,null,null,null,0,0,0]
[null,null,null,null,null,null,null,null,null,0,0,0]
[null,null,null,null,null,null,null,null,null,0,0,0]
[null,null,null,null,null,null,null,null,null,0,0,0]
[null,null,null,null,null,null,null,null,null,0,0,0]
[null,null,null,null,null,null,null,null,null,0,0,0]
[null,null,null,null,null,null,null,null,null,0,0,0]
[null,null,null,null,null,null,null,null,null,0,0,0]
[null,null,null,null,null,null,null,null,null,0,0,0]
[null,null,null,null,null,null,null,null,null,0,0,0]
[null,null,null,null,null,null,null,null,null,0,0,0]
[null,null,null,null,null,null,null,null,null,0,0,0]
[null,null,null,null,null,null,null,null,null,0,0,0]
[null,null,null,null,null,null,null,null,null,0,0,0]
[null,null,null,null,null,null,null,null,null,0,0,0]
[null,null,null,null,null,null,null,null,null,0,0,0]
[null,null,null,null,null,null,null,null,null,0,0,0]
[null,null,null,null,null,null,null,null,null,0,0,0]
[null,null,null,null,null,null,null,null,null,0,0,0]
[null,null,null,null,null,null,null,null,null,0,0,0]
[null,null,null,null,null,null,null,null,null,0,0,0]
[null,null,null,null,null,null,null,null,null,0,0,0]
[null,null,null,null,null,null,null,null,null,0,0,0]
[null,null,null,null,null,null,null,null,null,0,0,0]
[null,null,null,null,null,null,null,null,null,0,0,0]
[null,null,null,null,null,null,null,null,null,0,0,0]
[null,null,null,null,null,null,null,null,null,0,0,0]
[null,null,null,null,null,null,null,null,null,0,0,0]
[null,null,null,null,null,null,null,null,null,0,0,0]
[null,null,null,null,null,null,null,null,null,0,0,0]
[null,null,null,null,null,null,null,null,null,0,0,0]
[null,null,null,null,null,null,null,null,null,0,0,0]
[null,null,null,null,null,null,null,null,null,0,0,0]
[null,null,null,null,null,null,null,null,null,0,0,0]
[null,null,null,null,null,null,null,null,null,0,0,0]
[null,null,null,null,null,null,null,null,null,0,0,0]
[null,null,null,null,null,null,null,null,null,0,0,0]
[null,null,null,null,null,null,null,null,null,{"$f":"IFERROR(((($B119814/$H119814)*$M119814)),0)","v":0},{"$f":"F119814+G119814+E119814","v":0},{"$f":"IFERROR((($B119814/$H119814)*$M119814)+(($C119814/$H119814)*$M119814)+(($D119814/$H119814)*$M119814)+($E119814)+($G119814)+($F119814),0)","v":0}]
[null,null,null,null,null,null,null,null,null,0,0,0]
[null,null,null,null,null,null,null,null,null,0,0,0]
[null,null,null,null,null,null,null,null,null,0,0,0]
[null,null,null,null,null,null,null,null,null,0,0,0]
[null,null,null,null,null,null,null,null,null,0,0,0]
[null,null,null,null,null,null,null,null,null,0,0,0]
[null,null,null,null,null,null,null,null,null,0,0,0]
[null,null,null,null,null,null,null,null,null,0,0,0]
[null,null,null,null,null,null,null,null,null,0,0,0]
[null,null,null,null,null,null,null,null,null,0,0,0]
[null,null,null,null,null,null,null,null,null,0,0,0]
[null,null,null,null,null,null,null,null,null,0,0,0]
[null,null,null,null,null,null,null,null,null,0,0,0]
[null,null,null,null,null,null,null,null,null,0,0,0]
[null,null,null,null,null,null,null,null,null,0,0,0]
[null,null,null,null,null,null,null,null,null,0,0,0]
[null,null,null,null,null,null,null,null,null,0,0,0]
[null,null,null,null,null,null,null,null,null,0,0,0]
[null,null,null,null,null,null,null,null,null,0,0,0]
[null,null,null,null,null,null,null,null,null,0,0,0]
[null,null,null,null,null,null,null,null,null,0,0,0]
[null,null,null,null,null,null,null,null,null,0,0,0]
[null,null,null,null,null,null,null,null,null,0,0,0]
[null,null,null,null,null,null,null,null,null,0,0,0]
[null,null,null,null,null,null,null,null,null,0,0,0]
[null,null,null,null,null,null,null,null,null,0,0,0]
[null,null,null,null,null,null,null,null,null,0,0,0]
[null,null,null,null,null,null,null,null,null,0,0,0]
[null,null,null,null,null,null,null,null,null,0,0,0]
[null,null,null,null,null,null,null,null,null,0,0,0]
[null,null,null,null,null,null,null,null,null,0,0,0]
[null,null,null,null,null,null,null,null,null,0,0,0]
[null,null,null,null,null,null,null,null,null,0,0,0]
[null,null,null,null,null,null,null,null,null,0,0,0]
[null,null,null,null,null,null,null,null,null,0,0,0]
[null,null,null,null,null,null,null,null,null,0,0,0]
[null,null,null,null,null,null,null,null,null,0,0,0]
[null,null,null,null,null,null,null,null,null,0,0,0]
[null,null,null,null,null,null,null,null,null,0,0,0]
[null,null,null,null,null,null,null,null,null,0,0,0]
[null,null,null,null,null,null,null,null,null,0,0,0]
[null,null,null,null,null,null,null,null,null,0,0,0]
[null,null,null,null,null,null,null,null,null,0,0,0]
[null,null,null,null,null,null,null,null,null,0,0,0]
[null,null,null,null,null,null,null,null,null,0,0,0]
[null,null,null,null,null,null,null,null,null,0,0,0]
[null,null,null,null,null,null,null,null,null,0,0,0]
[null,null,null,null,null,null,null,null,null,0,0,0]
[null,null,null,null,null,null,null,null,null,0,0,0]
[null,null,null,null,null,null,null,null,null,0,0,0]
[null,null,null,null,null,null,null,null,null,0,0,0]
[null,null,null,null,null,null,null,null,null,0,0,0]
[null,null,null,null,null,null,null,null,null,0,0,0]
[null,null,null,null,null,null,null,null,null,{"$f":"IFERROR(((($B133126/$H133126)*$M133126)),0)","v":0},{"$f":"F133126+G133126+E133126","v":0},{"$f":"IFERROR((($B133126/$H133126)*$M133126)+(($C133126/$H133126)*$M133126)+(($D133126/$H133126)*$M133126)+($E133126)+($G133126)+($F133126),0)","v":0}]
[null,null,null,null,null,null,null,null,null,0,0,0]
[null,null,null,null,null,null,null,null,null,0,0,0]
[null,null,null,null,null,null,null,null,null,0,0,0]
[null,null,null,null,null,null,null,null,null,0,0,0]
[null,null,null,null,null,null,null,null,null,0,0,0]
[null,null,null,null,null,null,null,null,null,0,0,0]
[null,null,null,null,null,null,null,null,null,0,0,0]
[null,null,null,null,null,null,null,null,null,0,0,0]
[null,null,null,null,null,null,null,null,null,0,0,0]
[null,null,null,null,null,null,null,null,null,0,0,0]
[null,null,null,null,null,null,null,null,null,0,0,0]
[null,null,null,null,null,null,null,null,null,0,0,0]
[null,null,null,null,null,null,null,null,null,0,0,0]
[null,null,null,null,null,null,null,null,null,0,0,0]
[null,null,null,null,null,null,null,null,null,0,0,0]
[null,null,null,null,null,null,null,null,null,0,0,0]
[null,null,null,null,null,null,null,null,null,0,0,0]
[null,null,null,null,null,null,null,null,null,0,0,0]
[null,null,null,null,null,null,null,null,null,0,0,0]
[null,null,null,null,null,null,null,null,null,0,0,0]
[null,null,null,null,null,null,null,null,null,0,0,0]
[null,null,null,null,null,null,null,null,null,0,0,0]
[null,null,null,null,null,null,null,null,null,0,0,0]
[null,null,null,null,null,null,null,null,null,0,0,0]
[null,null,null,null,null,null,null,null,null,0,0,0]
[null,null,null,null,null,null,null,null,null,0,0,0]
[null,null,null,null,null,null,null,null,null,0,0,0]
[null,null,null,null,null,null,null,null,null,0,0,0]
[null,null,null,null,null,null,null,null,null,0,0,0]
[null,null,null,null,null,null,null,null,null,0,0,0]
[null,null,null,null,null,null,null,null,null,0,0,0]
[null,null,null,null,null,null,null,null,null,0,0,0]
[null,null,null,null,null,null,null,null,null,0,0,0]
[null,null,null,null,null,null,null,null,null,0,0,0]
[null,null,null,null,null,null,null,null,null,0,0,0]
[null,null,null,null,null,null,null,null,null,0,0,0]
[null,null,null,null,null,null,null,null,null,0,0,0]
[null,null,null,null,null,null,null,null,null,0,0,0]
[null,null,null,null,null,null,null,null,null,0,0,0]
[null,null,null,null,null,null,null,null,null,0,0,0]
[null,null,null,null,null,null,null,null,null,0,0,0]
[null,null,null,null,null,null,null,null,null,0,0,0]
[null,null,null,null,null,null,null,null,null,0,0,0]
[null,null,null,null,null,null,null,null,null,0,0,0]
[null,null,null,null,null,null,null,null,null,0,0,0]
[null,null,null,null,null,null,null,null,null,0,0,0]
[null,null,null,null,null,null,null,null,null,0,0,0]
[null,null,null,null,null,null,null,null,null,0,0,0]
[null,null,null,null,null,null,null,null,null,0,0,0]
[null,null,null,null,null,null,null,null,null,0,0,0]
[null,null,null,null,null,null,null,null,null,0,0,0]
[null,null,null,null,null,null,null,null,null,0,0,0]
[null,null,null,null,null,null,null,null,null,0,0,0]
[null,null,null,null,null,null,null,null,null,{"$f":"IFERROR(((($B146566/$H146566)*$M146566)),0)","v":0},{"$f":"F146566+G146566+E146566","v":0},{"$f":"IFERROR((($B146566/$H146566)*$M146566)+(($C146566/$H146566)*$M146566)+(($D146566/$H146566)*$M146566)+($E146566)+($G146566)+($F146566),0)","v":0}]
[null,null,null,null,null,null,null,null,null,0,0,0]
[null,null,null,null,null,null,null,null,null,0,0,0]
[null,null,null,null,null,null,null,null,null,0,0,0]
[null,null,null,null,null,null,null,null,null,0,0,0]
[null,null,null,null,null,null,null,null,null,0,0,0]
[null,null,null,null,null,null,null,null,null,0,0,0]
[null,null,null,null,null,null,null,null,null,0,0,0]
[null,null,null,null,null,null,null,null,null,0,0,0]
[null,null,null,null,null,null,null,null,null,0,0,0]
[null,null,null,null,null,null,null,null,null,0,0,0]
[null,null,null,null,null,null,null,null,null,0,0,0]
[null,null,null,null,null,null,null,null,null,0,0,0]
[null,null,null,null,null,null,null,null,null,0,0,0]
[null,null,null,null,null,null,null,null,null,0,0,0]
[null,null,null,null,null,null,null,null,null,0,0,0]
[null,null,null,null,null,null,null,null,null,0,0,0]
[null,null,null,null,null,null,null,null,null,0,0,0]
[null,null,null,null,null,null,null,null,null,0,0,0]
[null,null,null,null,null,null,null,null,null,0,0,0]
[null,null,null,null,null,null,null,null,null,0,0,0]
[null,null,null,null,null,null,null,null,null,0,0,0]
[null,null,null,null,null,null,null,null,null,0,0,0]
[null,null,null,null,null,null,null,null,null,0,0,0]
[null,null,null,null,null,null,null,null,null,0,0,0]
[null,null,null,null,null,null,null,null,null,0,0,0]
[null,null,null,null,null,null,null,null,null,0,0,0]
[null,null,null,null,null,null,null,null,null,0,0,0]
[null,null,null,null,null,null,null,null,null,0,0,0]
[null,null,null,null,null,null,null,null,null,0,0,0]
[null,null,null,null,null,null,null,null,null,0,0,0]
[null,null,null,null,null,null,null,null,null,0,0,0]
[null,null,null,null,null,null,null,null,null,0,0,0]
[null,null,null,null,null,null,null,null,null,0,0,0]
[null,null,null,null,null,null,null,null,null,0,0,0]
[null,null,null,null,null,null,null,null,null,0,0,0]
[null,null,null,null,null,null,null,null,null,0,0,0]
[null,null,null,null,null,null,null,null,null,0,0,0]
[null,null,null,null,null,null,null,null,null,0,0,0]
[null,null,null,null,null,null,null,null,null,0,0,0]
[null,null,null,null,null,null,null,null,null,0,0,0]
[null,null,null,null,null,null,null,null,null,0,0,0]
[null,null,null,null,null,null,null,null,null,0,0,0]
[null,null,null,null,null,null,null,null,null,0,0,0]
[null,null,null,null,null,null,null,null,null,0,0,0]
[null,null,null,null,null,null,null,null,null,0,0,0]
[null,null,null,null,null,null,null,null,null,0,0,0]
[null,null,null,null,null,null,null,null,null,0,0,0]
[null,null,null,null,null,null,null,null,null,0,0,0]
[null,null,null,null,null,null,null,null,null,0,0,0]
[null,null,null,null,null,null,null,null,null,0,0,0]
[null,null,null,null,null,null,null,null,null,0,0,0]
[null,null,null,null,null,null,null,null,null,0,0,0]
[null,null,null,null,null,null,null,null,null,0,0,0]
[null,null,null,null,null,null,null,null,null,{"$f":"IFERROR(((($B159878/$H159878)*$M159878)),0)","v":0},{"$f":"F159878+G159878+E159878","v":0},{"$f":"IFERROR((($B159878/$H159878)*$M159878)+(($C159878/$H159878)*$M159878)+(($D159878/$H159878)*$M159878)+($E159878)+($G159878)+($F159878),0)","v":0}]
[null,null,null,null,null,null,null,null,null,0,0,0]
[null,null,null,null,null,null,null,null,null,0,0,0]
[null,null,null,null,null,null,null,null,null,0,0,0]
[null,null,null,null,null,null,null,null,null,0,0,0]
[null,null,null,null,null,null,null,null,null,0,0,0]
[null,null,null,null,null,null,null,null,null,0,0,0]
[null,null,null,null,null,null,null,null,null,0,0,0]
[null,null,null,null,null,null,null,null,null,0,0,0]
[null,null,null,null,null,null,null,null,null,0,0,0]
[null,null,null,null,null,null,null,null,null,0,0,0]
[null,null,null,null,null,null,null,null,null,0,0,0]
[null,null,null,null,null,null,null,null,null,0,0,0]
[null,null,null,null,null,null,null,null,null,0,0,0]
[null,null,null,null,null,null,null,null,null,0,0,0]
[null,null,null,null,null,null,null,null,null,0,0,0]
[null,null,null,null,null,null,null,null,null,0,0,0]
[null,null,null,null,null,null,null,null,null,0,0,0]
[null,null,null,null,null,null,null,null,null,0,0,0]
[null,null,null,null,null,null,null,null,null,0,0,0]
[null,null,null,null,null,null,null,null,null,0,0,0]
[null,null,null,null,null,null,null,null,null,0,0,0]
[null,null,null,null,null,null,null,null,null,0,0,0]
[null,null,null,null,null,null,null,null,null,0,0,0]
[null,null,null,null,null,null,null,null,null,0,0,0]
[null,null,null,null,null,null,null,null,null,0,0,0]
[null,null,null,null,null,null,null,null,null,0,0,0]
[null,null,null,null,null,null,null,null,null,0,0,0]
[null,null,null,null,null,null,null,null,null,0,0,0]
[null,null,null,null,null,null,null,null,null,0,0,0]
[null,null,null,null,null,null,null,null,null,0,0,0]
[null,null,null,null,null,null,null,null,null,0,0,0]
[null,null,null,null,null,null,null,null,null,0,0,0]
[null,null,null,null,null,null,null,null,null,0,0,0]
[null,null,null,null,null,null,null,null,null,0,0,0]
[null,null,null,null,null,null,null,null,null,0,0,0]
[null,null,null,null,null,null,null,null,null,0,0,0]
[null,null,null,null,null,null,null,null,null,0,0,0]
[null,null,null,null,null,null,null,null,null,0,0,0]
[null,null,null,null,null,null,null,null,null,0,0,0]
[null,null,null,null,null,null,null,null,null,0,0,0]
[null,null,null,null,null,null,null,null,null,0,0,0]
[null,null,null,null,null,null,null,null,null,0,0,0]
[null,null,null,null,null,null,null,null,null,0,0,0]
[null,null,null,null,null,null,null,null,null,0,0,0]
[null,null,null,null,null,null,null,null,null,0,0,0]
[null,null,null,null,null,null,null,null,null,0,0,0]
[null,null,null,null,null,null,null,null,null,0,0,0]
[null,null,null,null,null,null,null,null,null,0,0,0]
[null,null,null,null,null,null,null,null,null,0,0,0]
[null,null,null,null,null,null,null,null,null,0,0,0]
[null,null,null,null,null,null,null,null,null,0,0,0]
[null,null,null,null,null,null,null,null,null,0,0,0]
[null,null,null,null,null,null,null,null,null,0,0,0]
[null,null,null,null,null,null,null,null,null,{"$f":"IFERROR(((($B173318/$H173318)*$M173318)),0)","v":0},{"$f":"F173318+G173318+E173318","v":0},{"$f":"IFERROR((($B173318/$H173318)*$M173318)+(($C173318/$H173318)*$M173318)+(($D173318/$H173318)*$M173318)+($E173318)+($G173318)+($F173318),0)","v":0}]
[null,null,null,null,null,null,null,null,null,0,0,0]
[null,null,null,null,null,null,null,null,null,0,0,0]
[null,null,null,null,null,null,null,null,null,0,0,0]
[null,null,null,null,null,null,null,null,null,0,0,0]
[null,null,null,null,null,null,null,null,null,0,0,0]
[null,null,null,null,null,null,null,null,null,0,0,0]
[null,null,null,null,null,null,null,null,null,0,0,0]
[null,null,null,null,null,null,null,null,null,0,0,0]
[null,null,null,null,null,null,null,null,null,0,0,0]
[null,null,null,null,null,null,null,null,null,0,0,0]
[null,null,null,null,null,null,null,null,null,0,0,0]
[null,null,null,null,null,null,null,null,null,0,0,0]
[null,null,null,null,null,null,null,null,null,0,0,0]
[null,null,null,null,null,null,null,null,null,0,0,0]
[null,null,null,null,null,null,null,null,null,0,0,0]
[null,null,null,null,null,null,null,null,null,0,0,0]
[null,null,null,null,null,null,null,null,null,0,0,0]
[null,null,null,null,null,null,null,null,null,0,0,0]
[null,null,null,null,null,null,null,null,null,0,0,0]
[null,null,null,null,null,null,null,null,null,0,0,0]
[null,null,null,null,null,null,null,null,null,0,0,0]
[null,null,null,null,null,null,null,null,null,0,0,0]
[null,null,null,null,null,null,null,null,null,0,0,0]
[null,null,null,null,null,null,null,null,null,0,0,0]
[null,null,null,null,null,null,null,null,null,0,0,0]
[null,null,null,null,null,null,null,null,null,0,0,0]
[null,null,null,null,null,null,null,null,null,0,0,0]
[null,null,null,null,null,null,null,null,null,0,0,0]
[null,null,null,null,null,null,null,null,null,0,0,0]
[null,null,null,null,null,null,null,null,null,0,0,0]
[null,null,null,null,null,null,null,null,null,0,0,0]
[null,null,null,null,null,null,null,null,null,0,0,0]
[null,null,null,null,null,null,null,null,null,0,0,0]
[null,null,null,null,null,null,null,null,null,0,0,0]
[null,null,null,null,null,null,null,null,null,0,0,0]
[null,null,null,null,null,null,null,null,null,0,0,0]
[null,null,null,null,null,null,null,null,null,0,0,0]
[null,null,null,null,null,null,null,null,null,0,0,0]
[null,null,null,null,null,null,null,null,null,0,0,0]
[null,null,null,null,null,null,null,null,null,0,0,0]
[null,null,null,null,null,null,null,null,null,0,0,0]
[null,null,null,null,null,null,null,null,null,0,0,0]
[null,null,null,null,null,null,null,null,null,0,0,0]
[null,null,null,null,null,null,null,null,null,0,0,0]
[null,null,null,null,null,null,null,null,null,0,0,0]
[null,null,null,null,null,null,null,null,null,0,0,0]
[null,null,null,null,null,null,null,null,null,0,0,0]
[null,null,null,null,null,null,null,null,null,0,0,0]
[null,null,null,null,null,null,null,null,null,0,0,0]
[null,null,null,null,null,null,null,null,null,0,0,0]
[null,null,null,null,null,null,null,null,null,0,0,0]
[null,null,null,null,null,null,null,null,null,0,0,0]
[null,null,null,null,null,null,null,null,null,0,0,0]
[null,null,null,null,null,null,null,null,null,{"$f":"IFERROR(((($B186758/$H186758)*$M186758)),0)","v":0},{"$f":"F186758+G186758+E186758","v":0},{"$f":"IFERROR((($B186758/$H186758)*$M186758)+(($C186758/$H186758)*$M186758)+(($D186758/$H186758)*$M186758)+($E186758)+($G186758)+($F186758),0)","v":0}]
[null,null,null,null,null,null,null,null,null,0,0,0]
[null,null,null,null,null,null,null,null,null,0,0,0]
[null,null,null,null,null,null,null,null,null,0,0,0]
[null,null,null,null,null,null,null,null,null,0,0,0]
[null,null,null,null,null,null,null,null,null,0,0,0]
[null,null,null,null,null,null,null,null,null,0,0,0]
[null,null,null,null,null,null,null,null,null,0,0,0]
[null,null,null,null,null,null,null,null,null,0,0,0]
[null,null,null,null,null,null,null,null,null,0,0,0]
[null,null,null,null,null,null,null,null,null,0,0,0]
[null,null,null,null,null,null,null,null,null,0,0,0]
[null,null,null,null,null,null,null,null,null,0,0,0]
[null,null,null,null,null,null,null,null,null,0,0,0]
[null,null,null,null,null,null,null,null,null,0,0,0]
[null,null,null,null,null,null,null,null,null,0,0,0]
[null,null,null,null,null,null,null,null,null,0,0,0]
[null,null,null,null,null,null,null,null,null,0,0,0]
[null,null,null,null,null,null,null,null,null,0,0,0]
[null,null,null,null,null,null,null,null,null,0,0,0]
[null,null,null,null,null,null,null,null,null,0,0,0]
[null,null,null,null,null,null,null,null,null,0,0,0]
[null,null,null,null,null,null,null,null,null,0,0,0]
[null,null,null,null,null,null,null,null,null,0,0,0]
[null,null,null,null,null,null,null,null,null,0,0,0]
[null,null,null,null,null,null,null,null,null,0,0,0]
[null,null,null,null,null,null,null,null,null,0,0,0]
[null,null,null,null,null,null,null,null,null,0,0,0]
[null,null,null,null,null,null,null,null,null,0,0,0]
[null,null,null,null,null,null,null,null,null,0,0,0]
[null,null,null,null,null,null,null,null,null,0,0,0]
[null,null,null,null,null,null,null,null,null,0,0,0]
[null,null,null,null,null,null,null,null,null,0,0,0]
[null,null,null,null,null,null,null,null,null,0,0,0]
[null,null,null,null,null,null,null,null,null,0,0,0]
[null,null,null,null,null,null,null,null,null,0,0,0]
[null,null,null,null,null,null,null,null,null,0,0,0]
[null,null,null,null,null,null,null,null,null,0,0,0]
[null,null,null,null,null,null,null,null,null,0,0,0]
[null,null,null,null,null,null,null,null,null,0,0,0]
[null,null,null,null,null,null,null,null,null,0,0,0]
[null,null,null,null,null,null,null,null,null,0,0,0]
[null,null,null,null,null,null,null,null,null,0,0,0]
[null,null,null,null,null,null,null,null,null,0,0,0]
[null,null,null,null,null,null,null,null,null,0,0,0]
[null,null,null,null,null,null,null,null,null,0,0,0]
[null,null,null,null,null,null,null,null,null,0,0,0]
[null,null,null,null,null,null,null,null,null,0,0,0]
[null,null,null,null,null,null,null,null,null,0,0,0]
[null,null,null,null,null,null,null,null,null,0,0,0]
[null,null,null,null,null,null,null,null,null,0,0,0]
[null,null,null,null,null,null,null,null,null,0,0,0]
[null,null,null,null,null,null,null,null,null,0,0,0]
[null,null,null,null,null,null,null,null,null,0,0,0]
[null,null,null,null,null,null,null,null,null,{"$f":"IFERROR(((($B200070/$H200070)*$M200070)),0)","v":0},{"$f":"F200070+G200070+E200070","v":0},{"$f":"IFERROR((($B200070/$H200070)*$M200070)+(($C200070/$H200070)*$M200070)+(($D200070/$H200070)*$M200070)+($E200070)+($G200070)+($F200070),0)","v":0}]
[null,null,null,null,null,null,null,null,null,0,0,0]
[null,null,null,null,null,null,null,null,null,0,0,0]
[null,null,null,null,null,null,null,null,null,0,0,0]
[null,null,null,null,null,null,null,null,null,0,0,0]
[null,null,null,null,null,null,null,null,null,0,0,0]
[null,null,null,null,null,null,null,null,null,0,0,0]
[null,null,null,null,null,null,null,null,null,0,0,0]
[null,null,null,null,null,null,null,null,null,0,0,0]
[null,null,null,null,null,null,null,null,null,0,0,0]
[null,null,null,null,null,null,null,null,null,0,0,0]
[null,null,null,null,null,null,null,null,null,0,0,0]
[null,null,null,null,null,null,null,null,null,0,0,0]
[null,null,null,null,null,null,null,null,null,0,0,0]
[null,null,null,null,null,null,null,null,null,0,0,0]
[null,null,null,null,null,null,null,null,null,0,0,0]
[null,null,null,null,null,null,null,null,null,0,0,0]
[null,null,null,null,null,null,null,null,null,0,0,0]
[null,null,null,null,null,null,null,null,null,0,0,0]
[null,null,null,null,null,null,null,null,null,0,0,0]
[null,null,null,null,null,null,null,null,null,0,0,0]
[null,null,null,null,null,null,null,null,null,0,0,0]
[null,null,null,null,null,null,null,null,null,0,0,0]
[null,null,null,null,null,null,null,null,null,0,0,0]
[null,null,null,null,null,null,null,null,null,0,0,0]
[null,null,null,null,null,null,null,null,null,0,0,0]
[null,null,null,null,null,null,null,null,null,0,0,0]
[null,null,null,null,null,null,null,null,null,0,0,0]
[null,null,null,null,null,null,null,null,null,0,0,0]
[null,null,null,null,null,null,null,null,null,0,0,0]
[null,null,null,null,null,null,null,null,null,0,0,0]
[null,null,null,null,null,null,null,null,null,0,0,0]
[null,null,null,null,null,null,null,null,null,0,0,0]
[null,null,null,null,null,null,null,null,null,0,0,0]
[null,null,null,null,null,null,null,null,null,0,0,0]
[null,null,null,null,null,null,null,null,null,0,0,0]
[null,null,null,null,null,null,null,null,null,0,0,0]
[null,null,null,null,null,null,null,null,null,0,0,0]
[null,null,null,null,null,null,null,null,null,0,0,0]
[null,null,null,null,null,null,null,null,null,0,0,0]
[null,null,null,null,null,null,null,null,null,0,0,0]
[null,null,null,null,null,null,null,null,null,0,0,0]
[null,null,null,null,null,null,null,null,null,0,0,0]
[null,null,null,null,null,null,null,null,null,0,0,0]
[null,null,null,null,null,null,null,null,null,0,0,0]
[null,null,null,null,null,null,null,null,null,0,0,0]
[null,null,null,null,null,null,null,null,null,0,0,0]
[null,null,null,null,null,null,null,null,null,0,0,0]
[null,null,null,null,null,null,null,null,null,0,0,0]
[null,null,null,null,null,null,null,null,null,0,0,0]
[null,null,null,null,null,null,null,null,null,0,0,0]
[null,null,null,null,null,null,null,null,null,0,0,0]
[null,null,null,null,null,null,null,null,null,0,0,0]
[null,null,null,null,null,null,null,null,null,0,0,0]
[null,null,null,null,null,null,null,null,null,{"$f":"IFERROR(((($B213510/$H213510)*$M213510)),0)","v":0},{"$f":"F213510+G213510+E213510","v":0},{"$f":"IFERROR((($B213510/$H213510)*$M213510)+(($C213510/$H213510)*$M213510)+(($D213510/$H213510)*$M213510)+($E213510)+($G213510)+($F213510),0)","v":0}]
[null,null,null,null,null,null,null,null,null,0,0,0]
[null,null,null,null,null,null,null,null,null,0,0,0]
[null,null,null,null,null,null,null,null,null,0,0,0]
[null,null,null,null,null,null,null,null,null,0,0,0]
[null,null,null,null,null,null,null,null,null,0,0,0]
[null,null,null,null,null,null,null,null,null,0,0,0]
[null,null,null,null,null,null,null,null,null,{"$f":"IFERROR(((($B215238/$H215238)*$M215238)),0)","v":0},{"$f":"F215238+G215238+E215238","v":0},{"$f":"IFERROR((($B215238/$H215238)*$M215238)+(($C215238/$H215238)*$M215238)+(($D215238/$H215238)*$M215238)+($E215238)+($G215238)+($F215238),0)","v":0}]
[null,null,null,null,null,null,null,null,null,0,0,0]
[null,null,null,null,null,null,null,null,null,0,0,0]
[null,null,null,null,null,null,null,null,null,0,0,0]
[null,null,null,null,null,null,null,null,null,0,0,0]
[null,null,null,null,null,null,null,null,null,0,0,0]
[null,null,null,null,null,null,null,null,null,0,0,0]
[null,null,null,null,null,null,null,null,null,0,0,0]
[null,null,null,null,null,null,null,null,null,0,0,0]
[null,null,null,null,null,null,null,null,null,0,0,0]
[null,null,null,null,null,null,null,null,null,0,0,0]
[null,null,null,null,null,null,null,null,null,0,0,0]
[null,null,null,null,null,null,null,null,null,0,0,0]
[null,null,null,null,null,null,null,null,null,0,0,0]
[null,null,null,null,null,null,null,null,null,0,0,0]
[null,null,null,null,null,null,null,null,null,0,0,0]
[null,null,null,null,null,null,null,null,null,0,0,0]
[null,null,null,null,null,null,null,null,null,0,0,0]
[null,null,null,null,null,null,null,null,null,0,0,0]
[null,null,null,null,null,null,null,null,null,0,0,0]
[null,null,null,null,null,null,null,null,null,0,0,0]
[null,null,null,null,null,null,null,null,null,0,0,0]
[null,null,null,null,null,null,null,null,null,0,0,0]
[null,null,null,null,null,null,null,null,null,0,0,0]
[null,null,null,null,null,null,null,null,null,0,0,0]
[null,null,null,null,null,null,null,null,null,0,0,0]
[null,null,null,null,null,null,null,null,null,0,0,0]
[null,null,null,null,null,null,null,null,null,0,0,0]
[null,null,null,null,null,null,null,null,null,0,0,0]
[null,null,null,null,null,null,null,null,null,0,0,0]
[null,null,null,null,null,null,null,null,null,0,0,0]
[null,null,null,null,null,null,null,null,null,0,0,0]
[null,null,null,null,null,null,null,null,null,0,0,0]
[null,null,null,null,null,null,null,null,null,0,0,0]
[null,null,null,null,null,null,null,null,null,0,0,0]
[null,null,null,null,null,null,null,null,null,0,0,0]
[null,null,null,null,null,null,null,null,null,0,0,0]
[null,null,null,null,null,null,null,null,null,0,0,0]
[null,null,null,null,null,null,null,null,null,0,0,0]
[null,null,null,null,null,null,null,null,null,0,0,0]
[null,null,null,null,null,null,null,null,null,0,0,0]
[null,null,null,null,null,null,null,null,null,0,0,0]
[null,null,null,null,null,null,null,null,null,0,0,0]
[null,null,null,null,null,null,null,null,null,0,0,0]
[null,null,null,null,null,null,null,null,null,0,0,0]
[null,null,null,null,null,null,null,null,null,0,0,0]
[null,null,null,null,null,null,null,null,null,0,0,0]
[null,null,null,null,null,null,null,null,null,{"$f":"IFERROR(((($B226950/$H226950)*$M226950)),0)","v":0},{"$f":"F226950+G226950+E226950","v":0},{"$f":"IFERROR((($B226950/$H226950)*$M226950)+(($C226950/$H226950)*$M226950)+(($D226950/$H226950)*$M226950)+($E226950)+($G226950)+($F226950),0)","v":0}]
[null,null,null,null,null,null,null,null,null,0,0,0]
[null,null,null,null,null,null,null,null,null,0,0,0]
[null,null,null,null,null,null,null,null,null,0,0,0]
[null,null,null,null,null,null,null,null,null,0,0,0]
[null,null,null,null,null,null,null,null,null,0,0,0]
[null,null,null,null,null,null,null,null,null,0,0,0]
[null,null,null,null,null,null,null,null,null,{"$f":"IFERROR(((($B228550/$H228550)*$M228550)),0)","v":0},{"$f":"F228550+G228550+E228550","v":0},{"$f":"IFERROR((($B228550/$H228550)*$M228550)+(($C228550/$H228550)*$M228550)+(($D228550/$H228550)*$M228550)+($E228550)+($G228550)+($F228550),0)","v":0}]
[null,null,null,null,null,null,null,null,null,0,0,0]
[null,null,null,null,null,null,null,null,null,0,0,0]
[null,null,null,null,null,null,null,null,null,0,0,0]
[null,null,null,null,null,null,null,null,null,0,0,0]
[null,null,null,null,null,null,null,null,null,0,0,0]
[null,null,null,null,null,null,null,null,null,0,0,0]
[null,null,null,null,null,null,null,null,null,0,0,0]
[null,null,null,null,null,null,null,null,null,0,0,0]
[null,null,null,null,null,null,null,null,null,0,0,0]
[null,null,null,null,null,null,null,null,null,0,0,0]
[null,null,null,null,null,null,null,null,null,0,0,0]
[null,null,null,null,null,null,null,null,null,0,0,0]
[null,null,null,null,null,null,null,null,null,0,0,0]
[null,null,null,null,null,null,null,null,null,0,0,0]
[null,null,null,null,null,null,null,null,null,0,0,0]
[null,null,null,null,null,null,null,null,null,0,0,0]
[null,null,null,null,null,null,null,null,null,0,0,0]
[null,null,null,null,null,null,null,null,null,0,0,0]
[null,null,null,null,null,null,null,null,null,0,0,0]
[null,null,null,null,null,null,null,null,null,0,0,0]
[null,null,null,null,null,null,null,null,null,0,0,0]
[null,null,null,null,null,null,null,null,null,0,0,0]
[null,null,null,null,null,null,null,null,null,0,0,0]
[null,null,null,null,null,null,null,null,null,0,0,0]
[null,null,null,null,null,null,null,null,null,0,0,0]
[null,null,null,null,null,null,null,null,null,0,0,0]
[null,null,null,null,null,null,null,null,null,0,0,0]
[null,null,null,null,null,null,null,null,null,0,0,0]
[null,null,null,null,null,null,null,null,null,0,0,0]
[null,null,null,null,null,null,null,null,null,0,0,0]
[null,null,null,null,null,null,null,null,null,0,0,0]
[null,null,null,null,null,null,null,null,null,0,0,0]
[null,null,null,null,null,null,null,null,null,0,0,0]
[null,null,null,null,null,null,null,null,null,0,0,0]
[null,null,null,null,null,null,null,null,null,0,0,0]
[null,null,null,null,null,null,null,null,null,0,0,0]
[null,null,null,null,null,null,null,null,null,0,0,0]
[null,null,null,null,null,null,null,null,null,0,0,0]
[null,null,null,null,null,null,null,null,null,0,0,0]
[null,null,null,null,null,null,null,null,null,0,0,0]
[null,null,null,null,null,null,null,null,null,0,0,0]
[null,null,null,null,null,null,null,null,null,0,0,0]
[null,null,null,null,null,null,null,null,null,0,0,0]
[null,null,null,null,null,null,null,null,null,0,0,0]
[null,null,null,null,null,null,null,null,null,0,0,0]
[null,null,null,null,null,null,null,null,null,0,0,0]
[null,null,null,null,null,null,null,null,null,{"$f":"IFERROR(((($B240262/$H240262)*$M240262)),0)","v":0},{"$f":"F240262+G240262+E240262","v":0},{"$f":"IFERROR((($B240262/$H240262)*$M240262)+(($C240262/$H240262)*$M240262)+(($D240262/$H240262)*$M240262)+($E240262)+($G240262)+($F240262),0)","v":0}]
[null,null,null,null,null,null,null,null,null,0,0,0]
[null,null,null,null,null,null,null,null,null,0,0,0]
[null,null,null,null,null,null,null,null,null,0,0,0]
[null,null,null,null,null,null,null,null,null,0,0,0]
[null,null,null,null,null,null,null,null,null,0,0,0]
[null,null,null,null,null,null,null,null,null,0,0,0]
[null,null,null,null,null,null,null,null,null,{"$f":"IFERROR(((($B241990/$H241990)*$M241990)),0)","v":0},{"$f":"F241990+G241990+E241990","v":0},{"$f":"IFERROR((($B241990/$H241990)*$M241990)+(($C241990/$H241990)*$M241990)+(($D241990/$H241990)*$M241990)+($E241990)+($G241990)+($F241990),0)","v":0}]
[null,null,null,null,null,null,null,null,null,0,0,0]
[null,null,null,null,null,null,null,null,null,0,0,0]
[null,null,null,null,null,null,null,null,null,0,0,0]
[null,null,null,null,null,null,null,null,null,0,0,0]
[null,null,null,null,null,null,null,null,null,0,0,0]
[null,null,null,null,null,null,null,null,null,0,0,0]
[null,null,null,null,null,null,null,null,null,0,0,0]
[null,null,null,null,null,null,null,null,null,0,0,0]
[null,null,null,null,null,null,null,null,null,0,0,0]
[null,null,null,null,null,null,null,null,null,0,0,0]
[null,null,null,null,null,null,null,null,null,0,0,0]
[null,null,null,null,null,null,null,null,null,0,0,0]
[null,null,null,null,null,null,null,null,null,0,0,0]
[null,null,null,null,null,null,null,null,null,0,0,0]
[null,null,null,null,null,null,null,null,null,0,0,0]
[null,null,null,null,null,null,null,null,null,0,0,0]
[null,null,null,null,null,null,null,null,null,0,0,0]
[null,null,null,null,null,null,null,null,null,0,0,0]
[null,null,null,null,null,null,null,null,null,0,0,0]
[null,null,null,null,null,null,null,null,null,0,0,0]
[null,null,null,null,null,null,null,null,null,0,0,0]
[null,null,null,null,null,null,null,null,null,0,0,0]
[null,null,null,null,null,null,null,null,null,0,0,0]
[null,null,null,null,null,null,null,null,null,0,0,0]
[null,null,null,null,null,null,null,null,null,0,0,0]
[null,null,null,null,null,null,null,null,null,0,0,0]
[null,null,null,null,null,null,null,null,null,0,0,0]
[null,null,null,null,null,null,null,null,null,0,0,0]
[null,null,null,null,null,null,null,null,null,0,0,0]
[null,null,null,null,null,null,null,null,null,0,0,0]
[null,null,null,null,null,null,null,null,null,0,0,0]
[null,null,null,null,null,null,null,null,null,0,0,0]
[null,null,null,null,null,null,null,null,null,0,0,0]
[null,null,null,null,null,null,null,null,null,0,0,0]
[null,null,null,null,null,null,null,null,null,0,0,0]
[null,null,null,null,null,null,null,null,null,0,0,0]
[null,null,null,null,null,null,null,null,null,0,0,0]
[null,null,null,null,null,null,null,null,null,0,0,0]
[null,null,null,null,null,null,null,null,null,0,0,0]
[null,null,null,null,null,null,null,null,null,0,0,0]
[null,null,null,null,null,null,null,null,null,0,0,0]
[null,null,null,null,null,null,null,null,null,0,0,0]
[null,null,null,null,null,null,null,null,null,0,0,0]
[null,null,null,null,null,null,null,null,null,0,0,0]
[null,null,null,null,null,null,null,null,null,0,0,0]
[null,null,null,null,null,null,null,null,null,0,0,0]
[null,null,null,null,null,null,null,null,null,0,0,0]
[null,null,null,null,null,null,null,null,null,0,0,0]
[null,null,null,null,null,null,null,null,null,0,0,0]
[null,null,null,null,null,null,null,null,null,0,0,0]
[null,null,null,null,null,null,null,null,null,0,0,0]
[null,null,null,null,null,null,null,null,null,0,0,0]
[null,null,null,null,null,null,null,null,null,0,0,0]
[null,null,null,null,null,null,null,null,null,{"$f":"IFERROR(((($B255302/$H255302)*$M255302)),0)","v":0},{"$f":"F255302+G255302+E255302","v":0},{"$f":"IFERROR((($B255302/$H255302)*$M255302)+(($C255302/$H255302)*$M255302)+(($D255302/$H255302)*$M255302)+($E255302)+($G255302)+($F255302),0)","v":0}]
[null,null,null,null,null,null,null,null,null,0,0,0]
[null,null,null,null,null,null,null,null,null,0,0,0]
[null,null,null,null,null,null,null,null,null,0,0,0]
[null,null,null,null,null,null,null,null,null,0,0,0]
[null,null,null,null,null,null,null,null,null,0,0,0]
[null,null,null,null,null,null,null,null,null,0,0,0]
[null,null,null,null,null,null,null,null,null,0,0,0]
[null,null,null,null,null,null,null,null,null,0,0,0]
[null,null,null,null,null,null,null,null,null,0,0,0]
[null,null,null,null,null,null,null,null,null,0,0,0]
[null,null,null,null,null,null,null,null,null,0,0,0]
[null,null,null,null,null,null,null,null,null,0,0,0]
[null,null,null,null,null,null,null,null,null,0,0,0]
[null,null,null,null,null,null,null,null,null,0,0,0]
[null,null,null,null,null,null,null,null,null,0,0,0]
[null,null,null,null,null,null,null,null,null,0,0,0]
[null,null,null,null,null,null,null,null,null,0,0,0]
[null,null,null,null,null,null,null,null,null,0,0,0]
[null,null,null,null,null,null,null,null,null,0,0,0]
[null,null,null,null,null,null,null,null,null,0,0,0]
[null,null,null,null,null,null,null,null,null,0,0,0]
[null,null,null,null,null,null,null,null,null,0,0,0]
[null,null,null,null,null,null,null,null,null,0,0,0]
[null,null,null,null,null,null,null,null,null,0,0,0]
[null,null,null,null,null,null,null,null,null,0,0,0]
[null,null,null,null,null,null,null,null,null,0,0,0]
[null,null,null,null,null,null,null,null,null,0,0,0]
[null,null,null,null,null,null,null,null,null,0,0,0]
[null,null,null,null,null,null,null,null,null,0,0,0]
[null,null,null,null,null,null,null,null,null,0,0,0]
[null,null,null,null,null,null,null,null,null,0,0,0]
[null,null,null,null,null,null,null,null,null,0,0,0]
[null,null,null,null,null,null,null,null,null,0,0,0]
[null,null,null,null,null,null,null,null,null,0,0,0]
[null,null,null,null,null,null,null,null,null,0,0,0]
[null,null,null,null,null,null,null,null,null,0,0,0]
[null,null,null,null,null,null,null,null,null,0,0,0]
[null,null,null,null,null,null,null,null,null,0,0,0]
[null,null,null,null,null,null,null,null,null,0,0,0]
[null,null,null,null,null,null,null,null,null,0,0,0]
[null,null,null,null,null,null,null,null,null,0,0,0]
[null,null,null,null,null,null,null,null,null,0,0,0]
[null,null,null,null,null,null,null,null,null,0,0,0]
[null,null,null,null,null,null,null,null,null,0,0,0]
[null,null,null,null,null,null,null,null,null,0,0,0]
[null,null,null,null,null,null,null,null,null,0,0,0]
[null,null,null,null,null,null,null,null,null,0,0,0]
[null,null,null,null,null,null,null,null,null,0,0,0]
[null,null,null,null,null,null,null,null,null,0,0,0]
[null,null,null,null,null,null,null,null,null,0,0,0]
[null,null,null,null,null,null,null,null,null,0,0,0]
[null,null,null,null,null,null,null,null,null,0,0,0]
[null,null,null,null,null,null,null,null,null,0,0,0]
[null,null,null,null,null,null,null,null,null,{"$f":"IFERROR(((($B268742/$H268742)*$M268742)),0)","v":0},{"$f":"F268742+G268742+E268742","v":0},{"$f":"IFERROR((($B268742/$H268742)*$M268742)+(($C268742/$H268742)*$M268742)+(($D268742/$H268742)*$M268742)+($E268742)+($G268742)+($F268742),0)","v":0}]
[null,null,null,null,null,null,null,null,null,0,0,0]
[null,null,null,null,null,null,null,null,null,0,0,0]
[null,null,null,null,null,null,null,null,null,0,0,0]
[null,null,null,null,null,null,null,null,null,0,0,0]
[null,null,null,null,null,null,null,null,null,0,0,0]
[null,null,null,null,null,null,null,null,null,0,0,0]
[null,null,null,null,null,null,null,null,null,0,0,0]
[null,null,null,null,null,null,null,null,null,0,0,0]
[null,null,null,null,null,null,null,null,null,0,0,0]
[null,null,null,null,null,null,null,null,null,0,0,0]
[null,null,null,null,null,null,null,null,null,0,0,0]
[null,null,null,null,null,null,null,null,null,0,0,0]
[null,null,null,null,null,null,null,null,null,0,0,0]
[null,null,null,null,null,null,null,null,null,0,0,0]
[null,null,null,null,null,null,null,null,null,0,0,0]
[null,null,null,null,null,null,null,null,null,0,0,0]
[null,null,null,null,null,null,null,null,null,0,0,0]
[null,null,null,null,null,null,null,null,null,0,0,0]
[null,null,null,null,null,null,null,null,null,0,0,0]
[null,null,null,null,null,null,null,null,null,0,0,0]
[null,null,null,null,null,null,null,null,null,0,0,0]
[null,null,null,null,null,null,null,null,null,0,0,0]
[null,null,null,null,null,null,null,null,null,0,0,0]
[null,null,null,null,null,null,null,null,null,0,0,0]
[null,null,null,null,null,null,null,null,null,0,0,0]
[null,null,null,null,null,null,null,null,null,0,0,0]
[null,null,null,null,null,null,null,null,null,0,0,0]
[null,null,null,null,null,null,null,null,null,0,0,0]
[null,null,null,null,null,null,null,null,null,0,0,0]
[null,null,null,null,null,null,null,null,null,0,0,0]
[null,null,null,null,null,null,null,null,null,0,0,0]
[null,null,null,null,null,null,null,null,null,0,0,0]
[null,null,null,null,null,null,null,null,null,0,0,0]
[null,null,null,null,null,null,null,null,null,0,0,0]
[null,null,null,null,null,null,null,null,null,0,0,0]
[null,null,null,null,null,null,null,null,null,0,0,0]
[null,null,null,null,null,null,null,null,null,0,0,0]
[null,null,null,null,null,null,null,null,null,0,0,0]
[null,null,null,null,null,null,null,null,null,0,0,0]
[null,null,null,null,null,null,null,null,null,0,0,0]
[null,null,null,null,null,null,null,null,null,0,0,0]
[null,null,null,null,null,null,null,null,null,0,0,0]
[null,null,null,null,null,null,null,null,null,0,0,0]
[null,null,null,null,null,null,null,null,null,0,0,0]
[null,null,null,null,null,null,null,null,null,0,0,0]
[null,null,null,null,null,null,null,null,null,0,0,0]
[null,null,null,null,null,null,null,null,null,0,0,0]
[null,null,null,null,null,null,null,null,null,0,0,0]
[null,null,null,null,null,null,null,null,null,0,0,0]
[null,null,null,null,null,null,null,null,null,0,0,0]
[null,null,null,null,null,null,null,null,null,0,0,0]
[null,null,null,null,null,null,null,null,null,0,0,0]
[null,null,null,null,null,null,null,null,null,0,0,0]
[null,null,null,null,null,null,null,null,null,{"$f":"IFERROR(((($B282182/$H282182)*$M282182)),0)","v":0},{"$f":"F282182+G282182+E282182","v":0},{"$f":"IFERROR((($B282182/$H282182)*$M282182)+(($C282182/$H282182)*$M282182)+(($D282182/$H282182)*$M282182)+($E282182)+($G282182)+($F282182),0)","v":0}]
[null,null,null,null,null,null,null,null,null,0,0,0]
[null,null,null,null,null,null,null,null,null,0,0,0]
[null,null,null,null,null,null,null,null,null,0,0,0]
[null,null,null,null,null,null,null,null,null,0,0,0]
[null,null,null,null,null,null,null,null,null,0,0,0]
[null,null,null,null,null,null,null,null,null,0,0,0]
[null,null,null,null,null,null,null,null,null,0,0,0]
[null,null,null,null,null,null,null,null,null,0,0,0]
[null,null,null,null,null,null,null,null,null,0,0,0]
[null,null,null,null,null,null,null,null,null,0,0,0]
[null,null,null,null,null,null,null,null,null,0,0,0]
[null,null,null,null,null,null,null,null,null,0,0,0]
[null,null,null,null,null,null,null,null,null,0,0,0]
[null,null,null,null,null,null,null,null,null,0,0,0]
[null,null,null,null,null,null,null,null,null,0,0,0]
[null,null,null,null,null,null,null,null,null,0,0,0]
[null,null,null,null,null,null,null,null,null,0,0,0]
[null,null,null,null,null,null,null,null,null,0,0,0]
[null,null,null,null,null,null,null,null,null,0,0,0]
[null,null,null,null,null,null,null,null,null,0,0,0]
[null,null,null,null,null,null,null,null,null,0,0,0]
[null,null,null,null,null,null,null,null,null,0,0,0]
[null,null,null,null,null,null,null,null,null,0,0,0]
[null,null,null,null,null,null,null,null,null,0,0,0]
[null,null,null,null,null,null,null,null,null,0,0,0]
[null,null,null,null,null,null,null,null,null,0,0,0]
[null,null,null,null,null,null,null,null,null,0,0,0]
[null,null,null,null,null,null,null,null,null,0,0,0]
[null,null,null,null,null,null,null,null,null,0,0,0]
[null,null,null,null,null,null,null,null,null,0,0,0]
[null,null,null,null,null,null,null,null,null,0,0,0]
[null,null,null,null,null,null,null,null,null,0,0,0]
[null,null,null,null,null,null,null,null,null,0,0,0]
[null,null,null,null,null,null,null,null,null,0,0,0]
[null,null,null,null,null,null,null,null,null,0,0,0]
[null,null,null,null,null,null,null,null,null,0,0,0]
[null,null,null,null,null,null,null,null,null,0,0,0]
[null,null,null,null,null,null,null,null,null,0,0,0]
[null,null,null,null,null,null,null,null,null,0,0,0]
[null,null,null,null,null,null,null,null,null,0,0,0]
[null,null,null,null,null,null,null,null,null,0,0,0]
[null,null,null,null,null,null,null,null,null,0,0,0]
[null,null,null,null,null,null,null,null,null,0,0,0]
[null,null,null,null,null,null,null,null,null,0,0,0]
[null,null,null,null,null,null,null,null,null,0,0,0]
[null,null,null,null,null,null,null,null,null,0,0,0]
[null,null,null,null,null,null,null,null,null,0,0,0]
[null,null,null,null,null,null,null,null,null,0,0,0]
[null,null,null,null,null,null,null,null,null,0,0,0]
[null,null,null,null,null,null,null,null,null,0,0,0]
[null,null,null,null,null,null,null,null,null,0,0,0]
[null,null,null,null,null,null,null,null,null,0,0,0]
[null,null,null,null,null,null,null,null,null,0,0,0]
[null,null,null,null,null,null,null,null,null,{"$f":"IFERROR(((($B295494/$H295494)*$M295494)),0)","v":0},{"$f":"F295494+G295494+E295494","v":0},{"$f":"IFERROR((($B295494/$H295494)*$M295494)+(($C295494/$H295494)*$M295494)+(($D295494/$H295494)*$M295494)+($E295494)+($G295494)+($F295494),0)","v":0}]
[null,null,null,null,null,null,null,null,null,0,0,0]
[null,null,null,null,null,null,null,null,null,0,0,0]
[null,null,null,null,null,null,null,null,null,0,0,0]
[null,null,null,null,null,null,null,null,null,0,0,0]
[null,null,null,null,null,null,null,null,null,0,0,0]
[null,null,null,null,null,null,null,null,null,0,0,0]
[null,null,null,null,null,null,null,null,null,0,0,0]
[null,null,null,null,null,null,null,null,null,0,0,0]
[null,null,null,null,null,null,null,null,null,0,0,0]
[null,null,null,null,null,null,null,null,null,0,0,0]
[null,null,null,null,null,null,null,null,null,0,0,0]
[null,null,null,null,null,null,null,null,null,0,0,0]
[null,null,null,null,null,null,null,null,null,0,0,0]
[null,null,null,null,null,null,null,null,null,0,0,0]
[null,null,null,null,null,null,null,null,null,0,0,0]
[null,null,null,null,null,null,null,null,null,0,0,0]
[null,null,null,null,null,null,null,null,null,0,0,0]
[null,null,null,null,null,null,null,null,null,0,0,0]
[null,null,null,null,null,null,null,null,null,0,0,0]
[null,null,null,null,null,null,null,null,null,0,0,0]
[null,null,null,null,null,null,null,null,null,0,0,0]
[null,null,null,null,null,null,null,null,null,0,0,0]
[null,null,null,null,null,null,null,null,null,0,0,0]
[null,null,null,null,null,null,null,null,null,0,0,0]
[null,null,null,null,null,null,null,null,null,0,0,0]
[null,null,null,null,null,null,null,null,null,0,0,0]
[null,null,null,null,null,null,null,null,null,0,0,0]
[null,null,null,null,null,null,null,null,null,0,0,0]
[null,null,null,null,null,null,null,null,null,0,0,0]
[null,null,null,null,null,null,null,null,null,0,0,0]
[null,null,null,null,null,null,null,null,null,0,0,0]
[null,null,null,null,null,null,null,null,null,0,0,0]
[null,null,null,null,null,null,null,null,null,0,0,0]
[null,null,null,null,null,null,null,null,null,0,0,0]
[null,null,null,null,null,null,null,null,null,0,0,0]
[null,null,null,null,null,null,null,null,null,0,0,0]
[null,null,null,null,null,null,null,null,null,0,0,0]
[null,null,null,null,null,null,null,null,null,0,0,0]
[null,null,null,null,null,null,null,null,null,0,0,0]
[null,null,null,null,null,null,null,null,null,0,0,0]
[null,null,null,null,null,null,null,null,null,0,0,0]
[null,null,null,null,null,null,null,null,null,0,0,0]
[null,null,null,null,null,null,null,null,null,0,0,0]
[null,null,null,null,null,null,null,null,null,0,0,0]
[null,null,null,null,null,null,null,null,null,0,0,0]
[null,null,null,null,null,null,null,null,null,0,0,0]
[null,null,null,null,null,null,null,null,null,0,0,0]
[null,null,null,null,null,null,null,null,null,0,0,0]
[null,null,null,null,null,null,null,null,null,0,0,0]
[null,null,null,null,null,null,null,null,null,0,0,0]
[null,null,null,null,null,null,null,null,null,0,0,0]
[null,null,null,null,null,null,null,null,null,0,0,0]
[null,null,null,null,null,null,null,null,null,0,0,0]
[null,null,null,null,null,null,null,null,null,{"$f":"IFERROR(((($B308934/$H308934)*$M308934)),0)","v":0},{"$f":"F308934+G308934+E308934","v":0},{"$f":"IFERROR((($B308934/$H308934)*$M308934)+(($C308934/$H308934)*$M308934)+(($D308934/$H308934)*$M308934)+($E308934)+($G308934)+($F308934),0)","v":0}]
[null,null,null,null,null,null,null,null,null,0,0,0]
[null,null,null,null,null,null,null,null,null,0,0,0]
[null,null,null,null,null,null,null,null,null,0,0,0]
[null,null,null,null,null,null,null,null,null,0,0,0]
[null,null,null,null,null,null,null,null,null,0,0,0]
[null,null,null,null,null,null,null,null,null,0,0,0]
[null,null,null,null,null,null,null,null,null,0,0,0]
[null,null,null,null,null,null,null,null,null,0,0,0]
[null,null,null,null,null,null,null,null,null,0,0,0]
[null,null,null,null,null,null,null,null,null,0,0,0]
[null,null,null,null,null,null,null,null,null,0,0,0]
[null,null,null,null,null,null,null,null,null,0,0,0]
[null,null,null,null,null,null,null,null,null,0,0,0]
[null,null,null,null,null,null,null,null,null,0,0,0]
[null,null,null,null,null,null,null,null,null,0,0,0]
[null,null,null,null,null,null,null,null,null,0,0,0]
[null,null,null,null,null,null,null,null,null,0,0,0]
[null,null,null,null,null,null,null,null,null,0,0,0]
[null,null,null,null,null,null,null,null,null,0,0,0]
[null,null,null,null,null,null,null,null,null,0,0,0]
[null,null,null,null,null,null,null,null,null,0,0,0]
[null,null,null,null,null,null,null,null,null,0,0,0]
[null,null,null,null,null,null,null,null,null,0,0,0]
[null,null,null,null,null,null,null,null,null,0,0,0]
[null,null,null,null,null,null,null,null,null,0,0,0]
[null,null,null,null,null,null,null,null,null,0,0,0]
[null,null,null,null,null,null,null,null,null,0,0,0]
[null,null,null,null,null,null,null,null,null,0,0,0]
[null,null,null,null,null,null,null,null,null,0,0,0]
[null,null,null,null,null,null,null,null,null,0,0,0]
[null,null,null,null,null,null,null,null,null,0,0,0]
[null,null,null,null,null,null,null,null,null,0,0,0]
[null,null,null,null,null,null,null,null,null,0,0,0]
[null,null,null,null,null,null,null,null,null,0,0,0]
[null,null,null,null,null,null,null,null,null,0,0,0]
[null,null,null,null,null,null,null,null,null,0,0,0]
[null,null,null,null,null,null,null,null,null,0,0,0]
[null,null,null,null,null,null,null,null,null,0,0,0]
[null,null,null,null,null,null,null,null,null,0,0,0]
[null,null,null,null,null,null,null,null,null,0,0,0]
[null,null,null,null,null,null,null,null,null,0,0,0]
[null,null,null,null,null,null,null,null,null,0,0,0]
[null,null,null,null,null,null,null,null,null,0,0,0]
[null,null,null,null,null,null,null,null,null,0,0,0]
[null,null,null,null,null,null,null,null,null,0,0,0]
[null,null,null,null,null,null,null,null,null,0,0,0]
[null,null,null,null,null,null,null,null,null,0,0,0]
[null,null,null,null,null,null,null,null,null,0,0,0]
[null,null,null,null,null,null,null,null,null,0,0,0]
[null,null,null,null,null,null,null,null,null,0,0,0]
[null,null,null,null,null,null,null,null,null,0,0,0]
[null,null,null,null,null,null,null,null,null,0,0,0]
[null,null,null,null,null,null,null,null,null,0,0,0]
[null,null,null,null,null,null,null,null,null,{"$f":"IFERROR(((($B322374/$H322374)*$M322374)),0)","v":0},{"$f":"F322374+G322374+E322374","v":0},{"$f":"IFERROR((($B322374/$H322374)*$M322374)+(($C322374/$H322374)*$M322374)+(($D322374/$H322374)*$M322374)+($E322374)+($G322374)+($F322374),0)","v":0}]
[null,null,null,null,null,null,null,null,null,0,0,0]
[null,null,null,null,null,null,null,null,null,0,0,0]
[null,null,null,null,null,null,null,null,null,0,0,0]
[null,null,null,null,null,null,null,null,null,0,0,0]
[null,null,null,null,null,null,null,null,null,0,0,0]
[null,null,null,null,null,null,null,null,null,0,0,0]
[null,null,null,null,null,null,null,null,null,0,0,0]
[null,null,null,null,null,null,null,null,null,0,0,0]
[null,null,null,null,null,null,null,null,null,0,0,0]
[null,null,null,null,null,null,null,null,null,0,0,0]
[null,null,null,null,null,null,null,null,null,0,0,0]
[null,null,null,null,null,null,null,null,null,0,0,0]
[null,null,null,null,null,null,null,null,null,0,0,0]
[null,null,null,null,null,null,null,null,null,0,0,0]
[null,null,null,null,null,null,null,null,null,0,0,0]
[null,null,null,null,null,null,null,null,null,0,0,0]
[null,null,null,null,null,null,null,null,null,0,0,0]
[null,null,null,null,null,null,null,null,null,0,0,0]
[null,null,null,null,null,null,null,null,null,0,0,0]
[null,null,null,null,null,null,null,null,null,0,0,0]
[null,null,null,null,null,null,null,null,null,0,0,0]
[null,null,null,null,null,null,null,null,null,0,0,0]
[null,null,null,null,null,null,null,null,null,0,0,0]
[null,null,null,null,null,null,null,null,null,0,0,0]
[null,null,null,null,null,null,null,null,null,0,0,0]
[null,null,null,null,null,null,null,null,null,0,0,0]
[null,null,null,null,null,null,null,null,null,0,0,0]
[null,null,null,null,null,null,null,null,null,0,0,0]
[null,null,null,null,null,null,null,null,null,0,0,0]
[null,null,null,null,null,null,null,null,null,0,0,0]
[null,null,null,null,null,null,null,null,null,0,0,0]
[null,null,null,null,null,null,null,null,null,0,0,0]
[null,null,null,null,null,null,null,null,null,0,0,0]
[null,null,null,null,null,null,null,null,null,0,0,0]
[null,null,null,null,null,null,null,null,null,0,0,0]
[null,null,null,null,null,null,null,null,null,0,0,0]
[null,null,null,null,null,null,null,null,null,0,0,0]
[null,null,null,null,null,null,null,null,null,0,0,0]
[null,null,null,null,null,null,null,null,null,0,0,0]
[null,null,null,null,null,null,null,null,null,0,0,0]
[null,null,null,null,null,null,null,null,null,0,0,0]
[null,null,null,null,null,null,null,null,null,0,0,0]
[null,null,null,null,null,null,null,null,null,0,0,0]
[null,null,null,null,null,null,null,null,null,0,0,0]
[null,null,null,null,null,null,null,null,null,0,0,0]
[null,null,null,null,null,null,null,null,null,0,0,0]
[null,null,null,null,null,null,null,null,null,0,0,0]
[null,null,null,null,null,null,null,null,null,0,0,0]
[null,null,null,null,null,null,null,null,null,0,0,0]
[null,null,null,null,null,null,null,null,null,0,0,0]
[null,null,null,null,null,null,null,null,null,0,0,0]
[null,null,null,null,null,null,null,null,null,0,0,0]
[null,null,null,null,null,null,null,null,null,0,0,0]
[null,null,null,null,null,null,null,null,null,{"$f":"IFERROR(((($B335686/$H335686)*$M335686)),0)","v":0},{"$f":"F335686+G335686+E335686","v":0},{"$f":"IFERROR((($B335686/$H335686)*$M335686)+(($C335686/$H335686)*$M335686)+(($D335686/$H335686)*$M335686)+($E335686)+($G335686)+($F335686),0)","v":0}]
[null,null,null,null,null,null,null,null,null,0,0,0]
[null,null,null,null,null,null,null,null,null,0,0,0]
[null,null,null,null,null,null,null,null,null,0,0,0]
[null,null,null,null,null,null,null,null,null,0,0,0]
[null,null,null,null,null,null,null,null,null,0,0,0]
[null,null,null,null,null,null,null,null,null,0,0,0]
[null,null,null,null,null,null,null,null,null,{"$f":"IFERROR(((($B337414/$H337414)*$M337414)),0)","v":0},{"$f":"F337414+G337414+E337414","v":0},{"$f":"IFERROR((($B337414/$H337414)*$M337414)+(($C337414/$H337414)*$M337414)+(($D337414/$H337414)*$M337414)+($E337414)+($G337414)+($F337414),0)","v":0}]
[null,null,null,null,null,null,null,null,null,0,0,0]
[null,null,null,null,null,null,null,null,null,0,0,0]
[null,null,null,null,null,null,null,null,null,0,0,0]
[null,null,null,null,null,null,null,null,null,0,0,0]
[null,null,null,null,null,null,null,null,null,0,0,0]
[null,null,null,null,null,null,null,null,null,0,0,0]
[null,null,null,null,null,null,null,null,null,0,0,0]
[null,null,null,null,null,null,null,null,null,0,0,0]
[null,null,null,null,null,null,null,null,null,0,0,0]
[null,null,null,null,null,null,null,null,null,0,0,0]
[null,null,null,null,null,null,null,null,null,0,0,0]
[null,null,null,null,null,null,null,null,null,0,0,0]
[null,null,null,null,null,null,null,null,null,0,0,0]
[null,null,null,null,null,null,null,null,null,0,0,0]
[null,null,null,null,null,null,null,null,null,0,0,0]
[null,null,null,null,null,null,null,null,null,0,0,0]
[null,null,null,null,null,null,null,null,null,0,0,0]
[null,null,null,null,null,null,null,null,null,0,0,0]
[null,null,null,null,null,null,null,null,null,0,0,0]
[null,null,null,null,null,null,null,null,null,0,0,0]
[null,null,null,null,null,null,null,null,null,0,0,0]
[null,null,null,null,null,null,null,null,null,0,0,0]
[null,null,null,null,null,null,null,null,null,0,0,0]
[null,null,null,null,null,null,null,null,null,0,0,0]
[null,null,null,null,null,null,null,null,null,0,0,0]
[null,null,null,null,null,null,null,null,null,0,0,0]
[null,null,null,null,null,null,null,null,null,0,0,0]
[null,null,null,null,null,null,null,null,null,0,0,0]
[null,null,null,null,null,null,null,null,null,0,0,0]
[null,null,null,null,null,null,null,null,null,0,0,0]
[null,null,null,null,null,null,null,null,null,0,0,0]
[null,null,null,null,null,null,null,null,null,0,0,0]
[null,null,null,null,null,null,null,null,null,0,0,0]
[null,null,null,null,null,null,null,null,null,0,0,0]
[null,null,null,null,null,null,null,null,null,0,0,0]
[null,null,null,null,null,null,null,null,null,0,0,0]
[null,null,null,null,null,null,null,null,null,0,0,0]
[null,null,null,null,null,null,null,null,null,0,0,0]
[null,null,null,null,null,null,null,null,null,0,0,0]
[null,null,null,null,null,null,null,null,null,0,0,0]
[null,null,null,null,null,null,null,null,null,0,0,0]
[null,null,null,null,null,null,null,null,null,0,0,0]
[null,null,null,null,null,null,null,null,null,0,0,0]
[null,null,null,null,null,null,null,null,null,0,0,0]
[null,null,null,null,null,null,null,null,null,0,0,0]
[null,null,null,null,null,null,null,null,null,0,0,0]
[null,null,null,null,null,null,null,null,null,{"$f":"IFERROR(((($B349126/$H349126)*$M349126)),0)","v":0},{"$f":"F349126+G349126+E349126","v":0},{"$f":"IFERROR((($B349126/$H349126)*$M349126)+(($C349126/$H349126)*$M349126)+(($D349126/$H349126)*$M349126)+($E349126)+($G349126)+($F349126),0)","v":0}]
[null,null,null,null,null,null,null,null,null,0,0,0]
[null,null,null,null,null,null,null,null,null,0,0,0]
[null,null,null,null,null,null,null,null,null,0,0,0]
[null,null,null,null,null,null,null,null,null,0,0,0]
[null,null,null,null,null,null,null,null,null,0,0,0]
[null,null,null,null,null,null,null,null,null,0,0,0]
[null,null,null,null,null,null,null,null,null,{"$f":"IFERROR(((($B350854/$H350854)*$M350854)),0)","v":0},{"$f":"F350854+G350854+E350854","v":0},{"$f":"IFERROR((($B350854/$H350854)*$M350854)+(($C350854/$H350854)*$M350854)+(($D350854/$H350854)*$M350854)+($E350854)+($G350854)+($F350854),0)","v":0}]
[null,null,null,null,null,null,null,null,null,0,0,0]
[null,null,null,null,null,null,null,null,null,0,0,0]
[null,null,null,null,null,null,null,null,null,0,0,0]
[null,null,null,null,null,null,null,null,null,0,0,0]
[null,null,null,null,null,null,null,null,null,0,0,0]
[null,null,null,null,null,null,null,null,null,0,0,0]
[null,null,null,null,null,null,null,null,null,0,0,0]
[null,null,null,null,null,null,null,null,null,0,0,0]
[null,null,null,null,null,null,null,null,null,0,0,0]
[null,null,null,null,null,null,null,null,null,0,0,0]
[null,null,null,null,null,null,null,null,null,0,0,0]
[null,null,null,null,null,null,null,null,null,0,0,0]
[null,null,null,null,null,null,null,null,null,0,0,0]
[null,null,null,null,null,null,null,null,null,0,0,0]
[null,null,null,null,null,null,null,null,null,0,0,0]
[null,null,null,null,null,null,null,null,null,0,0,0]
[null,null,null,null,null,null,null,null,null,0,0,0]
[null,null,null,null,null,null,null,null,null,0,0,0]
[null,null,null,null,null,null,null,null,null,0,0,0]
[null,null,null,null,null,null,null,null,null,0,0,0]
[null,null,null,null,null,null,null,null,null,0,0,0]
[null,null,null,null,null,null,null,null,null,0,0,0]
[null,null,null,null,null,null,null,null,null,0,0,0]
[null,null,null,null,null,null,null,null,null,0,0,0]
[null,null,null,null,null,null,null,null,null,0,0,0]
[null,null,null,null,null,null,null,null,null,0,0,0]
[null,null,null,null,null,null,null,null,null,0,0,0]
[null,null,null,null,null,null,null,null,null,0,0,0]
[null,null,null,null,null,null,null,null,null,0,0,0]
[null,null,null,null,null,null,null,null,null,0,0,0]
[null,null,null,null,null,null,null,null,null,0,0,0]
[null,null,null,null,null,null,null,null,null,0,0,0]
[null,null,null,null,null,null,null,null,null,0,0,0]
[null,null,null,null,null,null,null,null,null,0,0,0]
[null,null,null,null,null,null,null,null,null,0,0,0]
[null,null,null,null,null,null,null,null,null,0,0,0]
[null,null,null,null,null,null,null,null,null,0,0,0]
[null,null,null,null,null,null,null,null,null,0,0,0]
[null,null,null,null,null,null,null,null,null,0,0,0]
[null,null,null,null,null,null,null,null,null,0,0,0]
[null,null,null,null,null,null,null,null,null,0,0,0]
[null,null,null,null,null,null,null,null,null,0,0,0]
[null,null,null,null,null,null,null,null,null,0,0,0]
[null,null,null,null,null,null,null,null,null,0,0,0]
[null,null,null,null,null,null,null,null,null,0,0,0]
[null,null,null,null,null,null,null,null,null,0,0,0]
[null,null,null,null,null,null,null,null,null,{"$f":"IFERROR(((($B362438/$H362438)*$M362438)),0)","v":0},{"$f":"F362438+G362438+E362438","v":0},{"$f":"IFERROR((($B362438/$H362438)*$M362438)+(($C362438/$H362438)*$M362438)+(($D362438/$H362438)*$M362438)+($E362438)+($G362438)+($F362438),0)","v":0}]
[null,null,null,null,null,null,null,null,null,0,0,0]
[null,null,null,null,null,null,null,null,null,0,0,0]
[null,null,null,null,null,null,null,null,null,0,0,0]
[null,null,null,null,null,null,null,null,null,0,0,0]
[null,null,null,null,null,null,null,null,null,0,0,0]
[null,null,null,null,null,null,null,null,null,0,0,0]
[null,null,null,null,null,null,null,null,null,{"$f":"IFERROR(((($B364166/$H364166)*$M364166)),0)","v":0},{"$f":"F364166+G364166+E364166","v":0},{"$f":"IFERROR((($B364166/$H364166)*$M364166)+(($C364166/$H364166)*$M364166)+(($D364166/$H364166)*$M364166)+($E364166)+($G364166)+($F364166),0)","v":0}]
[null,null,null,null,null,null,null,null,null,0,0,0]
[null,null,null,null,null,null,null,null,null,0,0,0]
[null,null,null,null,null,null,null,null,null,0,0,0]
[null,null,null,null,null,null,null,null,null,0,0,0]
[null,null,null,null,null,null,null,null,null,0,0,0]
[null,null,null,null,null,null,null,null,null,0,0,0]
[null,null,null,null,null,null,null,null,null,0,0,0]
[null,null,null,null,null,null,null,null,null,0,0,0]
[null,null,null,null,null,null,null,null,null,0,0,0]
[null,null,null,null,null,null,null,null,null,0,0,0]
[null,null,null,null,null,null,null,null,null,0,0,0]
[null,null,null,null,null,null,null,null,null,0,0,0]
[null,null,null,null,null,null,null,null,null,0,0,0]
[null,null,null,null,null,null,null,null,null,0,0,0]
[null,null,null,null,null,null,null,null,null,0,0,0]
[null,null,null,null,null,null,null,null,null,0,0,0]
[null,null,null,null,null,null,null,null,null,0,0,0]
[null,null,null,null,null,null,null,null,null,0,0,0]
[null,null,null,null,null,null,null,null,null,0,0,0]
[null,null,null,null,null,null,null,null,null,0,0,0]
[null,null,null,null,null,null,null,null,null,0,0,0]
[null,null,null,null,null,null,null,null,null,0,0,0]
[null,null,null,null,null,null,null,null,null,0,0,0]
[null,null,null,null,null,null,null,null,null,0,0,0]
[null,null,null,null,null,null,null,null,null,0,0,0]
[null,null,null,null,null,null,null,null,null,0,0,0]
[null,null,null,null,null,null,null,null,null,0,0,0]
[null,null,null,null,null,null,null,null,null,0,0,0]
[null,null,null,null,null,null,null,null,null,0,0,0]
[null,null,null,null,null,null,null,null,null,0,0,0]
[null,null,null,null,null,null,null,null,null,0,0,0]
[null,null,null,null,null,null,null,null,null,0,0,0]
[null,null,null,null,null,null,null,null,null,0,0,0]
[null,null,null,null,null,null,null,null,null,0,0,0]
[null,null,null,null,null,null,null,null,null,0,0,0]
[null,null,null,null,null,null,null,null,null,0,0,0]
[null,null,null,null,null,null,null,null,null,0,0,0]
[null,null,null,null,null,null,null,null,null,0,0,0]
[null,null,null,null,null,null,null,null,null,0,0,0]
[null,null,null,null,null,null,null,null,null,0,0,0]
[null,null,null,null,null,null,null,null,null,0,0,0]
[null,null,null,null,null,null,null,null,null,0,0,0]
[null,null,null,null,null,null,null,null,null,0,0,0]
[null,null,null,null,null,null,null,null,null,0,0,0]
[null,null,null,null,null,null,null,null,null,0,0,0]
[null,null,null,null,null,null,null,null,null,0,0,0]
[null,null,null,null,null,null,null,null,null,0,0,0]
[null,null,null,null,null,null,null,null,null,0,0,0]
[null,null,null,null,null,null,null,null,null,0,0,0]
[null,null,null,null,null,null,null,null,null,0,0,0]
[null,null,null,null,null,null,null,null,null,0,0,0]
[null,null,null,null,null,null,null,null,null,0,0,0]
[null,null,null,null,null,null,null,null,null,0,0,0]
[null,null,null,null,null,null,null,null,null,{"$f":"IFERROR(((($B377606/$H377606)*$M377606)),0)","v":0},{"$f":"F377606+G377606+E377606","v":0},{"$f":"IFERROR((($B377606/$H377606)*$M377606)+(($C377606/$H377606)*$M377606)+(($D377606/$H377606)*$M377606)+($E377606)+($G377606)+($F377606),0)","v":0}]
[null,null,null,null,null,null,null,null,null,0,0,0]
[null,null,null,null,null,null,null,null,null,0,0,0]
[null,null,null,null,null,null,null,null,null,0,0,0]
[null,null,null,null,null,null,null,null,null,0,0,0]
[null,null,null,null,null,null,null,null,null,0,0,0]
[null,null,null,null,null,null,null,null,null,0,0,0]
[null,null,null,null,null,null,null,null,null,0,0,0]
[null,null,null,null,null,null,null,null,null,0,0,0]
[null,null,null,null,null,null,null,null,null,0,0,0]
[null,null,null,null,null,null,null,null,null,0,0,0]
[null,null,null,null,null,null,null,null,null,0,0,0]
[null,null,null,null,null,null,null,null,null,0,0,0]
[null,null,null,null,null,null,null,null,null,0,0,0]
[null,null,null,null,null,null,null,null,null,0,0,0]
[null,null,null,null,null,null,null,null,null,0,0,0]
[null,null,null,null,null,null,null,null,null,0,0,0]
[null,null,null,null,null,null,null,null,null,0,0,0]
[null,null,null,null,null,null,null,null,null,0,0,0]
[null,null,null,null,null,null,null,null,null,0,0,0]
[null,null,null,null,null,null,null,null,null,0,0,0]
[null,null,null,null,null,null,null,null,null,0,0,0]
[null,null,null,null,null,null,null,null,null,0,0,0]
[null,null,null,null,null,null,null,null,null,0,0,0]
[null,null,null,null,null,null,null,null,null,0,0,0]
[null,null,null,null,null,null,null,null,null,0,0,0]
[null,null,null,null,null,null,null,null,null,0,0,0]
[null,null,null,null,null,null,null,null,null,0,0,0]
[null,null,null,null,null,null,null,null,null,0,0,0]
[null,null,null,null,null,null,null,null,null,0,0,0]
[null,null,null,null,null,null,null,null,null,0,0,0]
[null,null,null,null,null,null,null,null,null,0,0,0]
[null,null,null,null,null,null,null,null,null,0,0,0]
[null,null,null,null,null,null,null,null,null,0,0,0]
[null,null,null,null,null,null,null,null,null,0,0,0]
[null,null,null,null,null,null,null,null,null,0,0,0]
[null,null,null,null,null,null,null,null,null,0,0,0]
[null,null,null,null,null,null,null,null,null,0,0,0]
[null,null,null,null,null,null,null,null,null,0,0,0]
[null,null,null,null,null,null,null,null,null,0,0,0]
[null,null,null,null,null,null,null,null,null,0,0,0]
[null,null,null,null,null,null,null,null,null,0,0,0]
[null,null,null,null,null,null,null,null,null,0,0,0]
[null,null,null,null,null,null,null,null,null,0,0,0]
[null,null,null,null,null,null,null,null,null,0,0,0]
[null,null,null,null,null,null,null,null,null,0,0,0]
[null,null,null,null,null,null,null,null,null,0,0,0]
[null,null,null,null,null,null,null,null,null,0,0,0]
[null,null,null,null,null,null,null,null,null,0,0,0]
[null,null,null,null,null,null,null,null,null,0,0,0]
[null,null,null,null,null,null,null,null,null,0,0,0]
[null,null,null,null,null,null,null,null,null,0,0,0]
[null,null,null,null,null,null,null,null,null,0,0,0]
[null,null,null,null,null,null,null,null,null,0,0,0]
[null,null,null,null,null,null,null,null,null,0,0,0]
[null,null,null,null,null,null,null,null,null,0,0,0]
[null,null,null,null,null,null,null,null,null,0,0,0]
[null,null,null,null,null,null,null,null,null,0,0,0]
[null,null,null,null,null,null,null,null,null,0,0,0]
[null,null,null,null,null,null,null,null,null,0,0,0]
[null,null,null,null,null,null,null,null,null,0,0,0]
[null,null,null,null,null,null,null,null,null,0,0,0]
[null,null,null,null,null,null,null,null,null,0,0,0]
[null,null,null,null,null,null,null,null,null,0,0,0]
[null,null,null,null,null,null,null,null,null,0,0,0]
[null,null,null,null,null,null,null,null,null,0,0,0]
[null,null,null,null,null,null,null,null,null,0,0,0]
[null,null,null,null,null,null,null,null,null,0,0,0]
[null,null,null,null,null,null,null,null,null,0,0,0]
[null,null,null,null,null,null,null,null,null,0,0,0]
[null,null,null,null,null,null,null,null,null,0,0,0]
[null,null,null,null,null,null,null,null,null,0,0,0]
[null,null,null,null,null,null,null,null,null,0,0,0]
[null,null,null,null,null,null,null,null,null,0,0,0]
[null,null,null,null,null,null,null,null,null,0,0,0]
[null,null,null,null,null,null,null,null,null,0,0,0]
[null,null,null,null,null,null,null,null,null,0,0,0]
[null,null,null,null,null,null,null,null,null,0,0,0]
[null,null,null,null,null,null,null,null,null,0,0,0]
[null,null,null,null,null,null,null,null,null,0,0,0]
[null,null,null,null,null,null,null,null,null,0,0,0]
[null,null,null,null,null,null,null,null,null,0,0,0]
[null,null,null,null,null,null,null,null,null,0,0,0]
[null,null,null,null,null,null,null,null,null,0,0,0]
[null,null,null,null,null,null,null,null,null,0,0,0]
[null,null,null,null,null,null,null,null,null,0,0,0]
[null,null,null,null,null,null,null,null,null,0,0,0]
[null,null,null,null,null,null,null,null,null,0,0,0]
[null,null,null,null,null,null,null,null,null,0,0,0]
[null,null,null,null,null,null,null,null,null,0,0,0]
[null,null,null,null,null,null,null,null,null,0,0,0]
[null,null,null,null,null,null,null,null,null,0,0,0]
[null,null,null,null,null,null,null,null,null,0,0,0]
[null,null,null,null,null,null,null,null,null,0,0,0]
[null,null,null,null,null,null,null,null,null,0,0,0]
[null,null,null,null,null,null,null,null,null,0,0,0]
[null,null,null,null,null,null,null,null,null,0,0,0]
[null,null,null,null,null,null,null,null,null,0,0,0]
[null,null,null,null,null,null,null,null,null,0,0,0]
[null,null,null,null,null,null,null,null,null,0,0,0]
[null,null,null,null,null,null,null,null,null,0,0,0]
[null,null,null,null,null,null,null,null,null,0,0,0]
[null,null,null,null,null,null,null,null,null,0,0,0]
[null,null,null,null,null,null,null,null,null,0,0,0]
[null,null,null,null,null,null,null,null,null,0,0,0]
[null,null,null,null,null,null,null,null,null,0,0,0]
[null,null,null,null,null,null,null,null,null,0,0,0]
[null,null,null,null,null,null,null,null,null,0,0,0]
[null,null,null,null,null,null,null,null,null,{"$f":"IFERROR(((($B404358/$H404358)*$M404358)),0)","v":0},{"$f":"F404358+G404358+E404358","v":0},{"$f":"IFERROR((($B404358/$H404358)*$M404358)+(($C404358/$H404358)*$M404358)+(($D404358/$H404358)*$M404358)+($E404358)+($G404358)+($F404358),0)","v":0}]
[null,null,null,null,null,null,null,null,null,0,0,0]
[null,null,null,null,null,null,null,null,null,0,0,0]
[null,null,null,null,null,null,null,null,null,0,0,0]
[null,null,null,null,null,null,null,null,null,0,0,0]
[null,null,null,null,null,null,null,null,null,0,0,0]
[null,null,null,null,null,null,null,null,null,0,0,0]
[null,null,null,null,null,null,null,null,null,0,0,0]
[null,null,null,null,null,null,null,null,null,0,0,0]
[null,null,null,null,null,null,null,null,null,0,0,0]
[null,null,null,null,null,null,null,null,null,0,0,0]
[null,null,null,null,null,null,null,null,null,0,0,0]
[null,null,null,null,null,null,null,null,null,0,0,0]
[null,null,null,null,null,null,null,null,null,0,0,0]
[null,null,null,null,null,null,null,null,null,0,0,0]
[null,null,null,null,null,null,null,null,null,0,0,0]
[null,null,null,null,null,null,null,null,null,0,0,0]
[null,null,null,null,null,null,null,null,null,0,0,0]
[null,null,null,null,null,null,null,null,null,0,0,0]
[null,null,null,null,null,null,null,null,null,0,0,0]
[null,null,null,null,null,null,null,null,null,0,0,0]
[null,null,null,null,null,null,null,null,null,0,0,0]
[null,null,null,null,null,null,null,null,null,0,0,0]
[null,null,null,null,null,null,null,null,null,0,0,0]
[null,null,null,null,null,null,null,null,null,0,0,0]
[null,null,null,null,null,null,null,null,null,0,0,0]
[null,null,null,null,null,null,null,null,null,0,0,0]
[null,null,null,null,null,null,null,null,null,0,0,0]
[null,null,null,null,null,null,null,null,null,0,0,0]
[null,null,null,null,null,null,null,null,null,0,0,0]
[null,null,null,null,null,null,null,null,null,0,0,0]
[null,null,null,null,null,null,null,null,null,0,0,0]
[null,null,null,null,null,null,null,null,null,0,0,0]
[null,null,null,null,null,null,null,null,null,0,0,0]
[null,null,null,null,null,null,null,null,null,0,0,0]
[null,null,null,null,null,null,null,null,null,0,0,0]
[null,null,null,null,null,null,null,null,null,0,0,0]
[null,null,null,null,null,null,null,null,null,0,0,0]
[null,null,null,null,null,null,null,null,null,0,0,0]
[null,null,null,null,null,null,null,null,null,0,0,0]
[null,null,null,null,null,null,null,null,null,0,0,0]
[null,null,null,null,null,null,null,null,null,0,0,0]
[null,null,null,null,null,null,null,null,null,0,0,0]
[null,null,null,null,null,null,null,null,null,0,0,0]
[null,null,null,null,null,null,null,null,null,0,0,0]
[null,null,null,null,null,null,null,null,null,0,0,0]
[null,null,null,null,null,null,null,null,null,0,0,0]
[null,null,null,null,null,null,null,null,null,0,0,0]
[null,null,null,null,null,null,null,null,null,0,0,0]
[null,null,null,null,null,null,null,null,null,0,0,0]
[null,null,null,null,null,null,null,null,null,0,0,0]
[null,null,null,null,null,null,null,null,null,0,0,0]
[null,null,null,null,null,null,null,null,null,0,0,0]
[null,null,null,null,null,null,null,null,null,0,0,0]
[null,null,null,null,null,null,null,null,null,{"$f":"IFERROR(((($B417798/$H417798)*$M417798)),0)","v":0},{"$f":"F417798+G417798+E417798","v":0},{"$f":"IFERROR((($B417798/$H417798)*$M417798)+(($C417798/$H417798)*$M417798)+(($D417798/$H417798)*$M417798)+($E417798)+($G417798)+($F417798),0)","v":0}]
[null,null,null,null,null,null,null,null,null,0,0,0]
[null,null,null,null,null,null,null,null,null,0,0,0]
[null,null,null,null,null,null,null,null,null,0,0,0]
[null,null,null,null,null,null,null,null,null,0,0,0]
[null,null,null,null,null,null,null,null,null,0,0,0]
[null,null,null,null,null,null,null,null,null,0,0,0]
[null,null,null,null,null,null,null,null,null,0,0,0]
[null,null,null,null,null,null,null,null,null,0,0,0]
[null,null,null,null,null,null,null,null,null,0,0,0]
[null,null,null,null,null,null,null,null,null,0,0,0]
[null,null,null,null,null,null,null,null,null,0,0,0]
[null,null,null,null,null,null,null,null,null,0,0,0]
[null,null,null,null,null,null,null,null,null,0,0,0]
[null,null,null,null,null,null,null,null,null,0,0,0]
[null,null,null,null,null,null,null,null,null,0,0,0]
[null,null,null,null,null,null,null,null,null,0,0,0]
[null,null,null,null,null,null,null,null,null,0,0,0]
[null,null,null,null,null,null,null,null,null,0,0,0]
[null,null,null,null,null,null,null,null,null,0,0,0]
[null,null,null,null,null,null,null,null,null,0,0,0]
[null,null,null,null,null,null,null,null,null,0,0,0]
[null,null,null,null,null,null,null,null,null,0,0,0]
[null,null,null,null,null,null,null,null,null,0,0,0]
[null,null,null,null,null,null,null,null,null,0,0,0]
[null,null,null,null,null,null,null,null,null,0,0,0]
[null,null,null,null,null,null,null,null,null,0,0,0]
[null,null,null,null,null,null,null,null,null,0,0,0]
[null,null,null,null,null,null,null,null,null,0,0,0]
[null,null,null,null,null,null,null,null,null,0,0,0]
[null,null,null,null,null,null,null,null,null,0,0,0]
[null,null,null,null,null,null,null,null,null,0,0,0]
[null,null,null,null,null,null,null,null,null,0,0,0]
[null,null,null,null,null,null,null,null,null,0,0,0]
[null,null,null,null,null,null,null,null,null,0,0,0]
[null,null,null,null,null,null,null,null,null,0,0,0]
[null,null,null,null,null,null,null,null,null,0,0,0]
[null,null,null,null,null,null,null,null,null,0,0,0]
[null,null,null,null,null,null,null,null,null,0,0,0]
[null,null,null,null,null,null,null,null,null,0,0,0]
[null,null,null,null,null,null,null,null,null,0,0,0]
[null,null,null,null,null,null,null,null,null,0,0,0]
[null,null,null,null,null,null,null,null,null,0,0,0]
[null,null,null,null,null,null,null,null,null,0,0,0]
[null,null,null,null,null,null,null,null,null,0,0,0]
[null,null,null,null,null,null,null,null,null,0,0,0]
[null,null,null,null,null,null,null,null,null,0,0,0]
[null,null,null,null,null,null,null,null,null,0,0,0]
[null,null,null,null,null,null,null,null,null,0,0,0]
[null,null,null,null,null,null,null,null,null,0,0,0]
[null,null,null,null,null,null,null,null,null,0,0,0]
[null,null,null,null,null,null,null,null,null,0,0,0]
[null,null,null,null,null,null,null,null,null,0,0,0]
[null,null,null,null,null,null,null,null,null,0,0,0]
[null,null,null,null,null,null,null,null,null,{"$f":"IFERROR(((($B431110/$H431110)*$M431110)),0)","v":0},{"$f":"F431110+G431110+E431110","v":0},{"$f":"IFERROR((($B431110/$H431110)*$M431110)+(($C431110/$H431110)*$M431110)+(($D431110/$H431110)*$M431110)+($E431110)+($G431110)+($F431110),0)","v":0}]
[null,null,null,null,null,null,null,null,null,0,0,0]
[null,null,null,null,null,null,null,null,null,0,0,0]
[null,null,null,null,null,null,null,null,null,0,0,0]
[null,null,null,null,null,null,null,null,null,0,0,0]
[null,null,null,null,null,null,null,null,null,0,0,0]
[null,null,null,null,null,null,null,null,null,0,0,0]
[null,null,null,null,null,null,null,null,null,0,0,0]
[null,null,null,null,null,null,null,null,null,0,0,0]
[null,null,null,null,null,null,null,null,null,0,0,0]
[null,null,null,null,null,null,null,null,null,0,0,0]
[null,null,null,null,null,null,null,null,null,0,0,0]
[null,null,null,null,null,null,null,null,null,0,0,0]
[null,null,null,null,null,null,null,null,null,0,0,0]
[null,null,null,null,null,null,null,null,null,0,0,0]
[null,null,null,null,null,null,null,null,null,0,0,0]
[null,null,null,null,null,null,null,null,null,0,0,0]
[null,null,null,null,null,null,null,null,null,0,0,0]
[null,null,null,null,null,null,null,null,null,0,0,0]
[null,null,null,null,null,null,null,null,null,0,0,0]
[null,null,null,null,null,null,null,null,null,0,0,0]
[null,null,null,null,null,null,null,null,null,0,0,0]
[null,null,null,null,null,null,null,null,null,0,0,0]
[null,null,null,null,null,null,null,null,null,0,0,0]
[null,null,null,null,null,null,null,null,null,0,0,0]
[null,null,null,null,null,null,null,null,null,0,0,0]
[null,null,null,null,null,null,null,null,null,0,0,0]
[null,null,null,null,null,null,null,null,null,0,0,0]
[null,null,null,null,null,null,null,null,null,0,0,0]
[null,null,null,null,null,null,null,null,null,0,0,0]
[null,null,null,null,null,null,null,null,null,0,0,0]
[null,null,null,null,null,null,null,null,null,0,0,0]
[null,null,null,null,null,null,null,null,null,0,0,0]
[null,null,null,null,null,null,null,null,null,0,0,0]
[null,null,null,null,null,null,null,null,null,0,0,0]
[null,null,null,null,null,null,null,null,null,0,0,0]
[null,null,null,null,null,null,null,null,null,0,0,0]
[null,null,null,null,null,null,null,null,null,0,0,0]
[null,null,null,null,null,null,null,null,null,0,0,0]
[null,null,null,null,null,null,null,null,null,0,0,0]
[null,null,null,null,null,null,null,null,null,0,0,0]
[null,null,null,null,null,null,null,null,null,0,0,0]
[null,null,null,null,null,null,null,null,null,0,0,0]
[null,null,null,null,null,null,null,null,null,0,0,0]
[null,null,null,null,null,null,null,null,null,0,0,0]
[null,null,null,null,null,null,null,null,null,0,0,0]
[null,null,null,null,null,null,null,null,null,0,0,0]
[null,null,null,null,null,null,null,null,null,0,0,0]
[null,null,null,null,null,null,null,null,null,0,0,0]
[null,null,null,null,null,null,null,null,null,0,0,0]
[null,null,null,null,null,null,null,null,null,0,0,0]
[null,null,null,null,null,null,null,null,null,0,0,0]
[null,null,null,null,null,null,null,null,null,0,0,0]
[null,null,null,null,null,null,null,null,null,0,0,0]
[null,null,null,null,null,null,null,null,null,{"$f":"IFERROR(((($B444550/$H444550)*$M444550)),0)","v":0},{"$f":"F444550+G444550+E444550","v":0},{"$f":"IFERROR((($B444550/$H444550)*$M444550)+(($C444550/$H444550)*$M444550)+(($D444550/$H444550)*$M444550)+($E444550)+($G444550)+($F444550),0)","v":0}]
[null,null,null,null,null,null,null,null,null,0,0,0]
[null,null,null,null,null,null,null,null,null,0,0,0]
[null,null,null,null,null,null,null,null,null,0,0,0]
[null,null,null,null,null,null,null,null,null,0,0,0]
[null,null,null,null,null,null,null,null,null,0,0,0]
[null,null,null,null,null,null,null,null,null,0,0,0]
[null,null,null,null,null,null,null,null,null,0,0,0]
[null,null,null,null,null,null,null,null,null,0,0,0]
[null,null,null,null,null,null,null,null,null,0,0,0]
[null,null,null,null,null,null,null,null,null,0,0,0]
[null,null,null,null,null,null,null,null,null,0,0,0]
[null,null,null,null,null,null,null,null,null,0,0,0]
[null,null,null,null,null,null,null,null,null,0,0,0]
[null,null,null,null,null,null,null,null,null,0,0,0]
[null,null,null,null,null,null,null,null,null,0,0,0]
[null,null,null,null,null,null,null,null,null,0,0,0]
[null,null,null,null,null,null,null,null,null,0,0,0]
[null,null,null,null,null,null,null,null,null,0,0,0]
[null,null,null,null,null,null,null,null,null,0,0,0]
[null,null,null,null,null,null,null,null,null,0,0,0]
[null,null,null,null,null,null,null,null,null,0,0,0]
[null,null,null,null,null,null,null,null,null,0,0,0]
[null,null,null,null,null,null,null,null,null,0,0,0]
[null,null,null,null,null,null,null,null,null,0,0,0]
[null,null,null,null,null,null,null,null,null,0,0,0]
[null,null,null,null,null,null,null,null,null,0,0,0]
[null,null,null,null,null,null,null,null,null,0,0,0]
[null,null,null,null,null,null,null,null,null,0,0,0]
[null,null,null,null,null,null,null,null,null,0,0,0]
[null,null,null,null,null,null,null,null,null,0,0,0]
[null,null,null,null,null,null,null,null,null,0,0,0]
[null,null,null,null,null,null,null,null,null,0,0,0]
[null,null,null,null,null,null,null,null,null,0,0,0]
[null,null,null,null,null,null,null,null,null,0,0,0]
[null,null,null,null,null,null,null,null,null,0,0,0]
[null,null,null,null,null,null,null,null,null,0,0,0]
[null,null,null,null,null,null,null,null,null,0,0,0]
[null,null,null,null,null,null,null,null,null,0,0,0]
[null,null,null,null,null,null,null,null,null,0,0,0]
[null,null,null,null,null,null,null,null,null,0,0,0]
[null,null,null,null,null,null,null,null,null,0,0,0]
[null,null,null,null,null,null,null,null,null,0,0,0]
[null,null,null,null,null,null,null,null,null,0,0,0]
[null,null,null,null,null,null,null,null,null,0,0,0]
[null,null,null,null,null,null,null,null,null,0,0,0]
[null,null,null,null,null,null,null,null,null,0,0,0]
[null,null,null,null,null,null,null,null,null,0,0,0]
[null,null,null,null,null,null,null,null,null,0,0,0]
[null,null,null,null,null,null,null,null,null,0,0,0]
[null,null,null,null,null,null,null,null,null,0,0,0]
[null,null,null,null,null,null,null,null,null,0,0,0]
[null,null,null,null,null,null,null,null,null,0,0,0]
[null,null,null,null,null,null,null,null,null,0,0,0]
[null,null,null,null,null,null,null,null,null,{"$f":"IFERROR(((($B457990/$H457990)*$M457990)),0)","v":0},{"$f":"F457990+G457990+E457990","v":0},{"$f":"IFERROR((($B457990/$H457990)*$M457990)+(($C457990/$H457990)*$M457990)+(($D457990/$H457990)*$M457990)+($E457990)+($G457990)+($F457990),0)","v":0}]
[null,null,null,null,null,null,null,null,null,0,0,0]
[null,null,null,null,null,null,null,null,null,0,0,0]
[null,null,null,null,null,null,null,null,null,0,0,0]
[null,null,null,null,null,null,null,null,null,0,0,0]
[null,null,null,null,null,null,null,null,null,0,0,0]
[null,null,null,null,null,null,null,null,null,0,0,0]
[null,null,null,null,null,null,null,null,null,0,0,0]
[null,null,null,null,null,null,null,null,null,0,0,0]
[null,null,null,null,null,null,null,null,null,0,0,0]
[null,null,null,null,null,null,null,null,null,0,0,0]
[null,null,null,null,null,null,null,null,null,0,0,0]
[null,null,null,null,null,null,null,null,null,0,0,0]
[null,null,null,null,null,null,null,null,null,0,0,0]
[null,null,null,null,null,null,null,null,null,0,0,0]
[null,null,null,null,null,null,null,null,null,0,0,0]
[null,null,null,null,null,null,null,null,null,0,0,0]
[null,null,null,null,null,null,null,null,null,0,0,0]
[null,null,null,null,null,null,null,null,null,0,0,0]
[null,null,null,null,null,null,null,null,null,0,0,0]
[null,null,null,null,null,null,null,null,null,0,0,0]
[null,null,null,null,null,null,null,null,null,0,0,0]
[null,null,null,null,null,null,null,null,null,0,0,0]
[null,null,null,null,null,null,null,null,null,0,0,0]
[null,null,null,null,null,null,null,null,null,0,0,0]
[null,null,null,null,null,null,null,null,null,0,0,0]
[null,null,null,null,null,null,null,null,null,0,0,0]
[null,null,null,null,null,null,null,null,null,0,0,0]
[null,null,null,null,null,null,null,null,null,0,0,0]
[null,null,null,null,null,null,null,null,null,0,0,0]
[null,null,null,null,null,null,null,null,null,0,0,0]
[null,null,null,null,null,null,null,null,null,0,0,0]
[null,null,null,null,null,null,null,null,null,0,0,0]
[null,null,null,null,null,null,null,null,null,0,0,0]
[null,null,null,null,null,null,null,null,null,0,0,0]
[null,null,null,null,null,null,null,null,null,0,0,0]
[null,null,null,null,null,null,null,null,null,0,0,0]
[null,null,null,null,null,null,null,null,null,0,0,0]
[null,null,null,null,null,null,null,null,null,0,0,0]
[null,null,null,null,null,null,null,null,null,0,0,0]
[null,null,null,null,null,null,null,null,null,0,0,0]
[null,null,null,null,null,null,null,null,null,0,0,0]
[null,null,null,null,null,null,null,null,null,0,0,0]
[null,null,null,null,null,null,null,null,null,0,0,0]
[null,null,null,null,null,null,null,null,null,0,0,0]
[null,null,null,null,null,null,null,null,null,0,0,0]
[null,null,null,null,null,null,null,null,null,0,0,0]
[null,null,null,null,null,null,null,null,null,0,0,0]
[null,null,null,null,null,null,null,null,null,0,0,0]
[null,null,null,null,null,null,null,null,null,0,0,0]
[null,null,null,null,null,null,null,null,null,0,0,0]
[null,null,null,null,null,null,null,null,null,0,0,0]
[null,null,null,null,null,null,null,null,null,0,0,0]
[null,null,null,null,null,null,null,null,null,0,0,0]
[null,null,null,null,null,null,null,null,null,{"$f":"IFERROR(((($B471302/$H471302)*$M471302)),0)","v":0},{"$f":"F471302+G471302+E471302","v":0},{"$f":"IFERROR((($B471302/$H471302)*$M471302)+(($C471302/$H471302)*$M471302)+(($D471302/$H471302)*$M471302)+($E471302)+($G471302)+($F471302),0)","v":0}]
[null,null,null,null,null,null,null,null,null,0,0,0]
[null,null,null,null,null,null,null,null,null,0,0,0]
[null,null,null,null,null,null,null,null,null,0,0,0]
[null,null,null,null,null,null,null,null,null,0,0,0]
[null,null,null,null,null,null,null,null,null,0,0,0]
[null,null,null,null,null,null,null,null,null,0,0,0]
[null,null,null,null,null,null,null,null,null,{"$f":"IFERROR(((($B473030/$H473030)*$M473030)),0)","v":0},{"$f":"F473030+G473030+E473030","v":0},{"$f":"IFERROR((($B473030/$H473030)*$M473030)+(($C473030/$H473030)*$M473030)+(($D473030/$H473030)*$M473030)+($E473030)+($G473030)+($F473030),0)","v":0}]
[null,null,null,null,null,null,null,null,null,0,0,0]
[null,null,null,null,null,null,null,null,null,0,0,0]
[null,null,null,null,null,null,null,null,null,0,0,0]
[null,null,null,null,null,null,null,null,null,0,0,0]
[null,null,null,null,null,null,null,null,null,0,0,0]
[null,null,null,null,null,null,null,null,null,0,0,0]
[null,null,null,null,null,null,null,null,null,0,0,0]
[null,null,null,null,null,null,null,null,null,0,0,0]
[null,null,null,null,null,null,null,null,null,0,0,0]
[null,null,null,null,null,null,null,null,null,0,0,0]
[null,null,null,null,null,null,null,null,null,0,0,0]
[null,null,null,null,null,null,null,null,null,0,0,0]
[null,null,null,null,null,null,null,null,null,0,0,0]
[null,null,null,null,null,null,null,null,null,0,0,0]
[null,null,null,null,null,null,null,null,null,0,0,0]
[null,null,null,null,null,null,null,null,null,0,0,0]
[null,null,null,null,null,null,null,null,null,0,0,0]
[null,null,null,null,null,null,null,null,null,0,0,0]
[null,null,null,null,null,null,null,null,null,0,0,0]
[null,null,null,null,null,null,null,null,null,0,0,0]
[null,null,null,null,null,null,null,null,null,0,0,0]
[null,null,null,null,null,null,null,null,null,0,0,0]
[null,null,null,null,null,null,null,null,null,0,0,0]
[null,null,null,null,null,null,null,null,null,0,0,0]
[null,null,null,null,null,null,null,null,null,0,0,0]
[null,null,null,null,null,null,null,null,null,0,0,0]
[null,null,null,null,null,null,null,null,null,0,0,0]
[null,null,null,null,null,null,null,null,null,0,0,0]
[null,null,null,null,null,null,null,null,null,0,0,0]
[null,null,null,null,null,null,null,null,null,0,0,0]
[null,null,null,null,null,null,null,null,null,0,0,0]
[null,null,null,null,null,null,null,null,null,0,0,0]
[null,null,null,null,null,null,null,null,null,0,0,0]
[null,null,null,null,null,null,null,null,null,0,0,0]
[null,null,null,null,null,null,null,null,null,0,0,0]
[null,null,null,null,null,null,null,null,null,0,0,0]
[null,null,null,null,null,null,null,null,null,0,0,0]
[null,null,null,null,null,null,null,null,null,0,0,0]
[null,null,null,null,null,null,null,null,null,0,0,0]
[null,null,null,null,null,null,null,null,null,0,0,0]
[null,null,null,null,null,null,null,null,null,0,0,0]
[null,null,null,null,null,null,null,null,null,0,0,0]
[null,null,null,null,null,null,null,null,null,0,0,0]
[null,null,null,null,null,null,null,null,null,0,0,0]
[null,null,null,null,null,null,null,null,null,0,0,0]
[null,null,null,null,null,null,null,null,null,0,0,0]
[null,null,null,null,null,null,null,null,null,{"$f":"IFERROR(((($B484742/$H484742)*$M484742)),0)","v":0},{"$f":"F484742+G484742+E484742","v":0},{"$f":"IFERROR((($B484742/$H484742)*$M484742)+(($C484742/$H484742)*$M484742)+(($D484742/$H484742)*$M484742)+($E484742)+($G484742)+($F484742),0)","v":0}]
[null,null,null,null,null,null,null,null,null,0,0,0]
[null,null,null,null,null,null,null,null,null,0,0,0]
[null,null,null,null,null,null,null,null,null,0,0,0]
[null,null,null,null,null,null,null,null,null,0,0,0]
[null,null,null,null,null,null,null,null,null,0,0,0]
[null,null,null,null,null,null,null,null,null,0,0,0]
[null,null,null,null,null,null,null,null,null,0,0,0]
[null,null,null,null,null,null,null,null,null,0,0,0]
[null,null,null,null,null,null,null,null,null,0,0,0]
[null,null,null,null,null,null,null,null,null,0,0,0]
[null,null,null,null,null,null,null,null,null,0,0,0]
[null,null,null,null,null,null,null,null,null,0,0,0]
[null,null,null,null,null,null,null,null,null,0,0,0]
[null,null,null,null,null,null,null,null,null,0,0,0]
[null,null,null,null,null,null,null,null,null,0,0,0]
[null,null,null,null,null,null,null,null,null,0,0,0]
[null,null,null,null,null,null,null,null,null,0,0,0]
[null,null,null,null,null,null,null,null,null,0,0,0]
[null,null,null,null,null,null,null,null,null,0,0,0]
[null,null,null,null,null,null,null,null,null,0,0,0]
[null,null,null,null,null,null,null,null,null,0,0,0]
[null,null,null,null,null,null,null,null,null,0,0,0]
[null,null,null,null,null,null,null,null,null,0,0,0]
[null,null,null,null,null,null,null,null,null,0,0,0]
[null,null,null,null,null,null,null,null,null,0,0,0]
[null,null,null,null,null,null,null,null,null,0,0,0]
[null,null,null,null,null,null,null,null,null,0,0,0]
[null,null,null,null,null,null,null,null,null,0,0,0]
[null,null,null,null,null,null,null,null,null,0,0,0]
[null,null,null,null,null,null,null,null,null,0,0,0]
[null,null,null,null,null,null,null,null,null,0,0,0]
[null,null,null,null,null,null,null,null,null,0,0,0]
[null,null,null,null,null,null,null,null,null,0,0,0]
[null,null,null,null,null,null,null,null,null,0,0,0]
[null,null,null,null,null,null,null,null,null,0,0,0]
[null,null,null,null,null,null,null,null,null,0,0,0]
[null,null,null,null,null,null,null,null,null,0,0,0]
[null,null,null,null,null,null,null,null,null,0,0,0]
[null,null,null,null,null,null,null,null,null,0,0,0]
[null,null,null,null,null,null,null,null,null,0,0,0]
[null,null,null,null,null,null,null,null,null,0,0,0]
[null,null,null,null,null,null,null,null,null,0,0,0]
[null,null,null,null,null,null,null,null,null,0,0,0]
[null,null,null,null,null,null,null,null,null,0,0,0]
[null,null,null,null,null,null,null,null,null,0,0,0]
[null,null,null,null,null,null,null,null,null,0,0,0]
[null,null,null,null,null,null,null,null,null,0,0,0]
[null,null,null,null,null,null,null,null,null,0,0,0]
[null,null,null,null,null,null,null,null,null,0,0,0]
[null,null,null,null,null,null,null,null,null,0,0,0]
[null,null,null,null,null,null,null,null,null,0,0,0]
[null,null,null,null,null,null,null,null,null,0,0,0]
[null,null,null,null,null,null,null,null,null,0,0,0]
[null,null,null,null,null,null,null,null,null,0,0,0]
[null,null,null,null,null,null,null,null,null,0,0,0]
[null,null,null,null,null,null,null,null,null,0,0,0]
[null,null,null,null,null,null,null,null,null,0,0,0]
[null,null,null,null,null,null,null,null,null,0,0,0]
[null,null,null,null,null,null,null,null,null,0,0,0]
[null,null,null,null,null,null,null,null,null,0,0,0]
[null,null,null,null,null,null,null,null,null,0,0,0]
[null,null,null,null,null,null,null,null,null,0,0,0]
[null,null,null,null,null,null,null,null,null,0,0,0]
[null,null,null,null,null,null,null,null,null,0,0,0]
[null,null,null,null,null,null,null,null,null,0,0,0]
[null,null,null,null,null,null,null,null,null,0,0,0]
[null,null,null,null,null,null,null,null,null,0,0,0]
[null,null,null,null,null,null,null,null,null,0,0,0]
[null,null,null,null,null,null,null,null,null,0,0,0]
[null,null,null,null,null,null,null,null,null,0,0,0]
[null,null,null,null,null,null,null,null,null,0,0,0]
[null,null,null,null,null,null,null,null,null,0,0,0]
[null,null,null,null,null,null,null,null,null,0,0,0]
[null,null,null,null,null,null,null,null,null,0,0,0]
[null,null,null,null,null,null,null,null,null,0,0,0]
[null,null,null,null,null,null,null,null,null,0,0,0]
[null,null,null,null,null,null,null,null,null,0,0,0]
[null,null,null,null,null,null,null,null,null,0,0,0]
[null,null,null,null,null,null,null,null,null,0,0,0]
[null,null,null,null,null,null,null,null,null,0,0,0]
[null,null,null,null,null,null,null,null,null,0,0,0]
[null,null,null,null,null,null,null,null,null,0,0,0]
[null,null,null,null,null,null,null,null,null,0,0,0]
[null,null,null,null,null,null,null,null,null,0,0,0]
[null,null,null,null,null,null,null,null,null,0,0,0]
[null,null,null,null,null,null,null,null,null,0,0,0]
[null,null,null,null,null,null,null,null,null,0,0,0]
[null,null,null,null,null,null,null,null,null,0,0,0]
[null,null,null,null,null,null,null,null,null,0,0,0]
[null,null,null,null,null,null,null,null,null,0,0,0]
[null,null,null,null,null,null,null,null,null,0,0,0]
[null,null,null,null,null,null,null,null,null,0,0,0]
[null,null,null,null,null,null,null,null,null,0,0,0]
[null,null,null,null,null,null,null,null,null,{"$f":"IFERROR(((($B498118/$H498118)*$M498118)),0)","v":0},{"$f":"F498118+G498118+E498118","v":0},{"$f":"IFERROR((($B498118/$H498118)*$M498118)+(($C498118/$H498118)*$M498118)+(($D498118/$H498118)*$M498118)+($E498118)+($G498118)+($F498118),0)","v":0}]
[null,null,null,null,null,null,null,null,null,0,0,0]
[null,null,null,null,null,null,null,null,null,0,0,0]
[null,null,null,null,null,null,null,null,null,0,0,0]
[null,null,null,null,null,null,null,null,null,0,0,0]
[null,null,null,null,null,null,null,null,null,0,0,0]
[null,null,null,null,null,null,null,null,null,0,0,0]
[null,null,null,null,null,null,null,null,null,0,0,0]
[null,null,null,null,null,null,null,null,null,0,0,0]
[null,null,null,null,null,null,null,null,null,0,0,0]
[null,null,null,null,null,null,null,null,null,0,0,0]
[null,null,null,null,null,null,null,null,null,0,0,0]
[null,null,null,null,null,null,null,null,null,0,0,0]
[null,null,null,null,null,null,null,null,null,0,0,0]
[null,null,null,null,null,null,null,null,null,0,0,0]
[null,null,null,null,null,null,null,null,null,0,0,0]
[null,null,null,null,null,null,null,null,null,0,0,0]
[null,null,null,null,null,null,null,null,null,0,0,0]
[null,null,null,null,null,null,null,null,null,0,0,0]
[null,null,null,null,null,null,null,null,null,0,0,0]
[null,null,null,null,null,null,null,null,null,0,0,0]
[null,null,null,null,null,null,null,null,null,0,0,0]
[null,null,null,null,null,null,null,null,null,0,0,0]
[null,null,null,null,null,null,null,null,null,0,0,0]
[null,null,null,null,null,null,null,null,null,0,0,0]
[null,null,null,null,null,null,null,null,null,0,0,0]
[null,null,null,null,null,null,null,null,null,0,0,0]
[null,null,null,null,null,null,null,null,null,0,0,0]
[null,null,null,null,null,null,null,null,null,0,0,0]
[null,null,null,null,null,null,null,null,null,0,0,0]
[null,null,null,null,null,null,null,null,null,0,0,0]
[null,null,null,null,null,null,null,null,null,0,0,0]
[null,null,null,null,null,null,null,null,null,0,0,0]
[null,null,null,null,null,null,null,null,null,0,0,0]
[null,null,null,null,null,null,null,null,null,0,0,0]
[null,null,null,null,null,null,null,null,null,0,0,0]
[null,null,null,null,null,null,null,null,null,0,0,0]
[null,null,null,null,null,null,null,null,null,0,0,0]
[null,null,null,null,null,null,null,null,null,0,0,0]
[null,null,null,null,null,null,null,null,null,0,0,0]
[null,null,null,null,null,null,null,null,null,0,0,0]
[null,null,null,null,null,null,null,null,null,0,0,0]
[null,null,null,null,null,null,null,null,null,0,0,0]
[null,null,null,null,null,null,null,null,null,0,0,0]
[null,null,null,null,null,null,null,null,null,0,0,0]
[null,null,null,null,null,null,null,null,null,0,0,0]
[null,null,null,null,null,null,null,null,null,0,0,0]
[null,null,null,null,null,null,null,null,null,0,0,0]
[null,null,null,null,null,null,null,null,null,0,0,0]
[null,null,null,null,null,null,null,null,null,0,0,0]
[null,null,null,null,null,null,null,null,null,0,0,0]
[null,null,null,null,null,null,null,null,null,0,0,0]
[null,null,null,null,null,null,null,null,null,0,0,0]
[null,null,null,null,null,null,null,null,null,0,0,0]
[null,null,null,null,null,null,null,null,null,0,0,0]
[null,null,null,null,null,null,null,null,null,0,0,0]
[null,null,null,null,null,null,null,null,null,0,0,0]
[null,null,null,null,null,null,null,null,null,0,0,0]
[null,null,null,null,null,null,null,null,null,0,0,0]
[null,null,null,null,null,null,null,null,null,0,0,0]
[null,null,null,null,null,null,null,null,null,0,0,0]
[null,null,null,null,null,null,null,null,null,0,0,0]
[null,null,null,null,null,null,null,null,null,0,0,0]
[null,null,null,null,null,null,null,null,null,0,0,0]
[null,null,null,null,null,null,null,null,null,{"$f":"IFERROR(((($B498182/$H498182)*$M498182)),0)","v":0},{"$f":"F498182+G498182+E498182","v":0},{"$f":"IFERROR((($B498182/$H498182)*$M498182)+(($C498182/$H498182)*$M498182)+(($D498182/$H498182)*$M498182)+($E498182)+($G498182)+($F498182),0)","v":0}]
[null,null,null,null,null,null,null,null,null,0,0,0]
[null,null,null,null,null,null,null,null,null,0,0,0]
[null,null,null,null,null,null,null,null,null,0,0,0]
[null,null,null,null,null,null,null,null,null,0,0,0]
[null,null,null,null,null,null,null,null,null,0,0,0]
[null,null,null,null,null,null,null,null,null,0,0,0]
[null,null,null,null,null,null,null,null,null,0,0,0]
[null,null,null,null,null,null,null,null,null,0,0,0]
[null,null,null,null,null,null,null,null,null,0,0,0]
[null,null,null,null,null,null,null,null,null,0,0,0]
[null,null,null,null,null,null,null,null,null,0,0,0]
[null,null,null,null,null,null,null,null,null,0,0,0]
[null,null,null,null,null,null,null,null,null,0,0,0]
[null,null,null,null,null,null,null,null,null,0,0,0]
[null,null,null,null,null,null,null,null,null,0,0,0]
[null,null,null,null,null,null,null,null,null,0,0,0]
[null,null,null,null,null,null,null,null,null,0,0,0]
[null,null,null,null,null,null,null,null,null,0,0,0]
[null,null,null,null,null,null,null,null,null,0,0,0]
[null,null,null,null,null,null,null,null,null,0,0,0]
[null,null,null,null,null,null,null,null,null,0,0,0]
[null,null,null,null,null,null,null,null,null,0,0,0]
[null,null,null,null,null,null,null,null,null,0,0,0]
[null,null,null,null,null,null,null,null,null,0,0,0]
[null,null,null,null,null,null,null,null,null,0,0,0]
[null,null,null,null,null,null,null,null,null,0,0,0]
[null,null,null,null,null,null,null,null,null,0,0,0]
[null,null,null,null,null,null,null,null,null,0,0,0]
[null,null,null,null,null,null,null,null,null,0,0,0]
[null,null,null,null,null,null,null,null,null,0,0,0]
[null,null,null,null,null,null,null,null,null,0,0,0]
[null,null,null,null,null,null,null,null,null,0,0,0]
[null,null,null,null,null,null,null,null,null,0,0,0]
[null,null,null,null,null,null,null,null,null,0,0,0]
[null,null,null,null,null,null,null,null,null,0,0,0]
[null,null,null,null,null,null,null,null,null,0,0,0]
[null,null,null,null,null,null,null,null,null,0,0,0]
[null,null,null,null,null,null,null,null,null,0,0,0]
[null,null,null,null,null,null,null,null,null,0,0,0]
[null,null,null,null,null,null,null,null,null,0,0,0]
[null,null,null,null,null,null,null,null,null,0,0,0]
[null,null,null,null,null,null,null,null,null,0,0,0]
[null,null,null,null,null,null,null,null,null,0,0,0]
[null,null,null,null,null,null,null,null,null,0,0,0]
[null,null,null,null,null,null,null,null,null,0,0,0]
[null,null,null,null,null,null,null,null,null,0,0,0]
[null,null,null,null,null,null,null,null,null,0,0,0]
[null,null,null,null,null,null,null,null,null,0,0,0]
[null,null,null,null,null,null,null,null,null,0,0,0]
[null,null,null,null,null,null,null,null,null,0,0,0]
[null,null,null,null,null,null,null,null,null,0,0,0]
[null,null,null,null,null,null,null,null,null,0,0,0]
[null,null,null,null,null,null,null,null,null,0,0,0]
[null,null,null,null,null,null,null,null,null,0,0,0]
[null,null,null,null,null,null,null,null,null,0,0,0]
[null,null,null,null,null,null,null,null,null,0,0,0]
[null,null,null,null,null,null,null,null,null,0,0,0]
[null,null,null,null,null,null,null,null,null,0,0,0]
[null,null,null,null,null,null,null,null,null,0,0,0]
[null,null,null,null,null,null,null,null,null,0,0,0]
[null,null,null,null,null,null,null,null,null,0,0,0]
[null,null,null,null,null,null,null,null,null,0,0,0]
[null,null,null,null,null,null,null,null,null,0,0,0]
[null,null,null,null,null,null,null,null,null,{"$f":"IFERROR(((($B498246/$H498246)*$M498246)),0)","v":0},{"$f":"F498246+G498246+E498246","v":0},{"$f":"IFERROR((($B498246/$H498246)*$M498246)+(($C498246/$H498246)*$M498246)+(($D498246/$H498246)*$M498246)+($E498246)+($G498246)+($F498246),0)","v":0}]
[null,null,null,null,null,null,null,null,null,0,0,0]
[null,null,null,null,null,null,null,null,null,0,0,0]
[null,null,null,null,null,null,null,null,null,0,0,0]
[null,null,null,null,null,null,null,null,null,0,0,0]
[null,null,null,null,null,null,null,null,null,0,0,0]
[null,null,null,null,null,null,null,null,null,0,0,0]
[null,null,null,null,null,null,null,null,null,0,0,0]
[null,null,null,null,null,null,null,null,null,0,0,0]
[null,null,null,null,null,null,null,null,null,0,0,0]
[null,null,null,null,null,null,null,null,null,0,0,0]
[null,null,null,null,null,null,null,null,null,0,0,0]
[null,null,null,null,null,null,null,null,null,0,0,0]
[null,null,null,null,null,null,null,null,null,0,0,0]
[null,null,null,null,null,null,null,null,null,0,0,0]
[null,null,null,null,null,null,null,null,null,0,0,0]
[null,null,null,null,null,null,null,null,null,0,0,0]
[null,null,null,null,null,null,null,null,null,0,0,0]
[null,null,null,null,null,null,null,null,null,0,0,0]
[null,null,null,null,null,null,null,null,null,0,0,0]
[null,null,null,null,null,null,null,null,null,0,0,0]
[null,null,null,null,null,null,null,null,null,0,0,0]
[null,null,null,null,null,null,null,null,null,0,0,0]
[null,null,null,null,null,null,null,null,null,0,0,0]
[null,null,null,null,null,null,null,null,null,0,0,0]
[null,null,null,null,null,null,null,null,null,0,0,0]
[null,null,null,null,null,null,null,null,null,0,0,0]
[null,null,null,null,null,null,null,null,null,0,0,0]
[null,null,null,null,null,null,null,null,null,0,0,0]
[null,null,null,null,null,null,null,null,null,0,0,0]
[null,null,null,null,null,null,null,null,null,0,0,0]
[null,null,null,null,null,null,null,null,null,0,0,0]
[null,null,null,null,null,null,null,null,null,0,0,0]
[null,null,null,null,null,null,null,null,null,0,0,0]
[null,null,null,null,null,null,null,null,null,0,0,0]
[null,null,null,null,null,null,null,null,null,0,0,0]
[null,null,null,null,null,null,null,null,null,0,0,0]
[null,null,null,null,null,null,null,null,null,0,0,0]
[null,null,null,null,null,null,null,null,null,0,0,0]
[null,null,null,null,null,null,null,null,null,0,0,0]
[null,null,null,null,null,null,null,null,null,0,0,0]
[null,null,null,null,null,null,null,null,null,0,0,0]
[null,null,null,null,null,null,null,null,null,0,0,0]
[null,null,null,null,null,null,null,null,null,0,0,0]
[null,null,null,null,null,null,null,null,null,0,0,0]
[null,null,null,null,null,null,null,null,null,0,0,0]
[null,null,null,null,null,null,null,null,null,0,0,0]
[null,null,null,null,null,null,null,null,null,0,0,0]
[null,null,null,null,null,null,null,null,null,0,0,0]
[null,null,null,null,null,null,null,null,null,0,0,0]
[null,null,null,null,null,null,null,null,null,0,0,0]
[null,null,null,null,null,null,null,null,null,0,0,0]
[null,null,null,null,null,null,null,null,null,0,0,0]
[null,null,null,null,null,null,null,null,null,0,0,0]
[null,null,null,null,null,null,null,null,null,0,0,0]
[null,null,null,null,null,null,null,null,null,0,0,0]
[null,null,null,null,null,null,null,null,null,0,0,0]
[null,null,null,null,null,null,null,null,null,0,0,0]
[null,null,null,null,null,null,null,null,null,0,0,0]
[null,null,null,null,null,null,null,null,null,0,0,0]
[null,null,null,null,null,null,null,null,null,0,0,0]
[null,null,null,null,null,null,null,null,null,0,0,0]
[null,null,null,null,null,null,null,null,null,0,0,0]
[null,null,null,null,null,null,null,null,null,0,0,0]
[null,null,null,null,null,null,null,null,null,{"$f":"IFERROR(((($B498310/$H498310)*$M498310)),0)","v":0},{"$f":"F498310+G498310+E498310","v":0},{"$f":"IFERROR((($B498310/$H498310)*$M498310)+(($C498310/$H498310)*$M498310)+(($D498310/$H498310)*$M498310)+($E498310)+($G498310)+($F498310),0)","v":0}]
[null,null,null,null,null,null,null,null,null,0,0,0]
[null,null,null,null,null,null,null,null,null,0,0,0]
[null,null,null,null,null,null,null,null,null,0,0,0]
[null,null,null,null,null,null,null,null,null,0,0,0]
[null,null,null,null,null,null,null,null,null,0,0,0]
[null,null,null,null,null,null,null,null,null,0,0,0]
[null,null,null,null,null,null,null,null,null,0,0,0]
[null,null,null,null,null,null,null,null,null,0,0,0]
[null,null,null,null,null,null,null,null,null,0,0,0]
[null,null,null,null,null,null,null,null,null,0,0,0]
[null,null,null,null,null,null,null,null,null,0,0,0]
[null,null,null,null,null,null,null,null,null,0,0,0]
[null,null,null,null,null,null,null,null,null,0,0,0]
[null,null,null,null,null,null,null,null,null,0,0,0]
[null,null,null,null,null,null,null,null,null,0,0,0]
[null,null,null,null,null,null,null,null,null,0,0,0]
[null,null,null,null,null,null,null,null,null,0,0,0]
[null,null,null,null,null,null,null,null,null,0,0,0]
[null,null,null,null,null,null,null,null,null,0,0,0]
[null,null,null,null,null,null,null,null,null,0,0,0]
[null,null,null,null,null,null,null,null,null,0,0,0]
[null,null,null,null,null,null,null,null,null,0,0,0]
[null,null,null,null,null,null,null,null,null,0,0,0]
[null,null,null,null,null,null,null,null,null,0,0,0]
[null,null,null,null,null,null,null,null,null,0,0,0]
[null,null,null,null,null,null,null,null,null,0,0,0]
[null,null,null,null,null,null,null,null,null,0,0,0]
[null,null,null,null,null,null,null,null,null,0,0,0]
[null,null,null,null,null,null,null,null,null,0,0,0]
[null,null,null,null,null,null,null,null,null,0,0,0]
[null,null,null,null,null,null,null,null,null,0,0,0]
[null,null,null,null,null,null,null,null,null,0,0,0]
[null,null,null,null,null,null,null,null,null,0,0,0]
[null,null,null,null,null,null,null,null,null,0,0,0]
[null,null,null,null,null,null,null,null,null,0,0,0]
[null,null,null,null,null,null,null,null,null,0,0,0]
[null,null,null,null,null,null,null,null,null,0,0,0]
[null,null,null,null,null,null,null,null,null,0,0,0]
[null,null,null,null,null,null,null,null,null,0,0,0]
[null,null,null,null,null,null,null,null,null,0,0,0]
[null,null,null,null,null,null,null,null,null,0,0,0]
[null,null,null,null,null,null,null,null,null,0,0,0]
[null,null,null,null,null,null,null,null,null,0,0,0]
[null,null,null,null,null,null,null,null,null,0,0,0]
[null,null,null,null,null,null,null,null,null,0,0,0]
[null,null,null,null,null,null,null,null,null,0,0,0]
[null,null,null,null,null,null,null,null,null,0,0,0]
[null,null,null,null,null,null,null,null,null,0,0,0]
[null,null,null,null,null,null,null,null,null,0,0,0]
[null,null,null,null,null,null,null,null,null,0,0,0]
[null,null,null,null,null,null,null,null,null,0,0,0]
[null,null,null,null,null,null,null,null,null,0,0,0]
[null,null,null,null,null,null,null,null,null,0,0,0]
[null,null,null,null,null,null,null,null,null,0,0,0]
[null,null,null,null,null,null,null,null,null,0,0,0]
[null,null,null,null,null,null,null,null,null,0,0,0]
[null,null,null,null,null,null,null,null,null,0,0,0]
[null,null,null,null,null,null,null,null,null,0,0,0]
[null,null,null,null,null,null,null,null,null,0,0,0]
[null,null,null,null,null,null,null,null,null,0,0,0]
[null,null,null,null,null,null,null,null,null,0,0,0]
[null,null,null,null,null,null,null,null,null,0,0,0]
[null,null,null,null,null,null,null,null,null,0,0,0]
[null,null,null,null,null,null,null,null,null,{"$f":"IFERROR(((($B498374/$H498374)*$M498374)),0)","v":0},{"$f":"F498374+G498374+E498374","v":0},{"$f":"IFERROR((($B498374/$H498374)*$M498374)+(($C498374/$H498374)*$M498374)+(($D498374/$H498374)*$M498374)+($E498374)+($G498374)+($F498374),0)","v":0}]
[null,null,null,null,null,null,null,null,null,0,0,0]
[null,null,null,null,null,null,null,null,null,0,0,0]
[null,null,null,null,null,null,null,null,null,0,0,0]
[null,null,null,null,null,null,null,null,null,0,0,0]
[null,null,null,null,null,null,null,null,null,0,0,0]
[null,null,null,null,null,null,null,null,null,0,0,0]
[null,null,null,null,null,null,null,null,null,0,0,0]
[null,null,null,null,null,null,null,null,null,0,0,0]
[null,null,null,null,null,null,null,null,null,0,0,0]
[null,null,null,null,null,null,null,null,null,0,0,0]
[null,null,null,null,null,null,null,null,null,0,0,0]
[null,null,null,null,null,null,null,null,null,0,0,0]
[null,null,null,null,null,null,null,null,null,0,0,0]
[null,null,null,null,null,null,null,null,null,0,0,0]
[null,null,null,null,null,null,null,null,null,0,0,0]
[null,null,null,null,null,null,null,null,null,0,0,0]
[null,null,null,null,null,null,null,null,null,0,0,0]
[null,null,null,null,null,null,null,null,null,0,0,0]
[null,null,null,null,null,null,null,null,null,0,0,0]
[null,null,null,null,null,null,null,null,null,0,0,0]
[null,null,null,null,null,null,null,null,null,0,0,0]
[null,null,null,null,null,null,null,null,null,0,0,0]
[null,null,null,null,null,null,null,null,null,0,0,0]
[null,null,null,null,null,null,null,null,null,0,0,0]
[null,null,null,null,null,null,null,null,null,0,0,0]
[null,null,null,null,null,null,null,null,null,0,0,0]
[null,null,null,null,null,null,null,null,null,0,0,0]
[null,null,null,null,null,null,null,null,null,0,0,0]
[null,null,null,null,null,null,null,null,null,0,0,0]
[null,null,null,null,null,null,null,null,null,0,0,0]
[null,null,null,null,null,null,null,null,null,0,0,0]
[null,null,null,null,null,null,null,null,null,0,0,0]
[null,null,null,null,null,null,null,null,null,0,0,0]
[null,null,null,null,null,null,null,null,null,0,0,0]
[null,null,null,null,null,null,null,null,null,0,0,0]
[null,null,null,null,null,null,null,null,null,0,0,0]
[null,null,null,null,null,null,null,null,null,0,0,0]
[null,null,null,null,null,null,null,null,null,0,0,0]
[null,null,null,null,null,null,null,null,null,0,0,0]
[null,null,null,null,null,null,null,null,null,0,0,0]
[null,null,null,null,null,null,null,null,null,0,0,0]
[null,null,null,null,null,null,null,null,null,0,0,0]
[null,null,null,null,null,null,null,null,null,0,0,0]
[null,null,null,null,null,null,null,null,null,0,0,0]
[null,null,null,null,null,null,null,null,null,0,0,0]
[null,null,null,null,null,null,null,null,null,0,0,0]
[null,null,null,null,null,null,null,null,null,0,0,0]
[null,null,null,null,null,null,null,null,null,0,0,0]
[null,null,null,null,null,null,null,null,null,0,0,0]
[null,null,null,null,null,null,null,null,null,0,0,0]
[null,null,null,null,null,null,null,null,null,0,0,0]
[null,null,null,null,null,null,null,null,null,0,0,0]
[null,null,null,null,null,null,null,null,null,0,0,0]
[null,null,null,null,null,null,null,null,null,0,0,0]
[null,null,null,null,null,null,null,null,null,0,0,0]
[null,null,null,null,null,null,null,null,null,0,0,0]
[null,null,null,null,null,null,null,null,null,0,0,0]
[null,null,null,null,null,null,null,null,null,0,0,0]
[null,null,null,null,null,null,null,null,null,0,0,0]
[null,null,null,null,null,null,null,null,null,0,0,0]
[null,null,null,null,null,null,null,null,null,0,0,0]
[null,null,null,null,null,null,null,null,null,0,0,0]
[null,null,null,null,null,null,null,null,null,0,0,0]
[null,null,null,null,null,null,null,null,null,{"$f":"IFERROR(((($B498438/$H498438)*$M498438)),0)","v":0},{"$f":"F498438+G498438+E498438","v":0},{"$f":"IFERROR((($B498438/$H498438)*$M498438)+(($C498438/$H498438)*$M498438)+(($D498438/$H498438)*$M498438)+($E498438)+($G498438)+($F498438),0)","v":0}]
[null,null,null,null,null,null,null,null,null,0,0,0]
[null,null,null,null,null,null,null,null,null,0,0,0]
[null,null,null,null,null,null,null,null,null,0,0,0]
[null,null,null,null,null,null,null,null,null,0,0,0]
[null,null,null,null,null,null,null,null,null,0,0,0]
[null,null,null,null,null,null,null,null,null,0,0,0]
[null,null,null,null,null,null,null,null,null,0,0,0]
[null,null,null,null,null,null,null,null,null,0,0,0]
[null,null,null,null,null,null,null,null,null,0,0,0]
[null,null,null,null,null,null,null,null,null,0,0,0]
[null,null,null,null,null,null,null,null,null,0,0,0]
[null,null,null,null,null,null,null,null,null,0,0,0]
[null,null,null,null,null,null,null,null,null,0,0,0]
[null,null,null,null,null,null,null,null,null,0,0,0]
[null,null,null,null,null,null,null,null,null,0,0,0]
[null,null,null,null,null,null,null,null,null,0,0,0]
[null,null,null,null,null,null,null,null,null,0,0,0]
[null,null,null,null,null,null,null,null,null,0,0,0]
[null,null,null,null,null,null,null,null,null,0,0,0]
[null,null,null,null,null,null,null,null,null,0,0,0]
[null,null,null,null,null,null,null,null,null,0,0,0]
[null,null,null,null,null,null,null,null,null,0,0,0]
[null,null,null,null,null,null,null,null,null,0,0,0]
[null,null,null,null,null,null,null,null,null,0,0,0]
[null,null,null,null,null,null,null,null,null,0,0,0]
[null,null,null,null,null,null,null,null,null,0,0,0]
[null,null,null,null,null,null,null,null,null,0,0,0]
[null,null,null,null,null,null,null,null,null,0,0,0]
[null,null,null,null,null,null,null,null,null,0,0,0]
[null,null,null,null,null,null,null,null,null,0,0,0]
[null,null,null,null,null,null,null,null,null,0,0,0]
[null,null,null,null,null,null,null,null,null,0,0,0]
[null,null,null,null,null,null,null,null,null,0,0,0]
[null,null,null,null,null,null,null,null,null,0,0,0]
[null,null,null,null,null,null,null,null,null,0,0,0]
[null,null,null,null,null,null,null,null,null,0,0,0]
[null,null,null,null,null,null,null,null,null,0,0,0]
[null,null,null,null,null,null,null,null,null,0,0,0]
[null,null,null,null,null,null,null,null,null,0,0,0]
[null,null,null,null,null,null,null,null,null,0,0,0]
[null,null,null,null,null,null,null,null,null,0,0,0]
[null,null,null,null,null,null,null,null,null,0,0,0]
[null,null,null,null,null,null,null,null,null,0,0,0]
[null,null,null,null,null,null,null,null,null,0,0,0]
[null,null,null,null,null,null,null,null,null,0,0,0]
[null,null,null,null,null,null,null,null,null,0,0,0]
[null,null,null,null,null,null,null,null,null,0,0,0]
[null,null,null,null,null,null,null,null,null,0,0,0]
[null,null,null,null,null,null,null,null,null,0,0,0]
[null,null,null,null,null,null,null,null,null,0,0,0]
[null,null,null,null,null,null,null,null,null,0,0,0]
[null,null,null,null,null,null,null,null,null,0,0,0]
[null,null,null,null,null,null,null,null,null,0,0,0]
[null,null,null,null,null,null,null,null,null,0,0,0]
[null,null,null,null,null,null,null,null,null,0,0,0]
[null,null,null,null,null,null,null,null,null,0,0,0]
[null,null,null,null,null,null,null,null,null,0,0,0]
[null,null,null,null,null,null,null,null,null,0,0,0]
[null,null,null,null,null,null,null,null,null,0,0,0]
[null,null,null,null,null,null,null,null,null,0,0,0]
[null,null,null,null,null,null,null,null,null,0,0,0]
[null,null,null,null,null,null,null,null,null,0,0,0]
[null,null,null,null,null,null,null,null,null,0,0,0]
[null,null,null,null,null,null,null,null,null,{"$f":"IFERROR(((($B498502/$H498502)*$M498502)),0)","v":0},{"$f":"F498502+G498502+E498502","v":0},{"$f":"IFERROR((($B498502/$H498502)*$M498502)+(($C498502/$H498502)*$M498502)+(($D498502/$H498502)*$M498502)+($E498502)+($G498502)+($F498502),0)","v":0}]
[null,null,null,null,null,null,null,null,null,0,0,0]
[null,null,null,null,null,null,null,null,null,0,0,0]
[null,null,null,null,null,null,null,null,null,0,0,0]
[null,null,null,null,null,null,null,null,null,0,0,0]
[null,null,null,null,null,null,null,null,null,0,0,0]
[null,null,null,null,null,null,null,null,null,0,0,0]
[null,null,null,null,null,null,null,null,null,0,0,0]
[null,null,null,null,null,null,null,null,null,0,0,0]
[null,null,null,null,null,null,null,null,null,0,0,0]
[null,null,null,null,null,null,null,null,null,0,0,0]
[null,null,null,null,null,null,null,null,null,0,0,0]
[null,null,null,null,null,null,null,null,null,0,0,0]
[null,null,null,null,null,null,null,null,null,0,0,0]
[null,null,null,null,null,null,null,null,null,0,0,0]
[null,null,null,null,null,null,null,null,null,0,0,0]
[null,null,null,null,null,null,null,null,null,0,0,0]
[null,null,null,null,null,null,null,null,null,0,0,0]
[null,null,null,null,null,null,null,null,null,0,0,0]
[null,null,null,null,null,null,null,null,null,0,0,0]
[null,null,null,null,null,null,null,null,null,0,0,0]
[null,null,null,null,null,null,null,null,null,0,0,0]
[null,null,null,null,null,null,null,null,null,0,0,0]
[null,null,null,null,null,null,null,null,null,0,0,0]
[null,null,null,null,null,null,null,null,null,0,0,0]
[null,null,null,null,null,null,null,null,null,0,0,0]
[null,null,null,null,null,null,null,null,null,0,0,0]
[null,null,null,null,null,null,null,null,null,0,0,0]
[null,null,null,null,null,null,null,null,null,0,0,0]
[null,null,null,null,null,null,null,null,null,0,0,0]
[null,null,null,null,null,null,null,null,null,0,0,0]
[null,null,null,null,null,null,null,null,null,0,0,0]
[null,null,null,null,null,null,null,null,null,0,0,0]
[null,null,null,null,null,null,null,null,null,0,0,0]
[null,null,null,null,null,null,null,null,null,0,0,0]
[null,null,null,null,null,null,null,null,null,0,0,0]
[null,null,null,null,null,null,null,null,null,0,0,0]
[null,null,null,null,null,null,null,null,null,0,0,0]
[null,null,null,null,null,null,null,null,null,0,0,0]
[null,null,null,null,null,null,null,null,null,0,0,0]
[null,null,null,null,null,null,null,null,null,0,0,0]
[null,null,null,null,null,null,null,null,null,0,0,0]
[null,null,null,null,null,null,null,null,null,0,0,0]
[null,null,null,null,null,null,null,null,null,0,0,0]
[null,null,null,null,null,null,null,null,null,0,0,0]
[null,null,null,null,null,null,null,null,null,0,0,0]
[null,null,null,null,null,null,null,null,null,0,0,0]
[null,null,null,null,null,null,null,null,null,0,0,0]
[null,null,null,null,null,null,null,null,null,0,0,0]
[null,null,null,null,null,null,null,null,null,0,0,0]
[null,null,null,null,null,null,null,null,null,0,0,0]
[null,null,null,null,null,null,null,null,null,0,0,0]
[null,null,null,null,null,null,null,null,null,0,0,0]
[null,null,null,null,null,null,null,null,null,0,0,0]
[null,null,null,null,null,null,null,null,null,0,0,0]
[null,null,null,null,null,null,null,null,null,0,0,0]
[null,null,null,null,null,null,null,null,null,0,0,0]
[null,null,null,null,null,null,null,null,null,0,0,0]
[null,null,null,null,null,null,null,null,null,0,0,0]
[null,null,null,null,null,null,null,null,null,0,0,0]
[null,null,null,null,null,null,null,null,null,0,0,0]
[null,null,null,null,null,null,null,null,null,0,0,0]
[null,null,null,null,null,null,null,null,null,0,0,0]
[null,null,null,null,null,null,null,null,null,0,0,0]
[null,null,null,null,null,null,null,null,null,{"$f":"IFERROR(((($B498566/$H498566)*$M498566)),0)","v":0},{"$f":"F498566+G498566+E498566","v":0},{"$f":"IFERROR((($B498566/$H498566)*$M498566)+(($C498566/$H498566)*$M498566)+(($D498566/$H498566)*$M498566)+($E498566)+($G498566)+($F498566),0)","v":0}]
[null,null,null,null,null,null,null,null,null,0,0,0]
[null,null,null,null,null,null,null,null,null,0,0,0]
[null,null,null,null,null,null,null,null,null,0,0,0]
[null,null,null,null,null,null,null,null,null,0,0,0]
[null,null,null,null,null,null,null,null,null,0,0,0]
[null,null,null,null,null,null,null,null,null,0,0,0]
[null,null,null,null,null,null,null,null,null,0,0,0]
[null,null,null,null,null,null,null,null,null,0,0,0]
[null,null,null,null,null,null,null,null,null,0,0,0]
[null,null,null,null,null,null,null,null,null,0,0,0]
[null,null,null,null,null,null,null,null,null,0,0,0]

{"sheet":"EXAMPLE - Casual","index":4,"n_rows":6,"n_cols":13,"rows_kept":6,"cut":false,"hidden":false,"merged":[[0,0,0,11],[1,1,1,8],[1,9,1,11],[2,0,3,0],[2,1,3,1],[2,2,3,2],[2,3,3,3],[2,4,3,4],[2,5,3,5],[2,6,3,6],[2,7,3,7],[2,8,3,8],[2,9,3,9],[2,11,3,11],[2,10,3,10]]}
["EXAMPLE:\nReview the two examples below for casual employees."]
[null,"1. Input your data below\n(based on actual earnings and actual hours worked)\n\n* for the 12 months prior to the date chosen for the workplace profile data.",null,null,null,null,null,null,null,"2. Copy and paste the below values\nin your workplace profile"]
["EXAMPLE","Total base salary paid \nfor the 12 months*\n($)","Total bonus paid for the 12 months*\n($)","Total superannuation paid for the 12 months*\n($)","Total discretionary pay for the 12 months*\n($)","Total overtime paid for the 12 months*\n($)","Total other allowances paid for the 12 months*\n($)","Total hours worked \nfor the 12 months*\n\n(Insert the total number of hours that the employee actually worked  in the 12 months*)","Ordinary days or hours \nin a working week\n\n(Insert your organisation's standard \"full-time\" number of hours per week e.g. 38 hours, 37.5 hours, 35 hours)","Annualised full-time equivalent base salary  ($)","Fixed Remuneration ($)","Annualised full-time equivalent total remuneration  ($)","FTE hours in year "]
[null,null,null,null,null,null,null,null,null,null,null,null,"Excel formula:  =(I7*52)"]
["Casual employee #1",18534,null,1760.73,null,null,null,520,38,{"$f":"((($B5/$H5)*$M5))","v":70429.2},{"$f":"F5+G5+E5","v":0},{"$f":"IFERROR((($B5/$H5)*$M5)+(($C5/$H5)*$M5)+(($D5/$H5)*$M5)+($E5)+($G5)+($F5),0)","v":77119.974000000002},{"$f":"($I5*52)","v":1976}]
["Casual employee #2",35488,null,null,null,200,null,800,35,80735.199999999997,{"$f":"F6+G6+E6","v":200},{"$f":"IFERROR((($B6/$H6)*$M6)+(($C6/$H6)*$M6)+(($D6/$H6)*$M6)+($E6)+($G6)+($F6),0)","v":80935.199999999997},{"$f":"($I6*52)","v":1820}]

{"sheet":"EXAMPLE - PT Con Part-yr","index":5,"n_rows":8,"n_cols":20,"rows_kept":8,"cut":false,"hidden":false,"merged":[[2,13,2,15],[2,17,3,17],[2,19,3,19],[2,18,3,18],[0,0,0,17],[1,1,1,12],[1,13,1,16],[1,17,1,19],[2,0,3,0],[2,2,2,3],[2,4,2,5],[2,6,2,7],[2,8,2,9],[2,11,2,12]]}
["EXAMPLE:\nReview the three examples below for:\n- Part-year employee\n- Part-time employee\n- Contract employee"]
[null,"1. Input your fixed and pro-rata amounts below. Pro-rata will be automatically converted to full-time equivalent (FTE) amounts.\n\n* for the 12 months prior to the date chosen for the workplace profile data. \n\n\n\nUse the 'Casual' calculator where an employee has had more than one employment status (eg. changed from casual to part-time) or varied regular part-time hours.",null,null,null,null,null,null,null,null,null,null,null,"2. To annualise pro-rata amounts:\nOption 1 (Recommended) : Insert the commencement date and date chosen for workplace profile data. Enter the total number of weeks of unpaid leave taken in column P, if applicable.\n\nOption 2: you can override the calculation in the cell and use the annualised FTE fraction in your system (which reflects the portion of the year worked as well as standard weekly hours). You do not need to put dates in columns N and O.\n\nChoose Option 1 OR Option 2",null,null,null,"3. Copy and paste the below values into your workplace profile"]
["EXAMPLE",null,"Total bonus paid for the 12 months*\n($)\n(The employee may receive both)",null,"Total discretionary pay for the 12 months*\n($)",null,"Total other allowances paid for the 12 months*\n($)",null,"\n\n\nTotal superannuation paid for the 12 months*\n($) \n\n(ordinary superannuation contributions should be entered into the Pro-rata column. Only enter non-pro-rata payments into the Fixed column) ",null,"Total overtime paid for the 12 months*\n($)","Use either:\nHOURS in both columns\nOR\nDAYS in both columns",null,"Option 1 (Recommended):\n(do not enter any value if using Option 2)\n",null,null,"Option 2\n(do not enter any value if using Option 1)","Annualised, full-time equivalent base salary ($)","Fixed Remuneration ($)","Annualised, full-time equivalent total remuneration ($)"]
[null,"Total base salary paid \nfor the 12 months\n($)","Fixed","Pro-rata","Fixed","Pro-rata","Fixed","Pro-rata","\n\nFixed \n\n(enter the actual amount paid to an employee who worked the full 12 months AND full-time ordinary hours.)","\n\nPro-rata \n\n(enter actual amount paid to an employee who did not work a full 12 months AND/OR full-time ordinary hours.)","Fixed","Actual days or hours the employee worked per week\n\n(Insert the employee's number of hours or days worked per week).","Ordinary days or hours \nin a working week\n\n(Insert your organisation's standard \"full-time\" number of hours or days per week).","Employee's commencement \ndate\n(DD/MM/YYYY)","Date chosen for workplace profile data \n(from 1 April to 31 March) \n(DD/MM/YYYY)","Periods of any unpaid leave in weeks\n (between Employee's commencement date and date chosen for workplace profile data)","FTE fraction\n(Once overridden with a value, the formula in the FTE cells will not reapply. If you need to update the FTE value or decide to use Option 2, you will need to use another row)."]
["Part-year employee (OPTION 1)",31567,null,2000,null,500,null,null,null,2998.87,null,38,38,"2016-01-01","2016-04-25",null,{"$f":"($L5/$M5)*((IF(($O5-$N5)/7<52,((($O5-$N5)/7)-P5),(52-P5)))/52)","v":0.31593406593406592},{"$f":"(($B5/$Q5))","v":99916.417391304349},{"$f":"C5+E5+G5+I5+K5","v":0},{"$f":"(($B5/$Q5)+($C5)+($D5/$Q5)+($E5)+($F5/$Q5)+($G5)+($H5/$Q5)+($I5)+($J5/$Q5)+($K5))","v":117321.53634782608}]
["Contract employee (OPTION 1)",87000,null,null,null,null,480,null,8265,null,null,40,40,"2015-08-13","2016-04-25",null,{"$f":"($L6/$M6)*((IF(($O6-$N6)/7<52,($O6-$N6)/7,52))/52)","v":0.70329670329670324},{"$f":"(($B6/$Q6))","v":123703.12500000001},{"$f":"C6+E6+G6+I6+K6","v":8745},{"$f":"(($B6/$Q6)+($C6)+($D6/$Q6)+($E6)+($F6/$Q6)+($G6)+($H6/$Q6)+($I6)+($J6/$Q6)+($K6))","v":132448.125}]
["Part-year employee with unpaid leave (OPTION 1)",50000,null,2000,null,5000,null,null,null,2998.87,null,36,38,"2015-07-23","2016-04-25",2,{"$f":"($L7/$M7)*((IF(($O7-$N7)/7<52,((($O7-$N7)/7)-P7),(52-P7)))/52)","v":0.68449971081550021},73046.04985213351,0,87653.608981833546]
["Part-time employee (OPTION 2)",53456,null,null,null,null,null,null,null,5078.32,null,3,5,null,null,null,0.6,89093.333333333343,0,97557.200000000012]